Workbook

Sheet Model Description
B2: Tab | C2: Description
B3: Summary | C3: This tab allows the user to input the year, baseline region, and other assumptions. Includes outputs of average bills for current and inputted year.
C4: Bundled represents customers that we procure gas for. System refers to all customer classes combined. Total System for a customer class includes Bundled + Unbundled.
B5: Authorized Rev Req | C5: This tab shows the authorized revenue requirement for each line item that is in existing rates.
B6: Incremental Rev Req | C6: This tab contains several sections: (i) Approved Application(s), (ii) Pending Application(s) Not Yet Approved, and (iii) Applications Projected to be Filed.
C7: The Approved Application(s) section shows the authorized revenue requirement for each line item forecasted out by year.
C8: The Pending Application(s) Not Yet Approved section includes pending advice letters or applications for new proceedings and any pending increases or decreases to current line items.
B9: SAR and RAR | C9: This tab shows the total revenue and the allocated revenue used to calculate Residential rates for the inputted year.
C10: The Residential percent allocations for the Revenue Recovery Mechanisms are estimated using the detailed Cost Allocation and Rate Design Model.
B11: Res Bill Impact | C11: This tab shows the calculation for Residential rates and average monthly bills.
B12: Hypothetical Tabs | C12: These tabs allow the user to estimate rate impacts from hypothetical revenue requirement changes relative to current rates.
B14: *IMPORTANT NOTE: | C14: CRT model uses current year CRT-calculated rates for comparison with future rates. For Hypothetical tabs, CRT uses current rates.

Sheet Summary
B1: Inputs: | G1: Assumptions:
C2: =CONCATENATE("Rate Impact for Year (",SetUp!J5,"-",SetUp!J9,")") -> Rate Impact for Year (2026-2030) | D2: 2026 | G2: Current Effective Rates | I2: =CurrentEffectiveRateDate -> 2026-01-01
C3: Baseline Region - (Residential bill) | D3: SDG&E | G3: Sales Forecast | I3: 2024
G4: Residential bill calculated using | I4: Schedule GR, Basic, Bundled, Single Family
G5: Non-CARE bill impact calculated with average summer usage of | K5: =IF($D$3="ALL",SUMPRODUCT('Res Bill Impact'!Q22:Q25,'Res Bill Impact'!U22:U25),VLOOKUP($D$3,'Res Bill Impact'!$P$22:$T$25,2,FALSE)) -> 15 | L5: therms per month
B6: Pending Proceedings | D6: Include in Impact (Y) | E6: Applicable Year(s) | G6: Non-CARE bill impact calculated with average winter usage of | K6: =IF($D$3="ALL",SUMPRODUCT('Res Bill Impact'!R22:R25,'Res Bill Impact'!U22:U25),VLOOKUP(D$3,'Res Bill Impact'!$P$22:$T$25,3,FALSE)) -> 29 | L6: therms per month
B7: ='Incremental Rev Req'!A97 -> 2024 GRC Track 3 (PSEP and WMPMA) | D7: Y | E7: 2026-2027 | G7: CARE bill impact calculated with average summer usage of | K7: =IF($D$3="ALL",SUMPRODUCT('Res Bill Impact'!S22:S25,'Res Bill Impact'!V22:V25),VLOOKUP($D$3,'Res Bill Impact'!$P$22:$T$25,4,FALSE)) -> 14.83333333 | L7: therms per month
B8: ='Incremental Rev Req'!A98 -> GRC PFM | D8: Y | E8: 2025-2027 | G8: CARE bill impact calculated with average winter usage of | K8: =IF($D$3="ALL",SUMPRODUCT('Res Bill Impact'!T22:T25,'Res Bill Impact'!V22:V25),VLOOKUP($D$3,'Res Bill Impact'!$P$22:$T$25,5,FALSE)) -> 24.66666667 | L8: therms per month
B9: ='Incremental Rev Req'!A99 -> GRC Track 2 Proposed Decision - SDG&E 2024 | D9: Y | E9: 2026 | G9: Average monthly usage is for all customers (Non-CARE and CARE) based on seasonal usage in | L9: 2024
B10: ='Incremental Rev Req'!A100 -> 0 | D10: Y | E10: 2026 | G10: Summer season | I10: 6 | J10: months
B11: ='Incremental Rev Req'!A101 -> 0 | D11: Y | E11: 2026 | G11: Winter Season | I11: =12-I10 -> 6 | J11: months
B12: ='Incremental Rev Req'!A104 -> Cost Allocation Proceeding | D12: N | E12: 2027-2029
B23: Outputs:
D24: (A) | E24: (B) | F24: (C) | G24: (D) | H24: (D)/(A) | I24: (D)/(B) | J24: (D)/(C) | N24: (A) | O24: (B) | P24: (C) | Q24: (D) | R24: (D)/(A) | S24: (D)/(B) | T24: (D)/(C)
B25: Bundled Average Rates - ¢/therm | L25: Total System (Bundled and Unbundled) Average Rates - ¢/th
B26: Customer Group | D26: =BOYEffectiveRateDate -> 2026-01-01 | E26: =CurrentEffectiveRateDate -> 2026-01-01 | F26: =$D$2&" Authorized" -> 2026 Authorized | G26: =$D$2&" w/Pending" -> 2026 w/Pending | H26: =CONCATENATE("% Change over ",TEXT(BOYEffectiveRateDate,"m/d/yyyy")) -> % Change over 1/1/2026 | I26: =CONCATENATE("% Change over ",TEXT(CurrentEffectiveRateDate,"m/d/yyyy")) -> % Change over 1/1/2026 | J26: % Change over Authorized | L26: Customer Group | N26: =$D$26 -> 2026-01-01 | O26: =$E$26 -> 2026-01-01 | P26: =$D$2&" Authorized" -> 2026 Authorized | Q26: =$D$2&" w/Pending" -> 2026 w/Pending | R26: =$H$26 -> % Change over 1/1/2026 | S26: =$I$26 -> % Change over 1/1/2026 | T26: % Change over Authorized
B27: Residential | D27: 264.9008349 | E27: ='SAR and RAR'!G28 -> 229.7377197 | F27: ='SAR and RAR'!H28 -> 264.9008349 | G27: ='SAR and RAR'!I28 -> 282.4137298 | H27: =$G27/D27-1 -> 0.06611113525 | I27: 0.2292875989 | J27: 0.06611113525 | L27: Total Residential (RAR) | N27: 217.4258384 | O27: ='SAR and RAR'!R28 -> 229.7377197 | P27: ='SAR and RAR'!S28 -> 264.6080451 | Q27: ='SAR and RAR'!T28 -> 282.12094 | R27: =$Q27/N27-1 -> 0.2975501994 | S27: =$Q27/O27-1 -> 0.2280131464 | T27: 0.06618428747
B28: System | D28: 144.6985296 | E28: ='SAR and RAR'!G29 -> 104.8620296 | F28: ='SAR and RAR'!H29 -> 144.6985296 | G28: ='SAR and RAR'!I29 -> 151.7799782 | H28: 0.04893932679 | I28: 0.4474255249 | J28: 0.04893932679 | L28: Total System (SAR) | N28: 89.85993059 | O28: ='SAR and RAR'!R29 -> 104.8620296 | P28: ='SAR and RAR'!S29 -> 124.9731739 | Q28: ='SAR and RAR'!T29 -> 132.0546226 | R28: 0.4695607006 | S28: 0.2593178205 | T28: 0.05666374954
B31: Basic Bundled Residential Monthly Average Bills
D32: =BOYEffectiveRateDate -> 2026-01-01 | E32: =CurrentEffectiveRateDate -> 2026-01-01 | F32: =$D$2&" Authorized" -> 2026 Authorized | G32: =$D$2&" w/Pending" -> 2026 w/Pending | H32: =CONCATENATE("% Change over ",TEXT(BOYEffectiveRateDate,"m/d/yyyy")) -> % Change over 1/1/2026 | I32: =CONCATENATE("% Change over ",TEXT(CurrentEffectiveRateDate,"m/d/yyyy")) -> % Change over 1/1/2026 | J32: % Change over Authorized
B33: Non-CARE | D33: =((D39*$I$10)+(D45*$I$11))/12 -> 43.72829125 | E33: =((E39*$I$10)+(E45*$I$11))/12 -> 43.72829125 | F33: 50.59799146 | G33: 53.94168728 | H33: =$G33/D33-1 -> 0.233564947 | I33: 0.233564947 | J33: 0.06608356825
B34: CARE | D34: =((D40*$I$10)+(D46*$I$11))/12 -> 31.06580298 | E34: 33.97260125 | F34: 36.00694003 | G34: 38.38545871 | H34: 0.2356177863 | I34: 0.1298946002 | J34: 0.06605722894
B35: Total | D35: =((D41*$I$10)+(D47*$I$11))/12 -> 41.43222825 | E35: 41.95931201 | F35: 47.95222606 | G35: 51.12090829 | H35: 0.2338440496 | I35: 0.2183447687 | J35: 0.06607998195 | M35: ='Res Bill Impact'!P18 -> Basic Bundled
M36: ='Res Bill Impact'!P19 -> 2025 Recorded Data - Average Monthly Usage - ALL-BASIC th
B37: Basic Bundled Residential Monthly Average Bills - Summer | M37: Climate Zone | N37: Summer | O37: Winter | P37: Summer | Q37: Winter
D38: =BOYEffectiveRateDate -> 2026-01-01 | E38: =CurrentEffectiveRateDate -> 2026-01-01 | F38: =$D$2&" Authorized" -> 2026 Authorized | G38: =$D$2&" w/Pending" -> 2026 w/Pending | H38: =CONCATENATE("% Change over ",TEXT(BOYEffectiveRateDate,"m/d/yyyy")) -> % Change over 1/1/2026 | I38: =CONCATENATE("% Change over ",TEXT(CurrentEffectiveRateDate,"m/d/yyyy")) -> % Change over 1/1/2026 | J38: % Change over Authorized | N38: Non-CARE | P38: CARE
B39: Non-CARE | D39: =IF($D$3="All",'Res Bill Impact'!$C$47,(VLOOKUP($D$3,'Res Bill Impact'!$B$43:$J$46,2,FALSE))) -> 30.70822535 | E39: =IF($D$3="All",'Res Bill Impact'!$E$47,(VLOOKUP($D$3,'Res Bill Impact'!$B$43:$J$46,4,FALSE))) -> 30.70822535 | F39: =IF($D$3="All",'Res Bill Impact'!$G$47,(VLOOKUP($D$3,'Res Bill Impact'!$B$43:$J$46,6,FALSE))) -> 35.37326605 | G39: =IF($D$3="All",'Res Bill Impact'!$I$47,(VLOOKUP($D$3,'Res Bill Impact'!$B$43:$J$46,8,FALSE))) -> 37.71094578 | H39: =$G39/D39-1 -> 0.2280405446 | I39: =$G39/E39-1 -> 0.2280405446 | J39: =$G39/F39-1 -> 0.06608605862 | M39: =Zones -> SDG&E | N39: ='Res Bill Impact'!Q22 -> 15 | O39: ='Res Bill Impact'!R22 -> 29 | P39: ='Res Bill Impact'!S22 -> 14.83333333 | Q39: ='Res Bill Impact'!T22 -> 24.66666667
B40: CARE | D40: =IF($D$3="All",'Res Bill Impact'!$C$57,(VLOOKUP($D$3,'Res Bill Impact'!$B$53:$J$56,2,FALSE))) -> 23.98114509 | E40: =IF($D$3="All",'Res Bill Impact'!$E$57,(VLOOKUP($D$3,'Res Bill Impact'!$B$53:$J$56,4,FALSE))) -> 23.98114509 | F40: =IF($D$3="All",'Res Bill Impact'!$G$57,(VLOOKUP($D$3,'Res Bill Impact'!$B$53:$J$56,6,FALSE))) -> 27.67852049 | G40: =IF($D$3="All",'Res Bill Impact'!$I$57,(VLOOKUP($D$3,'Res Bill Impact'!$B$53:$J$56,8,FALSE))) -> 29.50696758 | H40: =$G40/D40-1 -> 0.2304236294 | I40: =$G40/E40-1 -> 0.2304236294 | J40: 0.06606014544 | M40: 0 | N40: ='Res Bill Impact'!Q23 -> 0 | O40: ='Res Bill Impact'!R23 -> 0 | P40: ='Res Bill Impact'!S23 -> 0 | Q40: ='Res Bill Impact'!T23 -> 0
B41: Total | D41: =D39*(1-'SAR and RAR'!$AC$15)+D40*'SAR and RAR'!$AC$15 -> 29.4884177 | E41: =E39*(1-'SAR and RAR'!$AC$15)+E40*'SAR and RAR'!$AC$15 -> 29.4884177 | F41: =F39*(1-'SAR and RAR'!$AC$15)+F40*'SAR and RAR'!$AC$15 -> 33.97799363 | G41: =G39*(1-'SAR and RAR'!$AC$15)+G40*'SAR and RAR'!$AC$15 -> 36.22333525 | H41: =$G41/D41-1 -> 0.2283919615 | I41: 0.2283919615 | J41: 0.06608223099 | M41: 0 | N41: ='Res Bill Impact'!Q24 -> 0 | O41: ='Res Bill Impact'!R24 -> 0 | P41: ='Res Bill Impact'!S24 -> 0 | Q41: ='Res Bill Impact'!T24 -> 0
M42: 0 | N42: ='Res Bill Impact'!Q25 -> 0 | O42: ='Res Bill Impact'!R25 -> 0 | P42: ='Res Bill Impact'!S25 -> 0 | Q42: ='Res Bill Impact'!T25 -> 0
B43: Basic Bundled Residential Monthly Average Bills - Winter
D44: =BOYEffectiveRateDate -> 2026-01-01 | E44: =CurrentEffectiveRateDate -> 2026-01-01 | F44: =$D$2&" Authorized" -> 2026 Authorized | G44: =$D$2&" w/Pending" -> 2026 w/Pending | H44: =CONCATENATE("% Change over ",TEXT(BOYEffectiveRateDate,"m/d/yyyy")) -> % Change over 1/1/2026 | I44: =CONCATENATE("% Change over ",TEXT(CurrentEffectiveRateDate,"m/d/yyyy")) -> % Change over 1/1/2026 | J44: % Change over Authorized
B45: Non-CARE | D45: =IF($D$3="All",'Res Bill Impact'!$D$47,(VLOOKUP($D$3,'Res Bill Impact'!$B$43:$J$46,3,FALSE))) -> 56.74835716 | E45: =IF($D$3="All",'Res Bill Impact'!$F$47,(VLOOKUP($D$3,'Res Bill Impact'!$B$43:$J$46,5,FALSE))) -> 56.74835716 | F45: =IF($D$3="All",'Res Bill Impact'!$H$47,(VLOOKUP($D$3,'Res Bill Impact'!$B$43:$J$46,7,FALSE))) -> 65.82271687 | G45: =IF($D$3="All",'Res Bill Impact'!$J$47,(VLOOKUP($D$3,'Res Bill Impact'!$B$43:$J$46,9,FALSE))) -> 70.17242878 | H45: =$G45/D45-1 -> 0.2365543656 | I45: =$G45/E45-1 -> 0.2365543656 | J45: 0.06608222992
B46: CARE | D46: =IF($D$3="All",'Res Bill Impact'!$D$57,(VLOOKUP($D$3,'Res Bill Impact'!$B$53:$J$56,3,FALSE))) -> 38.15046087 | E46: =IF($D$3="All",'Res Bill Impact'!$F$57,(VLOOKUP($D$3,'Res Bill Impact'!$B$53:$J$56,5,FALSE))) -> 43.96405741 | F46: =IF($D$3="All",'Res Bill Impact'!$H$57,(VLOOKUP($D$3,'Res Bill Impact'!$B$53:$J$56,7,FALSE))) -> 44.33535956 | G46: =IF($D$3="All",'Res Bill Impact'!$J$57,(VLOOKUP($D$3,'Res Bill Impact'!$B$53:$J$56,9,FALSE))) -> 47.26394984 | H46: 0.2388828014 | I46: 0.07505886906 | J46: 0.06605540817
B47: Total | D47: =D45*(1-'SAR and RAR'!$AC$15)+D46*'SAR and RAR'!$AC$15 -> 53.3760388 | E47: =E45*(1-'SAR and RAR'!$AC$15)+E46*'SAR and RAR'!$AC$15 -> 54.43020633 | F47: =F45*(1-'SAR and RAR'!$AC$15)+F46*'SAR and RAR'!$AC$15 -> 61.92645848 | G47: =G45*(1-'SAR and RAR'!$AC$15)+G46*'SAR and RAR'!$AC$15 -> 66.01848132 | H47: 0.23685614 | I47: 0.2129015445 | J47: 0.06607874794
B50: Basic Bundled Essential Use Residential Monthly Average Bills
D51: =BOYEffectiveRateDate -> 2026-01-01 | E51: =CurrentEffectiveRateDate -> 2026-01-01 | F51: =$D$2&" Authorized" -> 2026 Authorized | G51: =$D$2&" w/Pending" -> 2026 w/Pending | H51: =CONCATENATE("% Change over ",TEXT(BOYEffectiveRateDate,"m/d/yyyy")) -> % Change over 1/1/2026 | I51: =CONCATENATE("% Change over ",TEXT(CurrentEffectiveRateDate,"m/d/yyyy")) -> % Change over 1/1/2026 | J51: % Change over Authorized
B52: Essential Use - Non-CARE | D52: =((D58*$I$10)+(D64*$I$11))/12 -> 39.13679804 | E52: =((E58*$I$10)+(E64*$I$11))/12 -> 39.13679804 | F52: 45.39497715 | G52: 48.39477847 | H52: =$G52/D52-1 -> 0.2365543656 | I52: 0.2365543656 | J52: 0.06608222992
B53: Essential Use - CARE | D53: =((D59*$I$10)+(D65*$I$11))/12 -> 30.93280611 | E53: 34.35025813 | F53: 35.94758883 | G53: 38.32212149 | H53: 0.2388828014 | I53: 0.115628341 | J53: 0.06605540817
B54: Total | D54: =D52*(1-'SAR and RAR'!$AC$15)+D53*'SAR and RAR'!$AC$15 -> 37.64918502 | E54: =E52*(1-'SAR and RAR'!$AC$15)+E53*'SAR and RAR'!$AC$15 -> 38.26886458 | F54: =F52*(1-'SAR and RAR'!$AC$15)+F53*'SAR and RAR'!$AC$15 -> 43.68190162 | G54: =G52*(1-'SAR and RAR'!$AC$15)+G53*'SAR and RAR'!$AC$15 -> 46.56832426 | H54: =$G54/D54-1 -> 0.2369012563 | I54: =$G54/E54-1 -> 0.2168723782 | J54: 0.06607822752
B56: Basic Bundled Essential Use Residential Monthly Average Bills - Summer | M56: Monthly Tier 1 Baseline Allowance -BASIC (th)
D57: =BOYEffectiveRateDate -> 2026-01-01 | E57: =CurrentEffectiveRateDate -> 2026-01-01 | F57: =$D$2&" Authorized" -> 2026 Authorized | G57: =$D$2&" w/Pending" -> 2026 w/Pending | H57: =CONCATENATE("% Change over ",TEXT(BOYEffectiveRateDate,"m/d/yyyy")) -> % Change over 1/1/2026 | I57: =CONCATENATE("% Change over ",TEXT(CurrentEffectiveRateDate,"m/d/yyyy")) -> % Change over 1/1/2026 | J57: % Change over Authorized | M57: Climate Zone | N57: Summer 2021 | O57: Winter 2021
B58: Essential Use - Non-CARE | D58: =IF($D$3="All",'Res Bill Impact'!C67,(VLOOKUP($D$3,'Res Bill Impact'!$B$63:$J$66,2,FALSE))) -> 21.52523892 | E58: =IF($D$3="All",'Res Bill Impact'!E67,(VLOOKUP($D$3,'Res Bill Impact'!$B$63:$J$66,4,FALSE))) -> 21.52523892 | F58: =IF($D$3="All",'Res Bill Impact'!G67,(VLOOKUP($D$3,'Res Bill Impact'!$B$63:$J$66,6,FALSE))) -> 24.96723743 | G58: =IF($D$3="All",'Res Bill Impact'!I67,(VLOOKUP($D$3,'Res Bill Impact'!$B$63:$J$66,8,FALSE))) -> 26.61712816 | H58: =$G58/D58-1 -> 0.2365543656 | I58: =$G58/E58-1 -> 0.2365543656 | J58: =$G58/F58-1 -> 0.06608222992 | M58: =Zones -> SDG&E | N58: ='Res Bill Impact'!I22 -> 11 | O58: ='Res Bill Impact'!J22 -> 29
B59: Essential Use - CARE | D59: =IF($D$3="All",'Res Bill Impact'!C77,(VLOOKUP($D$3,'Res Bill Impact'!$B$73:$J$76,2,FALSE))) -> 17.01304336 | E59: =IF($D$3="All",'Res Bill Impact'!E77,(VLOOKUP($D$3,'Res Bill Impact'!$B$73:$J$76,4,FALSE))) -> 17.01304336 | F59: =IF($D$3="All",'Res Bill Impact'!G77,(VLOOKUP($D$3,'Res Bill Impact'!$B$73:$J$76,6,FALSE))) -> 19.77117386 | G59: =IF($D$3="All",'Res Bill Impact'!I77,(VLOOKUP($D$3,'Res Bill Impact'!$B$73:$J$76,8,FALSE))) -> 21.07716682 | H59: =$G59/D59-1 -> 0.2388828014 | I59: 0.2388828014 | J59: 0.06605540817 | M59: 0 | N59: ='Res Bill Impact'!I23 -> 0 | O59: ='Res Bill Impact'!J23 -> 0
B60: Total | D60: =D58*(1-'SAR and RAR'!$AC$15)+D59*'SAR and RAR'!$AC$15 -> 20.70705176 | E60: =E58*(1-'SAR and RAR'!$AC$15)+E59*'SAR and RAR'!$AC$15 -> 20.70705176 | F60: =F58*(1-'SAR and RAR'!$AC$15)+F59*'SAR and RAR'!$AC$15 -> 24.02504589 | G60: =G58*(1-'SAR and RAR'!$AC$15)+G59*'SAR and RAR'!$AC$15 -> 25.61257834 | H60: =$G60/D60-1 -> 0.2369012563 | I60: =$G60/E60-1 -> 0.2369012563 | J60: 0.06607822752 | M60: 0 | N60: ='Res Bill Impact'!I24 -> 0 | O60: ='Res Bill Impact'!J24 -> 0
M61: 0 | N61: ='Res Bill Impact'!I25 -> 0 | O61: ='Res Bill Impact'!J25 -> 0
B62: Basic Bundled Essential Use Residential Monthly Average Bills - Winter
D63: =BOYEffectiveRateDate -> 2026-01-01 | E63: =CurrentEffectiveRateDate -> 2026-01-01 | F63: =$D$2&" Authorized" -> 2026 Authorized | G63: =$D$2&" w/Pending" -> 2026 w/Pending | H63: =CONCATENATE("% Change over ",TEXT(BOYEffectiveRateDate,"m/d/yyyy")) -> % Change over 1/1/2026 | I63: =CONCATENATE("% Change over ",TEXT(CurrentEffectiveRateDate,"m/d/yyyy")) -> % Change over 1/1/2026 | J63: % Change over Authorized
B64: Essential Use - Non-CARE | D64: =IF($D$3="All",'Res Bill Impact'!D67,(VLOOKUP($D$3,'Res Bill Impact'!$B$63:$J$66,3,FALSE))) -> 56.74835716 | E64: =IF($D$3="All",'Res Bill Impact'!F67,(VLOOKUP($D$3,'Res Bill Impact'!$B$63:$J$66,5,FALSE))) -> 56.74835716 | F64: =IF($D$3="All",'Res Bill Impact'!H67,(VLOOKUP($D$3,'Res Bill Impact'!$B$63:$J$66,7,FALSE))) -> 65.82271687 | G64: =IF($D$3="All",'Res Bill Impact'!J67,(VLOOKUP($D$3,'Res Bill Impact'!$B$63:$J$66,9,FALSE))) -> 70.17242878 | H64: =$G64/D64-1 -> 0.2365543656 | I64: =$G64/E64-1 -> 0.2365543656 | J64: =$G64/F64-1 -> 0.06608222992
B65: Essential Use - CARE | D65: =IF($D$3="All",'Res Bill Impact'!D77,(VLOOKUP($D$3,'Res Bill Impact'!$B$73:$J$76,3,FALSE))) -> 44.85256886 | E65: =IF($D$3="All",'Res Bill Impact'!F77,(VLOOKUP($D$3,'Res Bill Impact'!$B$73:$J$76,5,FALSE))) -> 51.6874729 | F65: =IF($D$3="All",'Res Bill Impact'!H77,(VLOOKUP($D$3,'Res Bill Impact'!$B$73:$J$76,7,FALSE))) -> 52.12400381 | G65: =IF($D$3="All",'Res Bill Impact'!J77,(VLOOKUP($D$3,'Res Bill Impact'!$B$73:$J$76,9,FALSE))) -> 55.56707616 | H65: =$G65/D65-1 -> 0.2388828014 | I65: 0.07505886906 | J65: 0.06605540817
B66: Total | D66: =D64*(1-'SAR and RAR'!$AC$15)+D65*'SAR and RAR'!$AC$15 -> 54.59131828 | E66: =E64*(1-'SAR and RAR'!$AC$15)+E65*'SAR and RAR'!$AC$15 -> 55.8306774 | F66: =F64*(1-'SAR and RAR'!$AC$15)+F65*'SAR and RAR'!$AC$15 -> 63.33875735 | G66: =G64*(1-'SAR and RAR'!$AC$15)+G65*'SAR and RAR'!$AC$15 -> 67.52407017 | H66: 0.2369012563 | I66: 0.2094438634 | J66: 0.06607822752
B69: Basic Bundled Typical Residential Monthly Average Bills
D70: =BOYEffectiveRateDate -> 2026-01-01 | E70: =CurrentEffectiveRateDate -> 2026-01-01 | F70: =$D$2&" Authorized" -> 2026 Authorized | G70: =$D$2&" w/Pending" -> 2026 w/Pending | H70: =CONCATENATE("% Change over ",TEXT(BOYEffectiveRateDate,"m/d/yyyy")) -> % Change over 1/1/2026 | I70: =CONCATENATE("% Change over ",TEXT(CurrentEffectiveRateDate,"m/d/yyyy")) -> % Change over 1/1/2026 | J70: % Change over Authorized
B71: 5-Year Average Usage - Non-CARE | D71: =((D77*$I$10)+(D83*$I$11))/12 -> 47.69032018 | E71: =((E77*$I$10)+(E83*$I$11))/12 -> 47.69032018 | F71: 55.08770586 | G71: 58.72815045 | H71: =$G71/D71-1 -> 0.2314480219 | I71: 0.2314480219 | J71: 0.06608451991
C72: 5-Year Average Usage - CARE | D72: =((D78*$I$10)+(D84*$I$11))/12 -> 32.31217942 | E72: 35.42067726 | F72: 37.45748776 | G72: 39.93182151 | H72: =$G72/D72-1 -> 0.2358133133 | I72: =$G72/E72-1 -> 0.1273590626 | J72: =$G72/F72-1 -> 0.06605711963
B73: Total | D73: =((D79*$I$10)+(D85*$I$11))/12 -> 44.90183349 | E73: 45.46549102 | F73: 51.89085461 | G73: 55.31985071 | H73: 0.2320176353 | I73: 0.2167437209 | J73: 0.06608093343 | M73: ='Res Bill Impact'!P27 -> Typical Bundled
M74: ='Res Bill Impact'!P28 -> 2021-2025 Recorded Data - Average Monthly Usage - ALL-BASIC th
B75: Basic Bundled Typical Residential Monthly Average Bills - Summer | M75: Climate Zone | N75: Summer | O75: Winter | P75: Summer | Q75: Winter
D76: =BOYEffectiveRateDate -> 2026-01-01 | E76: =CurrentEffectiveRateDate -> 2026-01-01 | F76: =$D$2&" Authorized" -> 2026 Authorized | G76: =$D$2&" w/Pending" -> 2026 w/Pending | H76: =CONCATENATE("% Change over ",TEXT(BOYEffectiveRateDate,"m/d/yyyy")) -> % Change over 1/1/2026 | I76: =CONCATENATE("% Change over ",TEXT(CurrentEffectiveRateDate,"m/d/yyyy")) -> % Change over 1/1/2026 | J76: % Change over Authorized | N76: Non-CARE | P76: CARE
B77: 5-Year Average Usage - Non-CARE | D77: =IF($D$3="All",'Res Bill Impact'!C87,(VLOOKUP($D$3,'Res Bill Impact'!$B$83:$J$86,2,FALSE))) -> 31.55249314 | E77: =IF($D$3="All",'Res Bill Impact'!E87,(VLOOKUP($D$3,'Res Bill Impact'!$B$83:$J$86,4,FALSE))) -> 31.55249314 | F77: =IF($D$3="All",'Res Bill Impact'!G87,(VLOOKUP($D$3,'Res Bill Impact'!$B$83:$J$86,6,FALSE))) -> 36.32997821 | G77: =IF($D$3="All",'Res Bill Impact'!I87,(VLOOKUP($D$3,'Res Bill Impact'!$B$83:$J$86,8,FALSE))) -> 38.73089207 | H77: =$G77/D77-1 -> 0.2275065521 | I77: 0.2275065521 | J77: 0.06608630053 | M77: =Zones -> SDG&E | N77: ='Res Bill Impact'!Q31 -> 15.36775304 | O77: ='Res Bill Impact'!R31 -> 32.0838726 | P77: ='Res Bill Impact'!S31 -> 14.74835755 | Q77: ='Res Bill Impact'!T31 -> 26.37825982
C78: 5-Year Average Usage - CARE | D78: =IF($D$3="All",'Res Bill Impact'!C97,(VLOOKUP($D$3,'Res Bill Impact'!$B$93:$J$96,2,FALSE))) -> 23.82667903 | E78: =IF($D$3="All",'Res Bill Impact'!E97,(VLOOKUP($D$3,'Res Bill Impact'!$B$93:$J$96,4,FALSE))) -> 23.82667903 | F78: =IF($D$3="All",'Res Bill Impact'!G97,(VLOOKUP($D$3,'Res Bill Impact'!$B$93:$J$96,6,FALSE))) -> 27.50323363 | G78: =IF($D$3="All",'Res Bill Impact'!I97,(VLOOKUP($D$3,'Res Bill Impact'!$B$93:$J$96,8,FALSE))) -> 29.32009916 | H78: =$G78/D78-1 -> 0.2305575245 | I78: =$G78/E78-1 -> 0.2305575245 | J78: =$G78/F78-1 -> 0.06606006995 | M78: 0 | N78: ='Res Bill Impact'!Q32 -> 0 | O78: ='Res Bill Impact'!R32 -> 0 | P78: ='Res Bill Impact'!S32 -> 0 | Q78: ='Res Bill Impact'!T32 -> 0
B79: Total | D79: =D77*(1-'SAR and RAR'!$AC$15)+D78*'SAR and RAR'!$AC$15 -> 30.15158713 | E79: =E77*(1-'SAR and RAR'!$AC$15)+E78*'SAR and RAR'!$AC$15 -> 30.15158713 | F79: =F77*(1-'SAR and RAR'!$AC$15)+F78*'SAR and RAR'!$AC$15 -> 34.72944273 | G79: =G77*(1-'SAR and RAR'!$AC$15)+G78*'SAR and RAR'!$AC$15 -> 37.02445231 | H79: 0.2279437282 | I79: 0.2279437282 | J79: 0.06608253385 | M79: 0 | N79: ='Res Bill Impact'!Q33 -> 0 | O79: ='Res Bill Impact'!R33 -> 0 | P79: ='Res Bill Impact'!S33 -> 0 | Q79: ='Res Bill Impact'!T33 -> 0
M80: 0 | N80: ='Res Bill Impact'!Q34 -> 0 | O80: ='Res Bill Impact'!R34 -> 0 | P80: ='Res Bill Impact'!S34 -> 0 | Q80: ='Res Bill Impact'!T34 -> 0
B81: Basic Bundled Typical Residential Monthly Average Bills - Winter
D82: =BOYEffectiveRateDate -> 2026-01-01 | E82: =CurrentEffectiveRateDate -> 2026-01-01 | F82: =$D$2&" Authorized" -> 2026 Authorized | G82: =$D$2&" w/Pending" -> 2026 w/Pending | H82: =CONCATENATE("% Change over ",TEXT(BOYEffectiveRateDate,"m/d/yyyy")) -> % Change over 1/1/2026 | I82: =CONCATENATE("% Change over ",TEXT(CurrentEffectiveRateDate,"m/d/yyyy")) -> % Change over 1/1/2026 | J82: % Change over Authorized
B83: 5-Year Average Usage - Non-CARE | D83: =IF($D$3="All",'Res Bill Impact'!D87,(VLOOKUP($D$3,'Res Bill Impact'!$B$83:$J$86,3,FALSE))) -> 63.82814722 | E83: =IF($D$3="All",'Res Bill Impact'!F87,(VLOOKUP($D$3,'Res Bill Impact'!$B$83:$J$86,5,FALSE))) -> 63.82814722 | F83: =IF($D$3="All",'Res Bill Impact'!H87,(VLOOKUP($D$3,'Res Bill Impact'!$B$83:$J$86,7,FALSE))) -> 73.84543351 | G83: =IF($D$3="All",'Res Bill Impact'!J87,(VLOOKUP($D$3,'Res Bill Impact'!$B$83:$J$86,9,FALSE))) -> 78.72540884 | H83: =$G83/D83-1 -> 0.2333964288 | I83: 0.2333964288 | J83: 0.06608364389
C84: 5-Year Average Usage - CARE | D84: =IF($D$3="All",'Res Bill Impact'!D97,(VLOOKUP($D$3,'Res Bill Impact'!$B$93:$J$96,3,FALSE))) -> 40.79767982 | E84: =IF($D$3="All",'Res Bill Impact'!F97,(VLOOKUP($D$3,'Res Bill Impact'!$B$93:$J$96,5,FALSE))) -> 47.01467549 | F84: =IF($D$3="All",'Res Bill Impact'!H97,(VLOOKUP($D$3,'Res Bill Impact'!$B$93:$J$96,7,FALSE))) -> 47.4117419 | G84: =IF($D$3="All",'Res Bill Impact'!J97,(VLOOKUP($D$3,'Res Bill Impact'!$B$93:$J$96,9,FALSE))) -> 50.54354387 | H84: =$G84/D84-1 -> 0.2388828014 | I84: =$G84/E84-1 -> 0.07505886906 | J84: =$G84/F84-1 -> 0.06605540817
B85: Total | D85: =D83*(1-'SAR and RAR'!$AC$15)+D84*'SAR and RAR'!$AC$15 -> 59.65207985 | E85: =E83*(1-'SAR and RAR'!$AC$15)+E84*'SAR and RAR'!$AC$15 -> 60.77939491 | F85: =F83*(1-'SAR and RAR'!$AC$15)+F84*'SAR and RAR'!$AC$15 -> 69.05226648 | G85: =G83*(1-'SAR and RAR'!$AC$15)+G84*'SAR and RAR'!$AC$15 -> 73.61524912 | H85: 0.2340768219 | I85: 0.2111875945 | J85: 0.06608012851

Sheet Authorized Rev Req
A2: Annual Period 2025
A3: Reporting Date: Quarter Ended March 31
B5: Revenue Requirement Date: | C5: 2022-01-01 | D5: 2023-01-01 | E5: 2023-03-01 | F5: 2023-08-01 | G5: 2023-11-01 | H5: 2024-01-01 | I5: 2024-07-01 | J5: 2024-10-01 | K5: 2025-01-01 | L5: 2025-02-01 | M5: 2025-07-01 | N5: 2025-09-01 | O5: 2025-10-01 | P5: 2026-01-01
B6: Advice Letter: | C6: AL 3046-G | D6: AL 3149-G | E6: AL 3163-G | F6: AL 3213-G | G6: AL 3244-G | H6: AL 3261-G | I6: AL 3312-G | J6: AL-3345-G | K6: AL-3383-G | L6: AL-3392-G-A | M6: AL-3431-G | N6: AL-3447-G | O6: AL-3457-G | P6: AL-3438-G
A7: Filing Description | B7: Authority for Revenue Requirement as of 10/01/2025 | C7: Authorized Revenue Requirement ($000) | D7: Authorized Revenue Requirement ($000) | E7: Authorized Revenue Requirement ($000) | F7: Authorized Revenue Requirement ($000) | G7: Authorized Revenue Requirement ($000) | H7: Authorized Revenue Requirement ($000) | I7: Authorized Revenue Requirement ($000) | J7: Authorized Revenue Requirement ($000) | K7: Authorized Revenue Requirement ($000) | L7: Authorized Revenue Requirement ($000) | M7: Authorized Revenue Requirement ($000) | N7: Authorized Revenue Requirement ($000) | O7: Authorized Revenue Requirement ($000) | P7: Authorized Revenue Requirement ($000) | Q7: Revenue Recovery Mechanism | R7: Balancing Account
A8: Safety Affordability Reliability Proceedings
A9: Total Allocated Base Margin | B9: D.24-12-074 | C9: 412393.9278 | D9: 412992.2744 | E9: 412992.2744 | F9: 412992.2744 | G9: 412992.2744 | H9: 417772.1395 | I9: 417344.7414 | J9: 417344.7414 | K9: 413132.5854 | L9: 475212.7363 | M9: 475212.7363 | N9: 475212.7361 | O9: 475212.7361 | P9: 491182.1196 | Q9: Allocated Base Margin | R9: N
A10: SCG Transport excl Core Storge & Load Balance $000 | B10: D.24-12-074 | C10: 10101.54873 | D10: 18927.30151 | E10: 18927.30151 | F10: 19163.89443 | G10: 16390.05907 | H10: 59110.52143 | I10: 59221.34654 | J10: 59221.22817 | K10: 21557.26617 | L10: 24405.13487 | M10: 24405.13487 | N10: 27312.8884 | O10: 26976.48401 | P10: 28089.39082 | Q10: ECPT | R10: N
A11: SCG Core Seasonal Storage | B11: D.24-12-074 | C11: 14374.70092 | D11: 18907.65713 | E11: 18907.65713 | F11: 18907.65713 | G11: 17001.41011 | H11: 17001.41011 | I11: 17001.41011 | J11: 17001.41011 | K11: 17001.41011 | L11: 22813.15835 | M11: 22813.15835 | N11: 22279.64241 | O11: 22279.64241 | P11: 23067.97357 | Q11: Seasonal Storage | R11: N
A12: SCG Load Balancing Allocated to ALL SDGE $000 | B12: D.24-07-009, | C12: 9102.083783 | D12: 11569.31898 | E12: 11569.31898 | F12: 11569.31898 | G12: 11389.10272 | H12: 11389.10272 | I12: 11389.10272 | J12: 11389.10272 | K12: 11389.10272 | L12: 13289.97113 | M12: 13289.97113 | N12: 12979.16755 | O12: 12979.16755 | P12: 13438.41559 | Q12: ECPT | R12: N
A13: Pipeline Safety Enhancement Plan (PSEP) -Local T (subtracted from Base Margin and allocated here) | B13: D.19-09-051 | C13: 2576.6109 | D13: 2698.4484 | E13: 2698.4484 | F13: 2698.4484 | G13: 2698.4484 | H13: 2698.4484 | I13: 2698.4484 | J13: 2698.4484 | K13: 2698.4484 | L13: 1416.84732 | M13: 1416.84732 | N13: 1416.84732 | O13: 1416.84732 | P13: 1464.69246 | Q13: Local Transmission | R13: N
A14: LUAF | B14: D.24-07-009, AL 3383, AL 3392-G-A | C14: 3180.230322 | D14: 4359.515855 | E14: 4359.515855 | F14: 4359.515855 | G14: 4359.515855 | H14: 3607.524927 | I14: 3722.57939 | J14: 3722.57939 | K14: 3027.487009 | L14: 9159.293856 | M14: 9159.293856 | N14: 8658.318567 | O14: 8658.318567 | P14: 9677.43298 | Q14: 46% Res (LUAF, Other) | R14: N
A15: Company Use Gas: Other | B15: D.24-07-009, AL 3383, AL 3392-G-A | C15: 234.7866005 | D15: 321.8496159 | E15: 321.8496159 | F15: 321.8496159 | G15: 321.8496159 | H15: 266.332444 | I15: 274.8265603 | J15: 274.8265603 | K15: 223.5100326 | L15: 298.3601002 | M15: 298.3601002 | N15: 282.0410433 | O15: 282.0410433 | P15: 315.2382617 | Q15: ECPT | R15: N
A16: SDG&E PSEP - 2017 Forecast Application RevReq Capital Cost - Local Transmission | B16: D.24-07-009, AL 3383, AL 3392-G-A | C16: 52.10801562 | D16: 47.13168485 | E16: 47.13168485 | F16: 47.13168485 | G16: 47.13168485 | H16: 48.34878876 | I16: 48.34878876 | J16: 48.34878876 | K16: 43.89855417 | L16: 39.31358078 | M16: 39.31358078 | N16: 39.31358078 | O16: 39.31358078 | P16: 37.2684903 | Q16: Local Transmission | R16: N
A17: CFCA | B17: D.24-07-009, AL 3383, AL 3392-G-A, AL 6538 | C17: 37541.47962 | D17: 55563.79773 | E17: 55563.79773 | F17: 55563.79773 | G17: 55563.79773 | H17: 25794.18927 | I17: 25794.18927 | J17: 32720.48408 | K17: 75579.00012 | L17: 75648.13179 | M17: 75648.13179 | N17: 75648.13179 | O17: 68715.50154 | P17: 21078.92937 | Q17: CFCA | R17: Y
A18: CFCA -NGV only | B18: D.24-07-009, AL 3383, AL 3392-G-A | C18: -210.7232916 | D18: 3011.743206 | E18: 3011.743206 | F18: 3011.743206 | G18: 3011.743206 | H18: 2805.095065 | I18: 2805.095065 | J18: 2805.095065 | K18: 25.575265 | L18: 25.59865855 | M18: 25.59865855 | N18: 25.59865855 | O18: 25.59865855 | P18: -1668.072376 | Q18: Non-Residential | R18: Y
A19: CFCA - C&I shortfall only | B19: D.24-07-009, AL 3383, AL 3392-G-A | C19: 5444.026009 | D19: 40.920424 | E19: 40.920424 | F19: 40.920424 | G19: 40.920424 | H19: 37.8513922 | I19: 37.8513922 | J19: 37.8513922 | K19: 39.8974134 | L19: 39.93390733 | M19: 39.93390733 | N19: 39.93390733 | O19: 39.93390733 | P19: 0 | Q19: Non-Residential | R19: Y
A20: Hazardous Substance Cleanup Cost Acct HSCCA | B20: D.24-07-009, AL 3383, AL 3392-G-A | C20: 290.5117224 | D20: 122.761272 | E20: 122.761272 | F20: 122.761272 | G20: 122.761272 | H20: 72.6337526 | I20: 72.6337526 | J20: 72.6337526 | K20: 420.4573566 | L20: 420.8419465 | M20: 420.8419465 | N20: 420.8419465 | O20: 420.8419465 | P20: 87.30674381 | Q20: ECPT | R20: Y
A21: Master Meter Balancing Account (MMBA) | B21: D.24-07-009, AL 3383, AL 3392-G-A | C21: 10311.12029 | D21: 11907.84338 | E21: 11907.84338 | F21: 11907.84338 | G21: 11907.84338 | H21: 15931.34407 | I21: 15931.34407 | J21: 15931.34407 | K21: 23565.04917 | L21: 23586.60398 | M21: 23586.60398 | N21: 23586.60398 | O21: 23586.60398 | P21: 16316.08971 | Q21: EPAM | R21: Y
A22: PBOPBA | B22: D.24-07-009, AL 3383, AL 3392-G-A | C22: -623.5169218 | D22: -531.2391745 | E22: -531.2391745 | F22: -531.2391745 | G22: -531.2391745 | H22: -354.9846782 | I22: -354.9846782 | J22: -354.9846782 | K22: -417.3883248 | L22: -225.6405393 | M22: -225.6405393 | N22: -225.6405393 | O22: -225.6405393 | P22: 5199.373378 | Q22: EPAM | R22: Y
A23: Pension BA | B23: D.24-07-009, AL 3383, AL 3392-G-A | C23: -575.9313062 | D23: -298.791729 | E23: -298.791729 | F23: -298.791729 | G23: -298.791729 | H23: 51.15053 | I23: 51.15053 | J23: 51.15053 | K23: -5049.580322 | L23: -625.5381288 | M23: -625.5381288 | N23: -625.5381288 | O23: -625.5381288 | P23: 7663.47783 | Q23: EPAM | R23: Y
A24: Safety Enhancement Balancing Account - Local Transmission | B24: D.24-07-009, AL 3383, AL 3392-G-A | C24: 3036.463065 | D24: 3084.238556 | E24: 3084.238556 | F24: 3084.238556 | G24: 3084.238556 | H24: 3321.440476 | I24: 3321.440476 | J24: 3321.440476 | K24: 3360.988335 | L24: -884.13754 | M24: -884.13754 | N24: -884.13754 | O24: -884.13754 | P24: 1684.490612 | Q24: Local Transmission | R24: Y
A25: Safety Enhancement Balancing Account - Distribution | B25: D.24-07-009, AL 3383, AL 3392-G-A | C25: 38688.93341 | D25: 39079.21463 | E25: 39079.21463 | F25: 39079.21463 | G25: 39079.21463 | H25: 48957.41731 | I25: 49368.17838 | J25: 49368.17838 | K25: 48598.55603 | L25: 23688.77397 | M25: 23688.77397 | N25: 23688.77397 | O25: 23688.77397 | P25: 50453.41583 | Q25: Distribution | R25: Y
A26: Rewards & Penalties Bal Acct RPBA | B26: D.24-07-009, AL 3383, AL 3392-G-A | C26: -127.866075 | D26: 310.9952224 | E26: 310.9952224 | F26: 310.9952224 | G26: 310.9952224 | H26: -119.6922402 | I26: -119.6922402 | J26: -119.6922402 | K26: -51.15053 | L26: -51.19731709 | M26: -51.19731709 | N26: -51.19731709 | O26: -51.19731709 | P26: -53.41118445 | Q26: EPAM | R26: Y
A27: SGPMA - Rev Req for NEXT Year | B27: D.24-07-009, AL 3383, AL 3392-G-A | C27: 1545.235943 | D27: 1545.359812 | E27: 1545.359812 | F27: 1545.359812 | G27: 1545.359812 | H27: 1696.151575 | I27: 1696.151575 | J27: 1696.151575 | K27: 0 | L27: 0 | M27: 0 | N27: 0 | O27: 0 | P27: 0 | Q27: ECPT | R27: Y
A28: Integrated Transmission Margin ITBA | B28: D.24-07-009, AL 3383, AL 3392-G-A | C28: 24.5502864 | D28: 704.3505167 | E28: 704.3505167 | F28: 704.3505167 | G28: 704.3505167 | H28: -289.5119998 | I28: -289.5119998 | J28: -289.5119998 | K28: 1889.500578 | L28: 1891.228893 | M28: 1891.228893 | N28: 1891.228893 | O28: 1891.228893 | P28: 2620.229452 | Q28: ECPT | R28: Y
A29: Liability Insurance Premium Balancing Account (LIPBA) | B29: D.24-07-009, AL 3383, AL 3392-G-A | C29: 3038.097942 | D29: 4285.391403 | E29: 4285.391403 | F29: 4285.391403 | G29: 4285.391403 | H29: 4093.065411 | I29: 4093.065411 | J29: 4093.065411 | K29: 4609.685764 | L29: -348.5141004 | M29: -348.5141004 | N29: -348.5141004 | O29: -348.5141004 | P29: -3149.205606 | Q29: EPAM | R29: Y
A30: Residential Uncollectible Balancing Account | B30: D.24-07-009, AL 3383, AL 3392-G-A | C30: 5629.176086 | D30: 10487.90467 | E30: 10487.90467 | F30: 10487.90467 | G30: 10487.90467 | H30: 26260.6821 | I30: 26260.6821 | J30: 26260.6821 | K30: 13910.89814 | L30: 13923.62236 | M30: 13923.62236 | N30: 13923.62236 | O30: 13923.62236 | P30: 23136.28711 | Q30: EPAM | R30: Y
A31: NFCA -Margin Only | B31: D.24-07-009, AL 3383, AL 3392-G-A | C31: -7128.789413 | D31: 3046.525567 | E31: 3046.525567 | F31: 3046.525567 | G31: 3046.525567 | H31: 4377.462357 | I31: 4377.462357 | J31: 4377.462357 | K31: 57.2885936 | L31: 57.34099514 | M31: 57.34099514 | N31: 57.34099514 | O31: 57.34099514 | P31: 1428.749184 | Q31: Non-Residential | R31: Y
A32: NFCA -Nonmargin Other | B32: D.24-07-009, AL 3383, AL 3392-G-A, AL 3447-G, AL 6538 | C32: 1705.221976 | D32: 794.8792362 | E32: 794.8792362 | F32: 794.8792362 | G32: 794.8792362 | H32: 6588.188264 | I32: 6588.188264 | J32: 6784.093254 | K32: 4107.387559 | L32: 4111.144563 | M32: 4111.144563 | N32: 4111.144563 | O32: 3915.060384 | P32: -287.5986855 | Q32: Non-Residential | R32: Y
A33: NFCA -Nonmargin SCG | B33: D.24-07-009, AL 3383, AL 3392-G-A | C33: -100.2470028 | D33: 132.991378 | E33: 132.991378 | F33: 132.991378 | G33: 132.991378 | H33: -1020.964579 | I33: -1020.964579 | J33: -1020.964579 | K33: 446.0326216 | L33: 446.4406051 | M33: 446.4406051 | N33: 446.4406051 | O33: 446.4406051 | P33: 1526.327309 | Q33: Non-Residential | R33: Y
A34: Minimum Bil/Customer Charge Revenue | B34: D.24-07-009, AL 3383, AL 3392-G-A | C34: 1816.44096 | D34: 1816.44096 | E34: 1816.44096 | F34: 1816.44096 | G34: 1816.44096 | H34: 1816.44096 | I34: 1816.44096 | J34: 1816.44096 | K34: 1816.44096 | L34: 1428.253 | M34: 1428.253 | N34: 1428.253 | O34: 1428.253 | P34: 1428.253 | Q34: All Residential | R34: N
A35: Borrego Revenue | B35: D.24-07-009, AL 3383, AL 3392-G-A | C35: 64.57174233 | D35: 64.57174233 | E35: 64.57174233 | F35: 64.57174233 | G35: 64.57174233 | H35: 64.57174233 | I35: 64.57174233 | J35: 64.57174233 | K35: 64.57174233 | L35: 59.43882455 | M35: 59.43882455 | N35: 59.43882455 | O35: 59.43882455 | P35: 59.43882455 | Q35: All Residential | R35: N
A36: Employee Discount (Schd GR) | B36: D.24-07-009, AL 3383, AL 3392-G-A | C36: -367.20947 | D36: -367.20947 | E36: -367.20947 | F36: -367.20947 | G36: -367.20947 | H36: -367.20947 | I36: -367.20947 | J36: -367.20947 | K36: -367.20947 | L36: -606.06691 | M36: -606.06691 | N36: -606.06691 | O36: -606.06691 | P36: -606.06691 | Q36: All Residential | R36: N
A37: SDFFD | B37: D.24-07-009, AL 3383, AL 3392-G-A | C37: 1986.901219 | D37: 2243.525796 | E37: 2243.525796 | F37: 2243.525796 | G37: 2235.276485 | H37: 2098.334067 | I37: 2112.139648 | J37: 2130.670784 | K37: 2213.627038 | L37: 2406.272172 | M37: 2406.272172 | N37: 2392.823418 | O37: 2374.539247 | P37: 2469.804065 | Q37: All Residential | R37: N
A38: Customer Information System Account - CISBA | B38: D.24-07-009, AL 3383, AL 3392-G-A | C38: =0 -> 0 | D38: 28619.67293 | E38: 28619.67293 | F38: 28619.67293 | G38: 28619.67293 | H38: 0 | I38: 0 | J38: 0 | K38: 0 | L38: 0 | M38: 0 | N38: 0 | O38: 0 | P38: 0 | Q38: EPAM | R38: Y
A39: Transition, Stabilization and OCM Balancing Account - TSOBA-G | B39: AL 3039-G, D.24-07-009, AL 3383, AL 3392-G-A | C39: =0 -> 0 | D39: 10830.8434 | E39: 10830.8434 | F39: 10830.8434 | G39: 10830.8434 | H39: 0 | I39: 0 | J39: 0 | K39: 0 | L39: 0 | M39: 0 | N39: 0 | O39: 0 | P39: 0 | Q39: EPAM | R39: Y
A40: Percentage of Income Payment Plan Balancing Account (PIPPBA) | B40: D. 21-10-012, D.24-07-009, AL 3383, AL 3392-G-A | C40: 0 | D40: 0 | E40: 0 | F40: 0 | G40: 0 | H40: 113.5541766 | I40: 113.5541766 | J40: 113.5541766 | K40: 211.7631942 | L40: 211.9568928 | M40: 211.9568928 | N40: 211.9568928 | O40: 211.9568928 | P40: 1832.414482 | Q40: ECPT | R40: Y
A41: Gain/Loss on Sale Memo Acct GLOSMA | B41: D.24-07-009, AL 3383, AL 3392-G-A | C41: 0 | D41: 0 | E41: 0 | F41: 0 | G41: 0 | H41: -1.0230106 | I41: -1.0230106 | J41: -1.0230106 | K41: 0 | L41: 0 | M41: 0 | N41: 0 | O41: 0 | P41: 0 | Q41: EPAM | R41: Y
A42: Transmission Integrity Management Program Memorandum Account (TIMPBA) | B42: AL 3312-G,D.24-07-009, AL 3383, AL 3392-G-A, AL 3431 | C42: 0 | D42: 0 | E42: 0 | F42: 0 | G42: 0 | H42: 0 | I42: 7280.408127 | J42: 7280.408127 | K42: 7280.408127 | L42: 7567.704272 | M42: 0 | N42: 0 | O42: 0 | P42: 0 | Q42: Local Transmission | R42: Y
A43: Cost of Capital Adjustment (Subtracted from Base Margin) | B43: D.24-12-074,AL 3392-G-A | C43: 0 | D43: 0 | E43: 0 | F43: 0 | G43: 0 | H43: 0 | I43: 0 | J43: 0 | K43: 0 | L43: -5707 | M43: -5707 | N43: -5707 | O43: -5707 | P43: -7916 | Q43: EPAM | R43: N
A44: General Rate Case Revenue Requirement Memorandum Account (GRCMA) | D44: 0 | E44: 0 | F44: 0 | G44: 0 | H44: 0 | I44: 0 | J44: 0 | K44: 0 | L44: 18532.626 | M44: 18532.626 | N44: 18532.626 | O44: 18532.626 | P44: 18415.51623 | Q44: EPAM | R44: Y
A45: GRCRRMA Sub allocation for AB32 Admin Fees | B45: D.24-12-074,AL 3392-G-A | C45: 0 | D45: 0 | E45: 0 | F45: 0 | G45: 0 | H45: 0 | I45: 0 | J45: 0 | K45: 0 | L45: 341.2493333 | M45: 341.2493333 | N45: 341.2493333 | O45: 341.2493333 | P45: 341.2493333 | Q45: ECPT | R45: Y
A46: GRCRRMA PSEP Local Transmission | B46: D.24-12-074,AL 3392-G-A | C46: 0 | D46: 0 | E46: 0 | F46: 0 | G46: 0 | H46: 0 | I46: 0 | J46: 0 | K46: 0 | L46: -679.73004 | M46: -679.73004 | N46: -679.73004 | O46: -679.73004 | P46: -728.4686342 | Q46: Local Transmission | R46: Y
A47: GRCRRMA PSEP Distribution | B47: D.24-12-074,AL 3392-G-A | C47: 0 | D47: 0 | E47: 0 | F47: 0 | G47: 0 | H47: 0 | I47: 0 | J47: 0 | K47: 0 | L47: 10178.70533 | M47: 10178.70533 | N47: 10178.70533 | O47: 10178.70533 | P47: 10114.38494 | Q47: Distribution | R47: Y
A48: Pipeline Safety Enhancement Plan (PSEP) -Distribution (subtracted from Base Margin and allocated here) | B48: D.19-09-051 | C48: 0 | D48: 0 | E48: 0 | F48: 0 | G48: 0 | H48: 0 | I48: 0 | J48: 0 | K48: 0 | L48: 15437.62577 | M48: 15437.62577 | N48: 15437.62577 | O48: 15437.62577 | P48: 15844.324 | Q48: Distribution | R48: N
A49: Distribution Integrity Management Program Memorandum Account (DIMPBA) | C49: 0 | D49: 0 | E49: 0 | F49: 0 | G49: 0 | H49: 0 | I49: 0 | J49: 0 | K49: 0 | L49: -14786.15752 | M49: -14786.15752 | N49: -14786.15752 | O49: -14786.15752 | P49: 0 | Q49: Distribution | R49: Y
A50: Concurrent Application System Balancing Account (CASBA) | P50: 4210.697953
A51: Subtotal Safety Affordability Reliability | C51: =SUM(C9:C49) -> 554004.4439 | D51: =SUM(D9:D49) -> 646320.229 | E51: =SUM(E9:E50) -> 646320.229 | F51: 646556.8219 | G51: 641688.274 | H51: 653820.0148 | I51: 661331.9652 | J51: 668472.5778 | K51: =SUM(K9:K42) -> 651385.5077 | L51: =SUM(L9:L50) -> 722724.3267 | M51: =SUM(M9:M50) -> 715156.6224 | N51: =SUM(N9:N50) -> 716689.3131 | O51: =SUM(O9:O50) -> 709205.9101 | P51: =SUM(P9:P50) -> 738774.4678
A55: Public Policy Proceedings
A56: Green House Gas Balancing Account (GHGBA) - End User Revenue Requirement | B56: D.20-02-045, AL 3149-G, AL 3129-G-A and AL 3129-G , 3247-G-B | C56: 62728.32324 | D56: 62672.95409 | E56: 62672.95409 | F56: 62672.95409 | G56: 62672.95409 | H56: 86283.78593 | I56: 86283.78593 | J56: 86283.78593 | K56: 87782.32317 | L56: 87862.61716 | M56: 87862.61716 | N56: 87862.61716 | O56: 87862.61716 | P56: 80558.90512 | Q56: GHG End User | R56: N
A57: Green House Gas Balancing Account (GHGBA) - LUAF Revenue Requirement | B57: D.20-02-045, AL 3149-G, AL 3129-G-A and AL 3129-G , 3247-G-B | C57: 830.7284995 | D57: 809.2332175 | E57: 809.2332175 | F57: 809.2332175 | G57: 809.2332175 | H57: 1046.127972 | I57: 1046.127972 | J57: 1046.127972 | K57: 1040.456168 | L57: 1041.407867 | M57: 1041.407867 | N57: 1041.407867 | O57: 1041.407867 | P57: 3600.428362 | Q57: 46% Res (LUAF, Other) | R57: N
A58: AB32 Fees (subtracted from base margin and allocated here) | B58: D.19-09-051 | C58: 528.8540862 | D58: 528.8964802 | E58: 528.8964802 | F58: 528.8964802 | G58: 528.8964802 | H58: 528.8964802 | I58: 528.8964802 | J58: 528.8964802 | K58: 528.8964802 | L58: 1085.117122 | M58: 1085.117122 | N58: 1085.117122 | O58: 1085.117122 | P58: 1120.607735 | Q58: 46% Res (LUAF, Other) | R58: N
A59: Green House Gas Balancing Account (GHGBA) - Company Gas Compressor | B59: D.20-02-045, AL 3149-G, AL 3129-G-A and AL 3129-G , 3247-G-B | C59: -138.095361 | D59: 1354.208041 | E59: 1354.208041 | F59: 1354.208041 | G59: 1354.208041 | H59: -27046.35424 | I59: -27046.35424 | J59: -27046.35424 | K59: -6342.66572 | L59: -6348.46732 | M59: -6348.46732 | N59: -6348.46732 | O59: -6348.46732 | P59: 4356.092947 | Q59: ECPT | R59: Y
A60: Green House Gas Balancing Account (GHGBA) - End User | B60: D.20-02-045, AL 3149-G, AL 3129-G-A and AL 3129-G , 3247-G-B | C60: -5290.586719 | D60: -7069.472736 | E60: -7069.472736 | F60: -7069.472736 | G60: -7069.472736 | H60: 17577.15682 | I60: 17577.15682 | J60: 17577.15682 | K60: 8589.196998 | L60: 8597.053486 | M60: 8597.053486 | N60: 8597.053486 | O60: 8597.053486 | P60: -33618.20559 | Q60: GHG End User | R60: Y
A61: Green House Gas Balancing Account (GHGBA) - LUAF | B61: D.20-02-045, AL 3149-G, AL 3129-G-A and AL 3129-G , 3247-G-B | C61: -11.2522146 | D61: -248.0416462 | E61: -248.0416462 | F61: -248.0416462 | G61: -248.0416462 | H61: -899.2263174 | I61: -899.2263174 | J61: -899.2263174 | K61: -1088.483278 | L61: -1089.478908 | M61: -1089.478908 | N61: -1089.478908 | O61: -1089.478908 | P61: -1076.440794 | Q61: 46% Res (LUAF, Other) | R61: Y
A62: FERC Settlement Proceeds MA | B62: D.20-02-045, AL 3149-G, AL 3129-G-A and AL 3129-G , 3247-G-B | C62: 1.0229286 | D62: 0 | E62: 0 | F62: 0 | G62: 0 | H62: 0 | I62: 0 | J62: 0 | K62: 0 | L62: 0 | M62: 0 | N62: 0 | O62: 0 | P62: 0 | Q62: Non-Residential | R62: Y
A63: New Environmental Regulation Balancing Account (NERBA) - Admin Fees Subaccount | B63: D.20-02-045, AL 3149-G, AL 3129-G-A and AL 3129-G , 3071-G-B, 3247-G-B | C63: 413.2631544 | D63: 2305.865892 | E63: 2305.865892 | F63: 2305.865892 | G63: 2305.865892 | H63: -801.0172998 | I63: -801.0172998 | J63: -801.0172998 | K63: 759.0738652 | L63: 0 | M63: 0 | N63: 0 | O63: 0 | P63: 0 | Q63: 46% Res (LUAF, Other) | R63: Y
A64: New Environmental Regulation Balancing Account (NERBA) - LDAR EPAM | B64: D.20-02-045, AL 3149-G, AL 3129-G-A and AL 3129-G ,AL 3071-G-B, 3247-G-B | C64: 105.3616458 | D64: 864.443957 | E64: 864.443957 | F64: 864.443957 | G64: 864.443957 | H64: 2678.241751 | I64: 2678.241751 | J64: 2678.241751 | K64: 3926.314683 | L64: 1117.032373 | M64: 1117.032373 | N64: 1117.032373 | O64: 1117.032373 | P64: 0 | Q64: EPAM | R64: Y
A65: TLS Adjustment | B65: D.20-02-045, AL 3149-G, AL 3129-G-A and AL 3129-G , 3247-G-B | C65: 6681.993182 | D65: -10406.77744 | E65: -10437.81056 | F65: -10411.00546 | G65: -10207.82818 | H65: -9118.614285 | I65: -8863.971146 | J65: -9300.986108 | K65: -5765.064282 | L65: -8113.305252 | M65: -8113.305252 | N65: -7484.739628 | O65: -7080.511457 | P65: -13441.43055 | Q65: Non-Residential | R65: N
A66: CSI Thermal Program memoradum Account | B66: D.20-02-045, AL 3149-G, AL 3129-G-A and AL 3129-G , 3247-G-B | C66: 806.0677368 | D66: 333.5014556 | E66: 333.5014556 | F66: 333.5014556 | G66: 333.5014556 | H66: 95.1399858 | I66: 95.1399858 | J66: 95.1399858 | K66: 150.3825582 | L66: 150.5201123 | M66: 150.5201123 | N66: 150.5201123 | O66: 150.5201123 | P66: 71.89967137 | Q66: 46% Res (LUAF, Other) | R66: Y
A67: Biomethane Cost Incentive Pgm Balancing Acct (BCIPBA) | B67: D. 16-12-043, AL 3129-G-A and AL 3129-G , 3247-G-B | C67: =0 -> 0 | D67: 2813.27915 | E67: 2813.27915 | F67: 2813.27915 | G67: 2813.27915 | H67: 37.8513922 | I67: 37.8513922 | J67: 37.8513922 | K67: -27.6212862 | L67: -27.64655123 | M67: -27.64655123 | N67: -27.64655123 | O67: -27.64655123 | P67: 0 | Q67: ECPT | R67: Y
A68: Biomethane Procurement and Pilot Costs Balancing Account (BPPCBA) - Program Admin Subaccount (EPAM) | B68: D.22-02-025, 3247-G-B | C68: 0 | D68: 0 | E68: 0 | F68: 0 | G68: 0 | H68: 29.6673074 | I68: 29.6673074 | J68: 29.6673074 | K68: 56.265583 | L68: 56.3170488 | M68: 56.3170488 | N68: 56.3170488 | O68: 56.3170488 | P68: 71.89967137 | Q68: EPAM | R68: y
A69: SDG&E NGLAPBA | B69: AL 3071-G, D.24-07-009, AL 3383, AL 3392-G-A | C69: 983.2214892 | D69: 734.7831749 | E69: 734.7831749 | F69: 143.9157346 | G69: 143.9157346 | H69: 666.3843293 | I69: 666.3843293 | J69: 666.3843293 | K69: 666.3843293 | L69: 666.9938672 | M69: 666.9938672 | N69: 666.9938672 | O69: 666.9938672 | P69: -553.3470608 | Q69: EPAM | R69: Y
A70: SDG&ENERBA - NGLAP Subacct | B70: AL 3071-G, D.24-07-009, AL 3383, AL 3392-G-A | C70: 1620.035133 | D70: 5725.637359 | E70: 5725.637359 | F70: 6792.859114 | G70: 6792.859114 | H70: 4950.435699 | I70: 4967.07272 | J70: 4967.07272 | K70: 4958.652935 | L70: 4963.188586 | M70: 4963.188586 | N70: 4963.188586 | O70: 4963.188586 | P70: -2114.076309 | Q70: EPAM | R70: Y
A72: PPPS Programs
A73: California Alternate Rates for Energy (CARE) - Funding | B73: AL 3137-G, D.21-06-015, 3245-G, 3462-G | C73: 25613.072 | D73: 22795.559 | E73: 22795.559 | F73: 22795.559 | G73: 22795.559 | H73: 21383.37754 | I73: 21383.37754 | J73: 21383.37754 | K73: 19135.75613 | L73: 19135.75613 | M73: 19135.75613 | N73: =M73 -> 19135.75613 | O73: =M73 -> 19135.75613 | P73: 22811.16457 | Q73: Public Purpose Programs | R73: N
A74: California Alternate Rates for Energy (CARE) - Admin Expenses | B74: AL 3137-G, D.21-06-015, 3245-G, 3462-G | C74: 727.283 | D74: 761.47 | E74: 761.47 | F74: 761.47 | G74: 761.47 | H74: 771.47048 | I74: 771.47048 | J74: 771.47048 | K74: 698.369 | L74: 698.369 | M74: 698.369 | N74: 698.369 | O74: =M74 -> 698.369 | P74: 743.891 | Q74: Public Purpose Programs | R74: N
A75: California Alternate Rates for Energy (CARE) - Amortization | B75: AL 3137-G, AL 3245-G, AL 3247-G-B, 3462-G | C75: 1000 | D75: -1000 | E75: -1000 | F75: -1000 | G75: -1000 | H75: 7000 | I75: 7000 | J75: 7000 | K75: 0 | L75: 0 | M75: 0 | N75: 0 | O75: =M75 -> 0 | P75: 0 | Q75: Public Purpose Programs | R75: Y
A76: Energy Savings Assistance (ESA/LIEE/DAP) | B76: AL 3137-G, D.21-06-015, AL 3247-G-B, 3462-G | C76: 8041.195 | D76: 10315.642 | E76: 10315.642 | F76: 10315.642 | G76: 10315.642 | H76: 7005.588 | I76: 7005.588 | J76: 7005.588 | K76: 14340.989 | L76: 14340.989 | M76: 14340.989 | N76: 14340.989 | O76: =M76 -> 14340.989 | P76: 15138.70932 | Q76: Public Purpose Programs | R76: N
A77: Energy Efficiency | B77: D.23-06-055 AL 3137-G, AL 3035-G, AL 3245-G, | C77: 15368.68175 | D77: 12089.109 | E77: 12089.109 | F77: 12089.109 | G77: 12089.109 | H77: 25981.63 | I77: 25981.63 | J77: 25981.63 | K77: 40192.257 | L77: =K77 -> 40192.257 | M77: =L77 -> 40192.257 | N77: 40192.257 | O77: =N77 -> 40192.257 | P77: 45917.59627 | Q77: Public Purpose Programs | R77: N
A78: RD&D | B78: AL 3137-G, AL 3245-G, 3462-G | C78: 1929.78072 | D78: 2278.96046 | E78: 2278.96046 | F78: 2278.96046 | G78: 2278.96046 | H78: 2183.73199 | I78: 2183.73199 | J78: 2183.73199 | K78: 1276.31427 | L78: 1276.31427 | M78: 1276.31427 | N78: 1276.31427 | O78: 1276.31427 | P78: 1245.41862 | Q78: Public Purpose Programs | R78: N
A79: Bureau Of Equalization BOE | B79: AL 3137-G, AL 3245-G, 3462-G | C79: 56.15999 | D79: 55.36833 | E79: 55.36833 | F79: 55.36833 | G79: 55.36833 | H79: 47.05335 | I79: 47.05335 | J79: 47.05335 | K79: 52.32888 | L79: 52.32888 | M79: 52.32888 | N79: 52.32888 | O79: 52.32888 | P79: 50.38756 | Q79: Public Purpose Programs | R79: N
A85: Subtotal Public Policy | C85: =SUM(C56:C84) -> 121995.1093 | D85: =SUM(D56:D84) -> 107714.6198 | E85: =SUM(E56:E84) -> 107683.5867 | F85: =SUM(F56:F84) -> 108186.7461 | G85: =SUM(G56:G84) -> 108389.9234 | H85: =SUM(H56:H79) -> 140401.3269 | I85: 140672.607 | J85: 140235.5921 | K85: 170930.1265 | L85: 165657.3639 | M85: 165657.3639 | N85: =SUM(N56:N79) -> 166285.9295 | O85: 166690.1577 | P85: 124883.5005
A88: Procurement
A89: Procurement | B89: D.97-07-061 | C89: 372042.5758 | D89: 475248.5763 | E89: 475248.5763 | F89: 475248.5763 | G89: 475248.5763 | H89: 259331.3198 | I89: 259331.3198 | J89: 259331.3198 | K89: 136165.985 | L89: 136165.985 | M89: 136165.985 | N89: 136165.985 | O89: 136165.985 | P89: =TotalCoreVolume*SetUp!K5 -> 164830.57 | Q89: Core Procurement
A95: Subtotal Procurement | C95: =SUM(C89:C94) -> 372042.5758 | D95: =SUM(D89:D94) -> 475248.5763 | E95: 475248.5763 | F95: 475248.5763 | G95: 475248.5763 | H95: 259331.3198 | I95: 259331.3198 | J95: 259331.3198 | K95: 136165.985 | L95: 136165.985 | M95: 136165.985 | N95: =SUM(N89:N94) -> 136165.985 | O95: 136165.985 | P95: 164830.57
A97: Total Authorized Revenue | C97: =C51+C85+C95 -> 1048042.129 | D97: 1229283.425 | E97: 1229252.392 | F97: 1229992.144 | G97: 1225326.774 | H97: 1053552.662 | I97: 1061335.892 | J97: 1068039.49 | K97: 958481.6192 | L97: 1024547.676 | M97: 1016979.971 | N97: =N51+N85+N95 -> 1019141.228 | O97: =O51+O85+O95 -> 1012062.053 | P97: =P51+P85+P95 -> 1028488.538

Sheet Incremental Rev Req
A2: ='Authorized Rev Req'!A2 -> Annual Period 2025
A3: Reporting Date: Quarter Ended December 31
A5: Current Revenue Requirement ($000): | B5: ='Authorized Rev Req'!O97 -> 1012062.053
A6: Current Revenue Requirement Effective: | B6: 2025-10-01
A7: Approved Application(s), Implemented Since Jan 1 or To Be Implemented | N7: Authorized
A8: Filing Description | B8: Proceeding | C8: Authority for Revenue Requirement | D8: Authorized Revenue Requirement with FF&U ($000) | E8: Revenue Recovery Mechanism | F8: Authorized Revenue Requirement with FF&U ($000) - Breakout by Year | K8: Existing or New Item (if existing, use delta from prior for rate impact) | O8: =TRANSPOSE(YearsForRateImpact) -> 2026 | P8: 2027 | Q8: 2028 | R8: 2029 | S8: 2030
A9: Safety Affordability Reliability Proceedings | D9: =B6 -> 2025-10-01 | F9: =TRANSPOSE(YearsForRateImpact) -> 2026 | G9: 2027 | H9: 2028 | I9: 2029 | J9: 2030 | N9: =RevRecoveryMechanisms -> Core Procurement | O9: =SUMIF($E$10:$E$88,N9,$F$10:$F$88) -> 164830.57 | P9: =SUMIF($E$10:$E$88,N9,$G$10:$G$88) -> 164830.57 | Q9: =SUMIF($E$10:$E$88,N9,$H$10:$H$88) -> 164830.57 | R9: =SUMIF($E$10:$E$88,N9,$I$10:$I$88) -> 164830.57 | S9: =SUMIF($E$10:$E$88,N9,$J$10:$J$88) -> 164830.57
A10: ='Authorized Rev Req'!A9 -> Total Allocated Base Margin | C10: ='Authorized Rev Req'!B9 -> D.24-12-074 | D10: =F10 -> 491182.1196 | E10: ='Authorized Rev Req'!Q9 -> Allocated Base Margin | F10: ='Authorized Rev Req'!P9 -> 491182.1196 | G10: =F10*1.03 -> 505917.5832 | H10: =G10 -> 505917.5832 | I10: =H10 -> 505917.5832 | J10: 505917.5832 | K10: Existing | N10: Allocated Base Margin | O10: 491182.1196 | P10: 505917.5832 | Q10: 505917.5832 | R10: 505917.5832 | S10: 505917.5832
A11: ='Authorized Rev Req'!A10 -> SCG Transport excl Core Storge & Load Balance $000 | C11: ='Authorized Rev Req'!B10 -> D.24-12-074 | D11: 28089.39082 | E11: ='Authorized Rev Req'!Q10 -> ECPT | F11: ='Authorized Rev Req'!P10 -> 28089.39082 | G11: =0 -> 0 | H11: =0 -> 0 | I11: =0 -> 0 | J11: 0 | K11: Existing | N11: Distribution | O11: 76412.12476 | P11: 0 | Q11: 0 | R11: 0 | S11: 0
A12: ='Authorized Rev Req'!A11 -> SCG Core Seasonal Storage | C12: ='Authorized Rev Req'!B11 -> D.24-12-074 | D12: 23067.97357 | E12: ='Authorized Rev Req'!Q11 -> Seasonal Storage | F12: ='Authorized Rev Req'!P11 -> 23067.97357 | G12: =0 -> 0 | H12: =0 -> 0 | I12: =0 -> 0 | J12: 0 | K12: Existing | N12: All Residential | O12: 3351.428979 | P12: 0 | Q12: 0 | R12: 0 | S12: 0
A13: ='Authorized Rev Req'!A12 -> SCG Load Balancing Allocated to ALL SDGE $000 | C13: ='Authorized Rev Req'!B12 -> D.24-07-009, | D13: 13438.41559 | E13: ='Authorized Rev Req'!Q12 -> ECPT | F13: ='Authorized Rev Req'!P12 -> 13438.41559 | G13: =0 -> 0 | H13: =0 -> 0 | I13: =0 -> 0 | J13: 0 | K13: Existing | N13: Local Transmission | O13: 2457.982928 | P13: 0 | Q13: 0 | R13: 0 | S13: 0
A14: ='Authorized Rev Req'!A13 -> Pipeline Safety Enhancement Plan (PSEP) -Local T (subtracted from Base Margin and allocated here) | C14: ='Authorized Rev Req'!B13 -> D.19-09-051 | D14: 1464.69246 | E14: ='Authorized Rev Req'!Q13 -> Local Transmission | F14: ='Authorized Rev Req'!P13 -> 1464.69246 | G14: =0 -> 0 | H14: =0 -> 0 | I14: =0 -> 0 | J14: 0 | K14: Existing | N14: Seasonal Storage | O14: 23067.97357 | P14: 0 | Q14: 0 | R14: 0 | S14: 0
A15: ='Authorized Rev Req'!A14 -> LUAF | C15: ='Authorized Rev Req'!B14 -> D.24-07-009, AL 3383, AL 3392-G-A | D15: 9677.43298 | E15: ='Authorized Rev Req'!Q14 -> 46% Res (LUAF, Other) | F15: ='Authorized Rev Req'!P14 -> 9677.43298 | G15: =0 -> 0 | H15: =0 -> 0 | I15: =0 -> 0 | J15: 0 | K15: Existing | N15: GHG End User | O15: 46940.69953 | P15: 0 | Q15: 0 | R15: 0 | S15: 0
A16: ='Authorized Rev Req'!A15 -> Company Use Gas: Other | C16: ='Authorized Rev Req'!B15 -> D.24-07-009, AL 3383, AL 3392-G-A | D16: 315.2382617 | E16: ='Authorized Rev Req'!Q15 -> ECPT | F16: ='Authorized Rev Req'!P15 -> 315.2382617 | G16: =0 -> 0 | H16: =0 -> 0 | I16: =0 -> 0 | J16: 0 | K16: Existing | N16: Public Purpose Programs | O16: 85907.16733 | P16: 85907.168 | Q16: 85907.168 | R16: 85907.168 | S16: 85907.168
A17: ='Authorized Rev Req'!A16 -> SDG&E PSEP - 2017 Forecast Application RevReq Capital Cost - Local Transmission | C17: ='Authorized Rev Req'!B16 -> D.24-07-009, AL 3383, AL 3392-G-A | D17: 37.2684903 | E17: ='Authorized Rev Req'!Q16 -> Local Transmission | F17: ='Authorized Rev Req'!P16 -> 37.2684903 | G17: =0 -> 0 | H17: =0 -> 0 | I17: =0 -> 0 | J17: 0 | K17: Existing | N17: - | O17: 0 | P17: 0 | Q17: 0 | R17: 0 | S17: 0
A18: ='Authorized Rev Req'!A17 -> CFCA | C18: ='Authorized Rev Req'!B17 -> D.24-07-009, AL 3383, AL 3392-G-A, AL 6538 | D18: 21078.92937 | E18: ='Authorized Rev Req'!Q17 -> CFCA | F18: ='Authorized Rev Req'!P17 -> 21078.92937 | G18: =0 -> 0 | H18: =0 -> 0 | I18: =0 -> 0 | J18: 0 | K18: Existing | N18: 46% Res (LUAF, Other) | O18: 13393.92795 | P18: 0 | Q18: 0 | R18: 0 | S18: 0
A19: ='Authorized Rev Req'!A18 -> CFCA -NGV only | C19: ='Authorized Rev Req'!B18 -> D.24-07-009, AL 3383, AL 3392-G-A | D19: -1668.072376 | E19: ='Authorized Rev Req'!Q18 -> Non-Residential | F19: ='Authorized Rev Req'!P18 -> -1668.072376 | G19: =0 -> 0 | H19: =0 -> 0 | I19: =0 -> 0 | J19: 0 | K19: Existing | N19: ECPT | O19: 51080.33763 | P19: 0 | Q19: 0 | R19: 0 | S19: 0
A20: ='Authorized Rev Req'!A19 -> CFCA - C&I shortfall only | C20: ='Authorized Rev Req'!B19 -> D.24-07-009, AL 3383, AL 3392-G-A | D20: 0 | E20: ='Authorized Rev Req'!Q19 -> Non-Residential | F20: ='Authorized Rev Req'!P19 -> 0 | G20: =0 -> 0 | H20: =0 -> 0 | I20: =0 -> 0 | J20: 0 | K20: Existing | N20: EPAM | O20: 57016.60377 | P20: 18646.06289 | Q20: 33104.18523 | R20: 36790.39206 | S20: 40179.65445
A21: ='Authorized Rev Req'!A20 -> Hazardous Substance Cleanup Cost Acct HSCCA | C21: ='Authorized Rev Req'!B20 -> D.24-07-009, AL 3383, AL 3392-G-A | D21: 87.30674381 | E21: ='Authorized Rev Req'!Q20 -> ECPT | F21: ='Authorized Rev Req'!P20 -> 87.30674381 | G21: =0 -> 0 | H21: =0 -> 0 | I21: =0 -> 0 | J21: 0 | K21: Existing | N21: CFCA | O21: 21078.92937 | P21: 0 | Q21: 0 | R21: 0 | S21: 0
A22: ='Authorized Rev Req'!A21 -> Master Meter Balancing Account (MMBA) | C22: ='Authorized Rev Req'!B21 -> D.24-07-009, AL 3383, AL 3392-G-A | D22: 16316.08971 | E22: ='Authorized Rev Req'!Q21 -> EPAM | F22: ='Authorized Rev Req'!P21 -> 16316.08971 | G22: 18646.06289 | H22: 33104.18523 | I22: 36790.39206 | J22: 40179.65445 | K22: Existing | L22: FFU | N22: Non-Residential | O22: -12442.02511 | P22: 0 | Q22: 0 | R22: 0 | S22: 0
A23: ='Authorized Rev Req'!A22 -> PBOPBA | C23: ='Authorized Rev Req'!B22 -> D.24-07-009, AL 3383, AL 3392-G-A | D23: 5199.373378 | E23: ='Authorized Rev Req'!Q22 -> EPAM | F23: ='Authorized Rev Req'!P22 -> 5199.373378 | G23: =0 -> 0 | H23: =0 -> 0 | I23: =0 -> 0 | J23: 0 | K23: Existing | L23: 1.023946342 | N23: Total | O23: =SUM(O9:O22) -> 1024277.84 | P23: =SUM(P9:P22) -> 775301.3841 | Q23: =SUM(Q9:Q22) -> 789759.5064 | R23: =SUM(R9:R22) -> 793445.7132 | S23: =SUM(S9:S22) -> 796834.9756
A24: ='Authorized Rev Req'!A23 -> Pension BA | C24: ='Authorized Rev Req'!B23 -> D.24-07-009, AL 3383, AL 3392-G-A | D24: 7663.47783 | E24: ='Authorized Rev Req'!Q23 -> EPAM | F24: ='Authorized Rev Req'!P23 -> 7663.47783 | G24: =0 -> 0 | H24: =0 -> 0 | I24: =0 -> 0 | J24: 0 | K24: Existing | N24: CPUC Fee | O24: =RegulatoryFee -> 0.0035
A25: ='Authorized Rev Req'!A24 -> Safety Enhancement Balancing Account - Local Transmission | C25: ='Authorized Rev Req'!B24 -> D.24-07-009, AL 3383, AL 3392-G-A | D25: 1684.490612 | E25: ='Authorized Rev Req'!Q24 -> Local Transmission | F25: ='Authorized Rev Req'!P24 -> 1684.490612 | G25: =0 -> 0 | H25: =0 -> 0 | I25: =0 -> 0 | J25: 0 | K25: Existing | N25: Check | O25: =O23-F89 -> 0 | P25: =P23-G89 -> 0 | Q25: =Q23-H89 -> 0 | R25: =R23-I89 -> 0 | S25: =S23-J89 -> 0
A26: ='Authorized Rev Req'!A25 -> Safety Enhancement Balancing Account - Distribution | C26: ='Authorized Rev Req'!B25 -> D.24-07-009, AL 3383, AL 3392-G-A | D26: 50453.41583 | E26: ='Authorized Rev Req'!Q25 -> Distribution | F26: ='Authorized Rev Req'!P25 -> 50453.41583 | G26: =0 -> 0 | H26: =0 -> 0 | I26: =0 -> 0 | J26: 0 | K26: Existing
A27: ='Authorized Rev Req'!A26 -> Rewards & Penalties Bal Acct RPBA | C27: ='Authorized Rev Req'!B26 -> D.24-07-009, AL 3383, AL 3392-G-A | D27: -53.41118445 | E27: ='Authorized Rev Req'!Q26 -> EPAM | F27: ='Authorized Rev Req'!P26 -> -53.41118445 | G27: =0 -> 0 | H27: =0 -> 0 | I27: =0 -> 0 | J27: 0 | K27: Existing
A28: ='Authorized Rev Req'!A27 -> SGPMA - Rev Req for NEXT Year | C28: ='Authorized Rev Req'!B27 -> D.24-07-009, AL 3383, AL 3392-G-A | D28: 0 | E28: ='Authorized Rev Req'!Q27 -> ECPT | F28: ='Authorized Rev Req'!P27 -> 0 | G28: =0 -> 0 | H28: =0 -> 0 | I28: =0 -> 0 | J28: 0 | K28: Existing
A29: ='Authorized Rev Req'!A28 -> Integrated Transmission Margin ITBA | C29: ='Authorized Rev Req'!B28 -> D.24-07-009, AL 3383, AL 3392-G-A | D29: 2620.229452 | E29: ='Authorized Rev Req'!Q28 -> ECPT | F29: ='Authorized Rev Req'!P28 -> 2620.229452 | G29: =0 -> 0 | H29: =0 -> 0 | I29: =0 -> 0 | J29: 0 | K29: Existing
A30: ='Authorized Rev Req'!A29 -> Liability Insurance Premium Balancing Account (LIPBA) | C30: ='Authorized Rev Req'!B29 -> D.24-07-009, AL 3383, AL 3392-G-A | D30: -3149.205606 | E30: ='Authorized Rev Req'!Q29 -> EPAM | F30: ='Authorized Rev Req'!P29 -> -3149.205606 | G30: =0 -> 0 | H30: =0 -> 0 | I30: =0 -> 0 | J30: 0 | K30: Existing
A31: ='Authorized Rev Req'!A30 -> Residential Uncollectible Balancing Account | C31: ='Authorized Rev Req'!B30 -> D.24-07-009, AL 3383, AL 3392-G-A | D31: 23136.28711 | E31: ='Authorized Rev Req'!Q30 -> EPAM | F31: ='Authorized Rev Req'!P30 -> 23136.28711 | G31: =0 -> 0 | H31: =0 -> 0 | I31: =0 -> 0 | J31: 0 | K31: Existing
A32: ='Authorized Rev Req'!A31 -> NFCA -Margin Only | C32: ='Authorized Rev Req'!B31 -> D.24-07-009, AL 3383, AL 3392-G-A | D32: 1428.749184 | E32: ='Authorized Rev Req'!Q31 -> Non-Residential | F32: ='Authorized Rev Req'!P31 -> 1428.749184 | G32: =0 -> 0 | H32: =0 -> 0 | I32: =0 -> 0 | J32: 0 | K32: Existing
A33: ='Authorized Rev Req'!A32 -> NFCA -Nonmargin Other | C33: ='Authorized Rev Req'!B32 -> D.24-07-009, AL 3383, AL 3392-G-A, AL 3447-G, AL 6538 | D33: -287.5986855 | E33: ='Authorized Rev Req'!Q32 -> Non-Residential | F33: ='Authorized Rev Req'!P32 -> -287.5986855 | G33: =0 -> 0 | H33: =0 -> 0 | I33: =0 -> 0 | J33: 0 | K33: Existing
A34: ='Authorized Rev Req'!A33 -> NFCA -Nonmargin SCG | C34: ='Authorized Rev Req'!B33 -> D.24-07-009, AL 3383, AL 3392-G-A | D34: 1526.327309 | E34: ='Authorized Rev Req'!Q33 -> Non-Residential | F34: ='Authorized Rev Req'!P33 -> 1526.327309 | G34: =0 -> 0 | H34: =0 -> 0 | I34: =0 -> 0 | J34: 0 | K34: Existing
A35: ='Authorized Rev Req'!A34 -> Minimum Bil/Customer Charge Revenue | C35: ='Authorized Rev Req'!B34 -> D.24-07-009, AL 3383, AL 3392-G-A | D35: 1428.253 | E35: ='Authorized Rev Req'!Q34 -> All Residential | F35: ='Authorized Rev Req'!P34 -> 1428.253 | G35: =0 -> 0 | H35: =0 -> 0 | I35: =0 -> 0 | J35: 0 | K35: Existing
A36: ='Authorized Rev Req'!A35 -> Borrego Revenue | C36: ='Authorized Rev Req'!B35 -> D.24-07-009, AL 3383, AL 3392-G-A | D36: 59.43882455 | E36: ='Authorized Rev Req'!Q35 -> All Residential | F36: ='Authorized Rev Req'!P35 -> 59.43882455 | G36: =0 -> 0 | H36: =0 -> 0 | I36: =0 -> 0 | J36: 0 | K36: Existing
A37: ='Authorized Rev Req'!A36 -> Employee Discount (Schd GR) | C37: ='Authorized Rev Req'!B36 -> D.24-07-009, AL 3383, AL 3392-G-A | D37: -606.06691 | E37: ='Authorized Rev Req'!Q36 -> All Residential | F37: ='Authorized Rev Req'!P36 -> -606.06691 | G37: =0 -> 0 | H37: =0 -> 0 | I37: =0 -> 0 | J37: 0 | K37: Existing
A38: ='Authorized Rev Req'!A37 -> SDFFD | C38: ='Authorized Rev Req'!B37 -> D.24-07-009, AL 3383, AL 3392-G-A | D38: 2469.804065 | E38: ='Authorized Rev Req'!Q37 -> All Residential | F38: ='Authorized Rev Req'!P37 -> 2469.804065 | G38: =0 -> 0 | H38: =0 -> 0 | I38: =0 -> 0 | J38: 0 | K38: Existing
A39: ='Authorized Rev Req'!A38 -> Customer Information System Account - CISBA | C39: ='Authorized Rev Req'!B38 -> D.24-07-009, AL 3383, AL 3392-G-A | D39: 0 | E39: ='Authorized Rev Req'!Q38 -> EPAM | F39: ='Authorized Rev Req'!P38 -> 0 | G39: =0 -> 0 | H39: =0 -> 0 | I39: =0 -> 0 | J39: 0 | K39: Existing
A40: ='Authorized Rev Req'!A39 -> Transition, Stabilization and OCM Balancing Account - TSOBA-G | C40: ='Authorized Rev Req'!B39 -> AL 3039-G, D.24-07-009, AL 3383, AL 3392-G-A | D40: 0 | E40: ='Authorized Rev Req'!Q39 -> EPAM | F40: ='Authorized Rev Req'!P39 -> 0 | G40: =0 -> 0 | H40: =0 -> 0 | I40: =0 -> 0 | J40: 0 | K40: Existing
A41: ='Authorized Rev Req'!A40 -> Percentage of Income Payment Plan Balancing Account (PIPPBA) | C41: ='Authorized Rev Req'!B40 -> D. 21-10-012, D.24-07-009, AL 3383, AL 3392-G-A | D41: 1832.414482 | E41: ECPT | F41: ='Authorized Rev Req'!P40 -> 1832.414482 | G41: 0 | H41: 0 | I41: 0 | J41: 0 | K41: Existing
A42: ='Authorized Rev Req'!A41 -> Gain/Loss on Sale Memo Acct GLOSMA | C42: ='Authorized Rev Req'!B41 -> D.24-07-009, AL 3383, AL 3392-G-A | D42: 0 | E42: EPAM | F42: ='Authorized Rev Req'!P41 -> 0 | G42: 0 | H42: 0 | I42: 0 | J42: 0 | K42: Existing
A43: ='Authorized Rev Req'!A42 -> Transmission Integrity Management Program Memorandum Account (TIMPBA) | C43: ='Authorized Rev Req'!B42 -> AL 3312-G,D.24-07-009, AL 3383, AL 3392-G-A, AL 3431 | D43: =F43 -> 0 | E43: Local Transmission | F43: ='Authorized Rev Req'!P42 -> 0 | G43: 0 | H43: 0 | I43: 0 | J43: 0 | K43: Existing
A44: ='Authorized Rev Req'!A43 -> Cost of Capital Adjustment (Subtracted from Base Margin) | C44: ='Authorized Rev Req'!B43 -> D.24-12-074,AL 3392-G-A | D44: =F44 -> -7916 | E44: EPAM | F44: ='Authorized Rev Req'!P43 -> -7916 | K44: New
A45: ='Authorized Rev Req'!A44 -> General Rate Case Revenue Requirement Memorandum Account (GRCMA) | C45: D.24-12-074,AL 3392-G-A | D45: =F45 -> 18415.51623 | E45: EPAM | F45: ='Authorized Rev Req'!P44 -> 18415.51623
A46: ='Authorized Rev Req'!A45 -> GRCRRMA Sub allocation for AB32 Admin Fees | C46: ='Authorized Rev Req'!B45 -> D.24-12-074,AL 3392-G-A | D46: =F46 -> 341.2493333 | E46: ECPT | F46: ='Authorized Rev Req'!P45 -> 341.2493333 | K46: New
A47: ='Authorized Rev Req'!A46 -> GRCRRMA PSEP Local Transmission | C47: ='Authorized Rev Req'!B46 -> D.24-12-074,AL 3392-G-A | D47: -728.4686342 | E47: Local Transmission | F47: ='Authorized Rev Req'!P46 -> -728.4686342 | K47: New
A48: ='Authorized Rev Req'!A47 -> GRCRRMA PSEP Distribution | C48: ='Authorized Rev Req'!B47 -> D.24-12-074,AL 3392-G-A | D48: =F48 -> 10114.38494 | E48: Distribution | F48: ='Authorized Rev Req'!P47 -> 10114.38494 | K48: New
A49: ='Authorized Rev Req'!A48 -> Pipeline Safety Enhancement Plan (PSEP) -Distribution (subtracted from Base Margin and allocated here) | C49: D.24-12-074,AL 3392-G-A | D49: =F49 -> 15844.324 | E49: Distribution | F49: ='Authorized Rev Req'!P48 -> 15844.324 | K49: New
A50: ='Authorized Rev Req'!A49 -> Distribution Integrity Management Program Memorandum Account (DIMPBA) | C50: D.24-12-074,AL 3392-G-A | D50: 0 | E50: Distribution | F50: ='Authorized Rev Req'!P49 -> 0 | K50: New
A52: ='Authorized Rev Req'!A55 -> Public Policy Proceedings
A53: ='Authorized Rev Req'!A56 -> Green House Gas Balancing Account (GHGBA) - End User Revenue Requirement | C53: ='Authorized Rev Req'!B56 -> D.20-02-045, AL 3149-G, AL 3129-G-A and AL 3129-G , 3247-G-B | D53: =F53 -> 80558.90512 | E53: ='Authorized Rev Req'!Q56 -> GHG End User | F53: ='Authorized Rev Req'!P56 -> 80558.90512 | G53: =0 -> 0 | H53: =0 -> 0 | I53: =0 -> 0 | J53: 0 | K53: Existing
A54: ='Authorized Rev Req'!A57 -> Green House Gas Balancing Account (GHGBA) - LUAF Revenue Requirement | C54: ='Authorized Rev Req'!B57 -> D.20-02-045, AL 3149-G, AL 3129-G-A and AL 3129-G , 3247-G-B | D54: 3600.428362 | E54: ='Authorized Rev Req'!Q57 -> 46% Res (LUAF, Other) | F54: ='Authorized Rev Req'!P57 -> 3600.428362 | G54: =0 -> 0 | H54: =0 -> 0 | I54: =0 -> 0 | J54: 0 | K54: Existing
A55: ='Authorized Rev Req'!A58 -> AB32 Fees (subtracted from base margin and allocated here) | C55: ='Authorized Rev Req'!B58 -> D.19-09-051 | D55: 1120.607735 | E55: ='Authorized Rev Req'!Q58 -> 46% Res (LUAF, Other) | F55: ='Authorized Rev Req'!P58 -> 1120.607735 | G55: =0 -> 0 | H55: =0 -> 0 | I55: =0 -> 0 | J55: 0 | K55: Existing
A56: ='Authorized Rev Req'!A59 -> Green House Gas Balancing Account (GHGBA) - Company Gas Compressor | C56: ='Authorized Rev Req'!B59 -> D.20-02-045, AL 3149-G, AL 3129-G-A and AL 3129-G , 3247-G-B | D56: 4356.092947 | E56: ='Authorized Rev Req'!Q59 -> ECPT | F56: ='Authorized Rev Req'!P59 -> 4356.092947 | G56: =0 -> 0 | H56: =0 -> 0 | I56: =0 -> 0 | J56: 0 | K56: Existing
A57: ='Authorized Rev Req'!A60 -> Green House Gas Balancing Account (GHGBA) - End User | C57: ='Authorized Rev Req'!B60 -> D.20-02-045, AL 3149-G, AL 3129-G-A and AL 3129-G , 3247-G-B | D57: -33618.20559 | E57: ='Authorized Rev Req'!Q60 -> GHG End User | F57: ='Authorized Rev Req'!P60 -> -33618.20559 | G57: =0 -> 0 | H57: =0 -> 0 | I57: =0 -> 0 | J57: 0 | K57: Existing
A58: ='Authorized Rev Req'!A61 -> Green House Gas Balancing Account (GHGBA) - LUAF | C58: ='Authorized Rev Req'!B61 -> D.20-02-045, AL 3149-G, AL 3129-G-A and AL 3129-G , 3247-G-B | D58: -1076.440794 | E58: ='Authorized Rev Req'!Q61 -> 46% Res (LUAF, Other) | F58: ='Authorized Rev Req'!P61 -> -1076.440794 | G58: =0 -> 0 | H58: =0 -> 0 | I58: =0 -> 0 | J58: 0 | K58: Existing
A59: ='Authorized Rev Req'!A62 -> FERC Settlement Proceeds MA | C59: ='Authorized Rev Req'!B62 -> D.20-02-045, AL 3149-G, AL 3129-G-A and AL 3129-G , 3247-G-B | D59: 0 | E59: ='Authorized Rev Req'!Q62 -> Non-Residential | F59: ='Authorized Rev Req'!P62 -> 0 | G59: =0 -> 0 | H59: =0 -> 0 | I59: =0 -> 0 | J59: 0 | K59: Existing
A60: ='Authorized Rev Req'!A63 -> New Environmental Regulation Balancing Account (NERBA) - Admin Fees Subaccount | C60: ='Authorized Rev Req'!B63 -> D.20-02-045, AL 3149-G, AL 3129-G-A and AL 3129-G , 3071-G-B, 3247-G-B | D60: 0 | E60: ='Authorized Rev Req'!Q63 -> 46% Res (LUAF, Other) | F60: ='Authorized Rev Req'!P63 -> 0 | G60: =0 -> 0 | H60: =0 -> 0 | I60: =0 -> 0 | J60: 0 | K60: Existing
A61: ='Authorized Rev Req'!A64 -> New Environmental Regulation Balancing Account (NERBA) - LDAR EPAM | C61: ='Authorized Rev Req'!B64 -> D.20-02-045, AL 3149-G, AL 3129-G-A and AL 3129-G ,AL 3071-G-B, 3247-G-B | D61: 0 | E61: ='Authorized Rev Req'!Q64 -> EPAM | F61: ='Authorized Rev Req'!P64 -> 0 | G61: =0 -> 0 | H61: =0 -> 0 | I61: =0 -> 0 | J61: 0 | K61: Existing
A62: ='Authorized Rev Req'!A65 -> TLS Adjustment | C62: ='Authorized Rev Req'!B65 -> D.20-02-045, AL 3149-G, AL 3129-G-A and AL 3129-G , 3247-G-B | D62: -13441.43055 | E62: ='Authorized Rev Req'!Q65 -> Non-Residential | F62: ='Authorized Rev Req'!P65 -> -13441.43055 | G62: =0 -> 0 | H62: =0 -> 0 | I62: =0 -> 0 | J62: 0 | K62: Existing
A63: ='Authorized Rev Req'!A66 -> CSI Thermal Program memoradum Account | C63: ='Authorized Rev Req'!B66 -> D.20-02-045, AL 3149-G, AL 3129-G-A and AL 3129-G , 3247-G-B | D63: 71.89967137 | E63: ='Authorized Rev Req'!Q66 -> 46% Res (LUAF, Other) | F63: ='Authorized Rev Req'!P66 -> 71.89967137 | G63: =0 -> 0 | H63: =0 -> 0 | I63: =0 -> 0 | J63: 0 | K63: Existing
A64: ='Authorized Rev Req'!A67 -> Biomethane Cost Incentive Pgm Balancing Acct (BCIPBA) | C64: ='Authorized Rev Req'!B67 -> D. 16-12-043, AL 3129-G-A and AL 3129-G , 3247-G-B | D64: 0 | E64: ECPT | F64: ='Authorized Rev Req'!P67 -> 0 | G64: =0 -> 0 | H64: =0 -> 0 | I64: =0 -> 0 | J64: 0 | K64: Existing
A65: ='Authorized Rev Req'!A68 -> Biomethane Procurement and Pilot Costs Balancing Account (BPPCBA) - Program Admin Subaccount (EPAM) | C65: ='Authorized Rev Req'!B68 -> D.22-02-025, 3247-G-B | D65: 71.89967137 | E65: EPAM | F65: ='Authorized Rev Req'!P68 -> 71.89967137 | G65: 0 | H65: 0 | I65: 0 | J65: =0 -> 0 | K65: Existing
A66: ='Authorized Rev Req'!A69 -> SDG&E NGLAPBA | C66: ='Authorized Rev Req'!B69 -> AL 3071-G, D.24-07-009, AL 3383, AL 3392-G-A | D66: =F66 -> -553.3470608 | E66: EPAM | F66: ='Authorized Rev Req'!P69 -> -553.3470608
A67: ='Authorized Rev Req'!A70 -> SDG&ENERBA - NGLAP Subacct | C67: ='Authorized Rev Req'!B70 -> AL 3071-G, D.24-07-009, AL 3383, AL 3392-G-A | D67: -2114.076309 | E67: EPAM | F67: ='Authorized Rev Req'!P70 -> -2114.076309
A68: PPPS Programs
A69: ='Authorized Rev Req'!A73 -> California Alternate Rates for Energy (CARE) - Funding | C69: ='Authorized Rev Req'!B73 -> AL 3137-G, D.21-06-015, 3245-G, 3462-G | D69: =F69 -> 22811.16457 | E69: ='Authorized Rev Req'!Q73 -> Public Purpose Programs | F69: ='Authorized Rev Req'!P73 -> 22811.16457 | G69: 22811.165 | H69: =G69 -> 22811.165 | I69: =H69 -> 22811.165 | J69: =I69 -> 22811.165 | K69: Existing
A70: ='Authorized Rev Req'!A74 -> California Alternate Rates for Energy (CARE) - Admin Expenses | C70: ='Authorized Rev Req'!B74 -> AL 3137-G, D.21-06-015, 3245-G, 3462-G | D70: 743.891 | E70: ='Authorized Rev Req'!Q74 -> Public Purpose Programs | F70: ='Authorized Rev Req'!P74 -> 743.891 | G70: 743.891 | H70: =G70 -> 743.891 | I70: =H70 -> 743.891 | J70: 743.891 | K70: Existing
A71: ='Authorized Rev Req'!A75 -> California Alternate Rates for Energy (CARE) - Amortization | C71: ='Authorized Rev Req'!B75 -> AL 3137-G, AL 3245-G, AL 3247-G-B, 3462-G | D71: 0 | E71: ='Authorized Rev Req'!Q75 -> Public Purpose Programs | F71: ='Authorized Rev Req'!P75 -> 0 | G71: =0 -> 0 | H71: =0 -> 0 | I71: =0 -> 0 | J71: 0 | K71: Existing
A72: ='Authorized Rev Req'!A76 -> Energy Savings Assistance (ESA/LIEE/DAP) | C72: ='Authorized Rev Req'!B76 -> AL 3137-G, D.21-06-015, AL 3247-G-B, 3462-G | D72: 15138.70932 | E72: ='Authorized Rev Req'!Q76 -> Public Purpose Programs | F72: ='Authorized Rev Req'!P76 -> 15138.70932 | G72: 15138.709 | H72: =G72 -> 15138.709 | I72: =H72 -> 15138.709 | J72: =I72 -> 15138.709 | K72: Existing
A73: ='Authorized Rev Req'!A77 -> Energy Efficiency | C73: ='Authorized Rev Req'!B77 -> D.23-06-055 AL 3137-G, AL 3035-G, AL 3245-G, | D73: 45917.59627 | E73: ='Authorized Rev Req'!Q77 -> Public Purpose Programs | F73: ='Authorized Rev Req'!P77 -> 45917.59627 | G73: 45917.596 | H73: =G73 -> 45917.596 | I73: =H73 -> 45917.596 | J73: 45917.596 | K73: Existing
A74: ='Authorized Rev Req'!A78 -> RD&D | C74: ='Authorized Rev Req'!B78 -> AL 3137-G, AL 3245-G, 3462-G | D74: 1245.41862 | E74: ='Authorized Rev Req'!Q78 -> Public Purpose Programs | F74: ='Authorized Rev Req'!P78 -> 1245.41862 | G74: 1245.419 | H74: =G74 -> 1245.419 | I74: =H74 -> 1245.419 | J74: =I74 -> 1245.419 | K74: Existing
A75: ='Authorized Rev Req'!A79 -> Bureau Of Equalization BOE | C75: ='Authorized Rev Req'!B79 -> AL 3137-G, AL 3245-G, 3462-G | D75: 50.38756 | E75: ='Authorized Rev Req'!Q79 -> Public Purpose Programs | F75: ='Authorized Rev Req'!P79 -> 50.38756 | G75: 50.388 | H75: =G75 -> 50.388 | I75: =H75 -> 50.388 | J75: =I75 -> 50.388 | K75: Existing
A85: Procurement | C85: ='Authorized Rev Req'!B89 -> D.97-07-061 | D85: =F85 -> 164830.57 | E85: ='Authorized Rev Req'!Q89 -> Core Procurement | F85: ='Authorized Rev Req'!P89 -> 164830.57 | G85: =F85 -> 164830.57 | H85: 164830.57 | I85: 164830.57 | J85: 164830.57 | K85: Existing
A89: Total Approved, Implemented Since Jan 1 or To Be Implemented | D89: =SUM(D10:D88) -> 1024277.84 | F89: =SUM(F10:F88) -> 1024277.84 | G89: =SUM(G10:G88) -> 775301.3841 | H89: =SUM(H10:H88) -> 789759.5064 | I89: =SUM(I10:I88) -> 793445.7132 | J89: =SUM(J10:J88) -> 796834.9756
A91: CPUC Fee | E91: CPUC Fee | F91: =RegulatoryFee -> 0.0035 | M91: FFU
L92: Jan | M92: 1.0230106
L93: Feb | M93: 1.023946342
A94: Pending Application(s) Not Yet Approved
A95: Filing Description | B95: Proceeding | C95: Basis of Revenue Requirement Forecast: Application, Amended Application , Amended Testimony, Proposed Settlement Agreement, Proposed Decision | D95: Proposed Revenue Requirement with FF&U ($000) | E95: Proposed Revenue Recovery Mechanism | F95: Incremental Revenue Requirement with FF&U ($000) - Breakout by Year | K95: Existing or New Item (if existing, use delta from prior for rate impact)
A96: Safety Affordability Reliability Proceedings | F96: =TRANSPOSE(YearsForRateImpact) -> 2026 | G96: 2027 | H96: 2028 | I96: 2029 | J96: 2030 | L96: Include in Impact
A97: 2024 GRC Track 3 (PSEP and WMPMA) | B97: A.25-05-015/016 | C97: Application | D97: =SUM(F97:J97) -> 50051 | E97: EPAM | F97: 50051 | K97: New | L97: =IFERROR(VLOOKUP(A97,Summary!$B$7:$D$18,3,FALSE),"-") -> Y
A98: GRC PFM | B98: A.25-05-015/016 | C98: Application | D98: 23678.52863 | E98: EPAM | F98: =11803423/1000 -> 11803.423 | G98: 11875.10563 | K98: New | L98: =IFERROR(VLOOKUP(A98,Summary!$B$7:$D$18,3,FALSE),"-") -> Y | N98: Authorized + Pending
A99: GRC Track 2 Proposed Decision - SDG&E 2024 | B99: A.22-05-015 | C99: Application | D99: -3815 | E99: EPAM | F99: -3815 | K99: New | L99: =IFERROR(VLOOKUP(A99,Summary!$B$7:$D$18,3,FALSE),"-") -> Y | O99: =TRANSPOSE(YearsForRateImpact) -> 2026 | P99: 2027 | Q99: 2028 | R99: 2029 | S99: 2030
L100: =IFERROR(VLOOKUP(A100,Summary!$B$7:$D$18,3,FALSE),"-") -> Y | N100: =RevRecoveryMechanisms -> Core Procurement | O100: =SUM(O9,SUMIFS(F$97:F$124,$E$97:$E$124,$N100,$L$97:$L$124,"y")) -> 164830.57 | P100: =SUM(P9,SUMIFS(G$97:G$124,$E$97:$E$124,$N100,$L$97:$L$124,"y")) -> 164830.57 | Q100: =SUM(Q9,SUMIFS(H$97:H$124,$E$97:$E$124,$N100,$L$97:$L$124,"y")) -> 164830.57 | R100: =SUM(R9,SUMIFS(I$97:I$124,$E$97:$E$124,$N100,$L$97:$L$124,"y")) -> 164830.57 | S100: =SUM(S9,SUMIFS(J$97:J$124,$E$97:$E$124,$N100,$L$97:$L$124,"y")) -> 164830.57
L101: =IFERROR(VLOOKUP(A101,Summary!$B$7:$D$18,3,FALSE),"-") -> Y | N101: Allocated Base Margin | O101: =SUM(O10,SUMIFS(F$97:F$124,$E$97:$E$124,$N101,$L$97:$L$124,"y")) -> 491182.1196 | P101: 505917.5832 | Q101: 505917.5832 | R101: =SUM(R10,SUMIFS(I$97:I$124,$E$97:$E$124,$N101,$L$97:$L$124,"y")) -> 505917.5832 | S101: 505917.5832
L102: N | N102: Distribution | O102: =SUM(O11,SUMIFS(F$97:F$124,$E$97:$E$124,$N102,$L$97:$L$124,"y")) -> 76412.12476 | P102: =SUM(P11,SUMIFS(G$97:G$124,$E$97:$E$124,$N102,$L$97:$L$124,"y")) -> 0 | Q102: 0 | R102: 0 | S102: =SUM(S11,SUMIFS(J$97:J$124,$E$97:$E$124,$N102,$L$97:$L$124,"y")) -> 0
A103: Public Policy Proceedings | L103: =IFERROR(VLOOKUP(A103,Summary!$B$7:$D$18,3,FALSE),"-") -> - | N103: All Residential | O103: =SUM(O12,SUMIFS(F$97:F$124,$E$97:$E$124,$N103,$L$97:$L$124,"y")) -> 3351.428979 | P103: 0 | Q103: 0 | R103: 0 | S103: 0
A104: Cost Allocation Proceeding | B104: A.25-09-014 | C104: Application | K104: New | L104: =IFERROR(VLOOKUP(A104,Summary!$B$7:$D$18,3,FALSE),"-") -> N | N104: Local Transmission | O104: =SUM(O13,SUMIFS(F$97:F$124,$E$97:$E$124,$N104,$L$97:$L$124,"y")) -> 2457.982928 | P104: 0 | Q104: 0 | R104: 0 | S104: 0
D105: =SUM(F105:J105) -> 0 | F105: 0 | G105: 0 | L105: =IFERROR(VLOOKUP(A105,Summary!$B$7:$D$18,3,FALSE),"-") -> Y | N105: Seasonal Storage | O105: =SUM(O14,SUMIFS(F$97:F$124,$E$97:$E$124,$N105,$L$97:$L$124,"y")) -> 23067.97357 | P105: 0 | Q105: 0 | R105: 0 | S105: 0
L106: =IFERROR(VLOOKUP(A106,Summary!$B$7:$D$18,3,FALSE),"-") -> Y | N106: GHG End User | O106: =SUM(O15,SUMIFS(F$97:F$124,$E$97:$E$124,$N106,$L$97:$L$124,"y")) -> 46940.69953 | P106: 0 | Q106: 0 | R106: 0 | S106: 0
L107: =IFERROR(VLOOKUP(A107,Summary!$B$7:$D$18,3,FALSE),"-") -> Y | N107: Public Purpose Programs | O107: =SUM(O16,SUMIFS(F$97:F$124,$E$97:$E$124,$N107,$L$97:$L$124,"y")) -> 85907.16733 | P107: 85907.168 | Q107: 85907.168 | R107: 85907.168 | S107: 85907.168
L108: =IFERROR(VLOOKUP(A108,Summary!$B$7:$D$18,3,FALSE),"-") -> Y | N108: - | O108: =SUM(O17,SUMIFS(F$97:F$124,$E$97:$E$124,$N108,$L$97:$L$124,"y")) -> 0 | P108: 0 | Q108: 0 | R108: 0 | S108: 0
L109: =IFERROR(VLOOKUP(A109,Summary!$B$7:$D$18,3,FALSE),"-") -> Y | N109: 46% Res (LUAF, Other) | O109: =SUM(O18,SUMIFS(F$97:F$124,$E$97:$E$124,$N109,$L$97:$L$124,"y")) -> 13393.92795 | P109: 0 | Q109: 0 | R109: 0 | S109: 0
L110: =IFERROR(VLOOKUP(A110,Summary!$B$7:$D$18,3,FALSE),"-") -> Y | N110: ECPT | O110: =SUM(O19,SUMIFS(F$97:F$124,$E$97:$E$124,$N110,$L$97:$L$124,"y")) -> 51080.33763 | P110: 0 | Q110: 0 | R110: 0 | S110: 0
L111: =IFERROR(VLOOKUP(A111,Summary!$B$7:$D$18,3,FALSE),"-") -> Y | N111: EPAM | O111: =SUM(O20,SUMIFS(F$97:F$124,$E$97:$E$124,$N111,$L$97:$L$124,"y")) -> 115056.0268 | P111: 30521.16851 | Q111: 33104.18523 | R111: 36790.39206 | S111: 40179.65445
L112: =IFERROR(VLOOKUP(A112,Summary!$B$7:$D$18,3,FALSE),"-") -> Y | N112: CFCA | O112: =SUM(O21,SUMIFS(F$97:F$124,$E$97:$E$124,$N112,$L$97:$L$124,"y")) -> 21078.92937 | P112: 0 | Q112: 0 | R112: 0 | S112: 0
L113: =IFERROR(VLOOKUP(A113,Summary!$B$7:$D$18,3,FALSE),"-") -> Y | N113: Non-Residential | O113: =SUM(O22,SUMIFS(F$97:F$124,$E$97:$E$124,$N113,$L$97:$L$124,"y")) -> -12442.02511 | P113: =SUM(P22,SUMIFS(G$97:G$124,$E$97:$E$124,$N113,$L$97:$L$124,"y")) -> 0 | Q113: 0 | R113: 0 | S113: 0
L114: =IFERROR(VLOOKUP(A114,Summary!$B$7:$D$18,3,FALSE),"-") -> Y | N114: Total | O114: =SUM(O100:O113) -> 1082317.263 | P114: =SUM(P100:P113) -> 787176.4897 | Q114: =SUM(Q100:Q113) -> 789759.5064 | R114: =SUM(R100:R113) -> 793445.7132 | S114: =SUM(S100:S113) -> 796834.9756
L115: =IFERROR(VLOOKUP(A115,Summary!$B$7:$D$18,3,FALSE),"-") -> Y | N115: Incremental Revenues | O115: =O114-O23 -> 58039.423 | P115: =P114-P23 -> 11875.10563 | Q115: =Q114-Q23 -> 0 | R115: =R114-R23 -> 0 | S115: 0
L116: =IFERROR(VLOOKUP(A116,Summary!$B$7:$D$18,3,FALSE),"-") -> Y | N116: CPUC Fee | O116: =RegulatoryFee -> 0.0035
L117: =IFERROR(VLOOKUP(A117,Summary!$B$7:$D$18,3,FALSE),"-") -> Y | N117: Check Figure | O117: =ROUND(O115,6)-ROUND(F125,6) -> 0 | P117: =ROUND(P115,6)-SUM(G97:G124) -> -4.847224773e-07 | Q117: =ROUND(Q115,6)-SUM(H97:H124) -> 0 | R117: =ROUND(R115,6)-SUM(I97:I124) -> 0 | S117: =ROUND(S115,6)-SUM(J97:J124) -> 0
L118: =IFERROR(VLOOKUP(A118,Summary!$B$7:$D$18,3,FALSE),"-") -> Y
L119: =IFERROR(VLOOKUP(A119,Summary!$B$7:$D$18,3,FALSE),"-") -> Y
L120: =IFERROR(VLOOKUP(A120,Summary!$B$7:$D$18,3,FALSE),"-") -> Y
L121: =IFERROR(VLOOKUP(A121,Summary!$B$7:$D$18,3,FALSE),"-") -> Y
L122: =IFERROR(VLOOKUP(A122,Summary!$B$7:$D$18,3,FALSE),"-") -> Y
L123: =IFERROR(VLOOKUP(A123,Summary!$B$7:$D$18,3,FALSE),"-") -> Y
D124: =SUM(F124:J124) -> 0
A125: Total Pending, Filed but not Approved | D125: =SUM(D97:D124) -> 69914.52863 | F125: =SUM(F97:F124) -> 58039.423 | G125: =SUM(G97:G124) -> 11875.10563 | H125: =SUM(H97:H124) -> 0 | I125: =SUM(I97:I124) -> 0 | J125: =SUM(J97:J124) -> 0
L126: =IFERROR(VLOOKUP(A124,Summary!$B$7:$D$18,3,FALSE),"-") -> Y
A127: Applications Projected to be Filed, Next 12 Months
A128: Filing Description | B128: Estimated Filing Date | C128: Filing Basis | D128: Proposed Revenue Requirement ($000) | E128: Proposed Revenue Recovery Mechanism | F128: Projected Authorized Revenue Requirement ($000) - Breakout by Year | K128: Existing or New Item (if existing, use delta from prior for rate impact)
A129: Safety Affordability Reliability Proceedings | F129: =TRANSPOSE(YearsForRateImpact) -> 2026 | G129: 2027 | H129: 2028 | I129: 2029 | J129: 2030

Sheet SAR and RAR
C1: Revenue Change ($000)
C2: Authorized | D2: w/ Pending
B3: =RevRecoveryMechanisms -> Core Procurement | C3: =INDEX('Incremental Rev Req'!$N$9:$S$22,MATCH(B3,'Incremental Rev Req'!$N$9:$N$22,0),MATCH(Summary!$D$2,'Incremental Rev Req'!$N$8:$S$8,0)) -> 164830.57 | D3: =INDEX('Incremental Rev Req'!$N$100:$S$113,MATCH(B3,'Incremental Rev Req'!$N$100:$N$113,0),MATCH(Summary!$D$2,'Incremental Rev Req'!$N$99:$S$99,0)) -> 164830.57 | G3: Allocation | P3: Other Revenues and Balancing Accounts
B4: Allocated Base Margin | C4: =INDEX('Incremental Rev Req'!$N$9:$S$22,MATCH(B4,'Incremental Rev Req'!$N$9:$N$22,0),MATCH(Summary!$D$2,'Incremental Rev Req'!$N$8:$S$8,0)) -> 491182.1196 | D4: =INDEX('Incremental Rev Req'!$N$100:$S$113,MATCH(B4,'Incremental Rev Req'!$N$100:$N$113,0),MATCH(Summary!$D$2,'Incremental Rev Req'!$N$99:$S$99,0)) -> 491182.1196 | G4: =TRANSPOSE(RevRecoveryMechanisms) -> Core Procurement | H4: Allocated Base Margin | I4: Distribution | J4: All Residential | K4: Local Transmission | L4: Seasonal Storage | M4: GHG End User | N4: Public Purpose Programs | O4: - | P4: 46% Res (LUAF, Other) | Q4: ECPT | R4: EPAM | S4: CFCA | T4: Non-Residential | U4: CPUC Fee
B5: Distribution | C5: =INDEX('Incremental Rev Req'!$N$9:$S$22,MATCH(B5,'Incremental Rev Req'!$N$9:$N$22,0),MATCH(Summary!$D$2,'Incremental Rev Req'!$N$8:$S$8,0)) -> 76412.12476 | D5: =INDEX('Incremental Rev Req'!$N$100:$S$113,MATCH(B5,'Incremental Rev Req'!$N$100:$N$113,0),MATCH(Summary!$D$2,'Incremental Rev Req'!$N$99:$S$99,0)) -> 76412.12476 | F5: Residential | G5: 0.5724692956 | H5: 0.8165237363 | I5: 0.7135109512 | J5: 1 | K5: 0.5154334371 | L5: 0.7405203174 | M5: 0.4973508799 | N5: 0.4546557409 | P5: 0.4391411967 | Q5: 0.3301664811 | R5: 0.8165237363 | S5: 0.6019875916 | T5: 0 | U5: =RegulatoryFee -> 0.0035
B6: All Residential | C6: =INDEX('Incremental Rev Req'!$N$9:$S$22,MATCH(B6,'Incremental Rev Req'!$N$9:$N$22,0),MATCH(Summary!$D$2,'Incremental Rev Req'!$N$8:$S$8,0)) -> 3351.428979 | D6: =INDEX('Incremental Rev Req'!$N$100:$S$113,MATCH(B6,'Incremental Rev Req'!$N$100:$N$113,0),MATCH(Summary!$D$2,'Incremental Rev Req'!$N$99:$S$99,0)) -> 3351.428979
B7: Local Transmission | C7: =INDEX('Incremental Rev Req'!$N$9:$S$22,MATCH(B7,'Incremental Rev Req'!$N$9:$N$22,0),MATCH(Summary!$D$2,'Incremental Rev Req'!$N$8:$S$8,0)) -> 2457.982928 | D7: =INDEX('Incremental Rev Req'!$N$100:$S$113,MATCH(B7,'Incremental Rev Req'!$N$100:$N$113,0),MATCH(Summary!$D$2,'Incremental Rev Req'!$N$99:$S$99,0)) -> 2457.982928 | G7: Revenue Change ($000) - System
B8: Seasonal Storage | C8: =INDEX('Incremental Rev Req'!$N$9:$S$22,MATCH(B8,'Incremental Rev Req'!$N$9:$N$22,0),MATCH(Summary!$D$2,'Incremental Rev Req'!$N$8:$S$8,0)) -> 23067.97357 | D8: =INDEX('Incremental Rev Req'!$N$100:$S$113,MATCH(B8,'Incremental Rev Req'!$N$100:$N$113,0),MATCH(Summary!$D$2,'Incremental Rev Req'!$N$99:$S$99,0)) -> 23067.97357 | F8: Authorized | G8: =TRANSPOSE(RevRecoveryMechanisms) -> Core Procurement | H8: Allocated Base Margin | I8: Distribution | J8: All Residential | K8: Local Transmission | L8: Seasonal Storage | M8: GHG End User | N8: Public Purpose Programs | O8: - | P8: 46% Res (LUAF, Other) | Q8: ECPT | R8: EPAM | S8: CFCA | T8: Non-Residential
B9: GHG End User | C9: =INDEX('Incremental Rev Req'!$N$9:$S$22,MATCH(B9,'Incremental Rev Req'!$N$9:$N$22,0),MATCH(Summary!$D$2,'Incremental Rev Req'!$N$8:$S$8,0)) -> 46940.69953 | D9: =INDEX('Incremental Rev Req'!$N$100:$S$113,MATCH(B9,'Incremental Rev Req'!$N$100:$N$113,0),MATCH(Summary!$D$2,'Incremental Rev Req'!$N$99:$S$99,0)) -> 46940.69953 | F9: Residential | G9: =G5*G10 -> 94360.44029 | H9: =H5*H10 -> 401061.8595 | I9: =I5*I10 -> 54520.88782 | J9: 3351.428979 | K9: 1266.926589 | L9: 17082.30311 | M9: 23345.99821 | N9: 39058.18681 | O9: =O5*O10 -> 0 | P9: 5881.82555 | Q9: =Q5*Q10 -> 16865.01533 | R9: =R5*R10 -> 46555.41035 | S9: =S5*S10 -> 12689.25393 | T9: =T5*T10 -> 0 | U9: =SUM(G9:T9) -> 716039.5365 | V9: Check | W9: CPUC Fee
B10: Public Purpose Programs | C10: =INDEX('Incremental Rev Req'!$N$9:$S$22,MATCH(B10,'Incremental Rev Req'!$N$9:$N$22,0),MATCH(Summary!$D$2,'Incremental Rev Req'!$N$8:$S$8,0)) -> 85907.16733 | D10: =INDEX('Incremental Rev Req'!$N$100:$S$113,MATCH(B10,'Incremental Rev Req'!$N$100:$N$113,0),MATCH(Summary!$D$2,'Incremental Rev Req'!$N$99:$S$99,0)) -> 85907.16733 | F10: Total System | G10: =C3 -> 164830.57 | H10: =C4 -> 491182.1196 | I10: =C5 -> 76412.12476 | J10: =C6 -> 3351.428979 | K10: =C7 -> 2457.982928 | L10: =C8 -> 23067.97357 | M10: =C9 -> 46940.69953 | N10: =C10 -> 85907.16733 | O10: =C11 -> 0 | P10: =C12 -> 13393.92795 | Q10: =C13 -> 51080.33763 | R10: =C14 -> 57016.60377 | S10: =C15 -> 21078.92937 | T10: =C16 -> -12442.02511 | U10: =SUM(G10:T10) -> 1024277.84 | V10: =U10-C17 -> 0 | W10: =RegulatoryFee -> 0.0035
B11: - | C11: =INDEX('Incremental Rev Req'!$N$9:$S$22,MATCH(B11,'Incremental Rev Req'!$N$9:$N$22,0),MATCH(Summary!$D$2,'Incremental Rev Req'!$N$8:$S$8,0)) -> 0 | D11: =INDEX('Incremental Rev Req'!$N$100:$S$113,MATCH(B11,'Incremental Rev Req'!$N$100:$N$113,0),MATCH(Summary!$D$2,'Incremental Rev Req'!$N$99:$S$99,0)) -> 0 | F11: w/Pending
B12: 46% Res (LUAF, Other) | C12: =INDEX('Incremental Rev Req'!$N$9:$S$22,MATCH(B12,'Incremental Rev Req'!$N$9:$N$22,0),MATCH(Summary!$D$2,'Incremental Rev Req'!$N$8:$S$8,0)) -> 13393.92795 | D12: =INDEX('Incremental Rev Req'!$N$100:$S$113,MATCH(B12,'Incremental Rev Req'!$N$100:$N$113,0),MATCH(Summary!$D$2,'Incremental Rev Req'!$N$99:$S$99,0)) -> 13393.92795 | F12: Residential | G12: =G5*G13 -> 94360.44029 | H12: =H5*H13 -> 401061.8595 | I12: 54520.88782 | J12: 3351.428979 | K12: 1266.926589 | L12: 17082.30311 | M12: 23345.99821 | N12: 39058.18681 | O12: =O5*O13 -> 0 | P12: 5881.82555 | Q12: =Q5*Q13 -> 16865.01533 | R12: =R5*R13 -> 93945.97687 | S12: =S5*S13 -> 12689.25393 | T12: =T5*T13 -> 0 | U12: =SUM(G12:T12) -> 763430.103 | V12: Check | W12: CPUC Fee
B13: ECPT | C13: =INDEX('Incremental Rev Req'!$N$9:$S$22,MATCH(B13,'Incremental Rev Req'!$N$9:$N$22,0),MATCH(Summary!$D$2,'Incremental Rev Req'!$N$8:$S$8,0)) -> 51080.33763 | D13: =INDEX('Incremental Rev Req'!$N$100:$S$113,MATCH(B13,'Incremental Rev Req'!$N$100:$N$113,0),MATCH(Summary!$D$2,'Incremental Rev Req'!$N$99:$S$99,0)) -> 51080.33763 | F13: Total System | G13: =D3 -> 164830.57 | H13: =D4 -> 491182.1196 | I13: =D5 -> 76412.12476 | J13: =D6 -> 3351.428979 | K13: =D7 -> 2457.982928 | L13: =D8 -> 23067.97357 | M13: =D9 -> 46940.69953 | N13: =D10 -> 85907.16733 | O13: =D11 -> 0 | P13: =D12 -> 13393.92795 | Q13: =D13 -> 51080.33763 | R13: =D14 -> 115056.0268 | S13: =D15 -> 21078.92937 | T13: =D16 -> -12442.02511 | U13: =SUM(G13:T13) -> 1082317.263 | V13: =U13-D17 -> 0 | W13: =RegulatoryFee -> 0.0035
B14: EPAM | C14: =INDEX('Incremental Rev Req'!$N$9:$S$22,MATCH(B14,'Incremental Rev Req'!$N$9:$N$22,0),MATCH(Summary!$D$2,'Incremental Rev Req'!$N$8:$S$8,0)) -> 57016.60377 | D14: =INDEX('Incremental Rev Req'!$N$100:$S$113,MATCH(B14,'Incremental Rev Req'!$N$100:$N$113,0),MATCH(Summary!$D$2,'Incremental Rev Req'!$N$99:$S$99,0)) -> 115056.0268 | AC14: Authorized | AD14: w/Pending
B15: CFCA | C15: =INDEX('Incremental Rev Req'!$N$9:$S$22,MATCH(B15,'Incremental Rev Req'!$N$9:$N$22,0),MATCH(Summary!$D$2,'Incremental Rev Req'!$N$8:$S$8,0)) -> 21078.92937 | D15: =INDEX('Incremental Rev Req'!$N$100:$S$113,MATCH(B15,'Incremental Rev Req'!$N$100:$N$113,0),MATCH(Summary!$D$2,'Incremental Rev Req'!$N$99:$S$99,0)) -> 21078.92937 | AB15: % of CARE Sales (Bundled) | AC15: 0.1813279471 | AD15: =AC15 -> 0.1813279471
B16: Non-Residential | C16: =INDEX('Incremental Rev Req'!$N$9:$S$22,MATCH(B16,'Incremental Rev Req'!$N$9:$N$22,0),MATCH(Summary!$D$2,'Incremental Rev Req'!$N$8:$S$8,0)) -> -12442.02511 | D16: =INDEX('Incremental Rev Req'!$N$100:$S$113,MATCH(B16,'Incremental Rev Req'!$N$100:$N$113,0),MATCH(Summary!$D$2,'Incremental Rev Req'!$N$99:$S$99,0)) -> -12442.02511 | U16: Authorized | W16: w/Pending Total UDC | Y16: Commodity | Z16: w/Pending Commodity
B17: Total Revenue Requirement | C17: =SUM(C3:C16) -> 1024277.84 | D17: =SUM(D3:D16) -> 1082317.263 | G17: Revenue Split - Bundled Customer | U17: Bundled Revenue Change | W17: Bundled Revenue Change
B18: CPUC Fee | C18: =RegulatoryFee -> 0.0035 | D18: =C18 -> 0.0035 | G18: =TRANSPOSE(RevRecoveryMechanisms) -> Core Procurement | H18: Allocated Base Margin | I18: Distribution | J18: All Residential | K18: Local Transmission | L18: Seasonal Storage | M18: GHG End User | N18: Public Purpose Programs | O18: - | P18: 46% Res (LUAF, Other) | Q18: ECPT | R18: EPAM | S18: CFCA | T18: Non-Residential | U18: Total | W18: Total | Y18: Core Procurement | Z18: Core Procurement
F19: Residential | G19: 1 | H19: 1 | I19: 1 | J19: 1 | K19: 1 | L19: 1 | M19: 1 | N19: 1 | O19: 1 | P19: 1 | Q19: 1 | R19: 1 | S19: 1 | T19: 1 | U19: =SUMPRODUCT(H9:T9,H19:T19) -> 621679.0962 | W19: =SUMPRODUCT(H12:T12,H19:T19) -> 669069.6627 | Y19: =SUMPRODUCT(G9,G19) -> 94360.44029 | Z19: =SUMPRODUCT(G12,G19) -> 94360.44029
F20: Total System | G20: 1 | H20: 1 | I20: 1 | J20: 1 | K20: 1 | L20: 1 | M20: 1 | N20: 1 | O20: 1 | P20: 1 | Q20: 1 | R20: 1 | S20: 1 | T20: 1 | U20: =SUMPRODUCT(H10:T10,H20:T20) -> 859447.2703 | W20: =SUMPRODUCT(H13:T13,H20:T20) -> 917486.6933 | Y20: =SUMPRODUCT(G10,G20) -> 164830.57 | Z20: =SUMPRODUCT(G13,G20) -> 164830.57
C22: CAP D.24-07-009 SALES DETERMINANTS SYSTEM NET | D22: CAP D.24-07-009 SALES DETERMINANTS BUNDLED
B23: Residential | C23: 270603.8421 | D23: 268350.6274
B24: Total System | C24: 819598.1651 | D24: 413767.7004
F26: Bundled | P26: System (Bundled and Unbundled)
B27: CARE Discount | F27: CAP D.24-07-009 SALES DETERMINANTS BUNDLED | G27: =CONCATENATE(TEXT(CurrentEffectiveRateDate,"mm/dd/yyyy")," Avg Rates"&"(sales adj.)") -> 01/01/2026 Avg Rates(sales adj.) | H27: Proposed Avg Rates (Authorized) | I27: Proposed Avg Rates (w/Pending) | J27: % Change (Authorized) | K27: % Change (w/Pending) | Q27: =F27 -> CAP D.24-07-009 SALES DETERMINANTS BUNDLED | R27: =G27 -> 01/01/2026 Avg Rates(sales adj.) | S27: Proposed Avg Rates (Authorized) | T27: Proposed Avg Rates (w/Pending) | U27: % Change (Authorized) | V27: % Change (w/Pending)
B28: 2020 | C28: 14643.43625 | E28: Residential | F28: =D23 -> 268350.6274 | G28: 229.7377197 | H28: =(U19/C23*100)+(Y19/D23*100) -> 264.9008349 | I28: =(W19/C23*100)+(Z19/D23*100) -> 282.4137298 | J28: =H28/G28-1 -> 0.1530576488 | K28: =I28/G28-1 -> 0.2292875989 | P28: Residential | Q28: =C23 -> 270603.8421 | R28: 229.7377197 | S28: =U9/Q28*100 -> 264.6080451 | T28: =U12/Q28*100 -> 282.12094 | U28: =S28/R28-1 -> 0.1517831963 | V28: =T28/R28-1 -> 0.2280131464
B29: 2021 | C29: 23945.84284 | E29: Total System | F29: =D24 -> 413767.7004 | G29: 104.8620296 | H29: =(U20/C24*100)+(Y20/D24*100) -> 144.6985296 | I29: =(W20/C24*100)+(Z20/D24*100) -> 151.7799782 | J29: =H29/G29-1 -> 0.3798944209 | K29: =I29/G29-1 -> 0.4474255249 | P29: Total System | Q29: =C24 -> 819598.1651 | R29: 104.8620296 | S29: =U10/Q29*100 -> 124.9731739 | T29: =U13/Q29*100 -> 132.0546226 | U29: =S29/R29-1 -> 0.1917867165 | V29: =T29/R29-1 -> 0.2593178205
B30: 2022 | C30: 25613.07214 | H30: cents/therm
B31: 2023 | C31: 22795.55934
B32: 2024 | C32: 21383.37754
B33: 2025 | C33: 19135.75613
B34: 2026 | C34: 23555.056

Sheet Res Bill Impact
E3: Schedule GR | P3: Schedule GR [CARE]
E4: =SalesForecastYear -> 2024 | F4: =CurrentEffectiveRateDate -> 2026-01-01 | G4: =CurrentEffectiveRateDate -> 2026-01-01 | H4: Proposed | I4: Proposed | J4: Proposed | K4: Proposed | P4: =SalesForecastYear -> 2024 | Q4: =CurrentEffectiveRateDate -> 2026-01-01 | R4: =CurrentEffectiveRateDate -> 2026-01-01 | S4: Proposed | T4: Proposed | U4: Proposed | V4: Proposed
E5: System Sales Forecast | F5: Rates | G5: Revenue | H5: Authorized Rates | I5: Authorized Revenue | J5: w/Pending Rates | K5: w/Pending Revenue | P5: Sales Forecast | Q5: Rates | R5: Revenue | S5: Authorized Rates | T5: Authorized Revenue | U5: w/Pending Rates | V5: w/Pending Revenue
D7: Baseline | E7: 187959.3296 | F7: 2.549474753 | G7: =F7*E7 -> 479197.5653 | H7: =((Y10-I12-T12)/SUM(E7,F9/F7*E9,P7*((Q7/F7)),P9*((Q9/F7)))) -> 2.266248858 | I7: =E7*H7 -> 425962.6159 | J7: =((Y13-K12-V12)/SUM(SUM(E7),F9/F7*SUM(E9),SUM(P7)*((Q7/F7)),SUM(P9)*(Q9/F7))) -> 2.416238923 | K7: =E7*J7 -> 454154.6481 | O7: =D7 -> Baseline | P7: 34568.65952 | Q7: 2.018070668 | R7: =Q7*P7 -> 69761.99782 | S7: =H7*(1+(Q7/F7-1)) -> 1.793879442 | T7: =P7*S7 -> 62012.00764 | U7: =J7*(1+(Q7/F7-1)) -> 1.912606074 | V7: =P7*U7 -> 66116.22818 | X7: Bundled Residential Rev Req
X8: Current | Y8: =(SUM(G7:G9)+SUM(R7:R9)) -> 805527.0339
D9: non-Baseline | E9: 76615.61141 | F9: 2.922694753 | G9: =F9*E9 -> 223924.0454 | H9: =F9/F$7*H$7 -> 2.598007153 | I9: =E9*H9 -> 199047.9065 | J9: =F9/F$7*J$7 -> 2.769954405 | K9: 212221.7503 | O9: =D9 -> non-Baseline | P9: 14090.80885 | Q9: 2.316646668 | R9: =Q9*P9 -> 32643.42538 | S9: =H9*(1+(Q9/F9-1)) -> 2.059286078 | T9: =P9*S9 -> 29017.0065 | U9: =J9*(1+(Q9/F9-1)) -> 2.19557846 | V9: =P9*U9 -> 30937.4764 | X9: Change (Authorized) | Y9: =Y10-Y8 -> -89487.49741
X10: Proposed (Authorized) | Y10: ='SAR and RAR'!U9 -> 716039.5365
E11: Non-CARE customers | P11: CARE Customers
D12: Fixed Charge | E12: =E13-P12 -> 688839.6487 | F12: 0 | G12: =F12*12*E12/1000 -> 0 | H12: =SetUp!D7 -> 0 | I12: =(H12*12*E12)/1000 -> 0 | J12: =H12 -> 0 | K12: =I12 -> 0 | O12: Fixed Charge | P12: 185227.7605 | Q12: =F12*(1-CAREDiscountPercent) -> 0 | R12: =Q12*12*P12/1000 -> 0 | S12: =SetUp!D7*(1-CAREDiscountPercent) -> 0 | T12: =(S12*12*P12)/1000 -> 0 | U12: =S12 -> 0 | V12: =T12 -> 0 | X12: Change (w/Pending) | Y12: =Y13-Y8 -> -42096.93089
D13: Total Customers | E13: 874067.4092 | X13: Proposed (w/Pending) | Y13: ='SAR and RAR'!U12 -> 763430.103
P18: Basic Bundled
E19: =Summary!D2 -> 2026 | F19: =Summary!D2 -> 2026 | H19: Essential Usage | P19: 2025 Recorded Data - Average Monthly Usage - ALL-BASIC th
B20: SCHEDULE GR RATES ($/therm) | E20: Proposed | F20: Proposed | H20: Monthly Tier 1 Baseline Allowance -BASIC (th) | P20: Climate Zone | Q20: Summer | R20: Winter | S20: Summer | T20: Winter
B21: Rates | C21: =BOYEffectiveRateDate -> 2026-01-01 | D21: =CurrentEffectiveRateDate -> 2026-01-01 | E21: Authorized | F21: w/Pending | H21: Climate Zone | I21: Summer 2024 | J21: Winter 2024 | Q21: Non-CARE | S21: CARE
A22: Summer | B22: Tier 1 | C22: 1.953339902 | D22: 1.953339902 | E22: =H7 -> 2.266248858 | F22: =J7 -> 2.416238923 | H22: =Zones -> SDG&E | I22: 11 | J22: 29 | P22: =Zones -> SDG&E | Q22: 15 | R22: 29 | S22: 14.83333333 | T22: 24.66666667
B23: Tier 2 | C23: 2.292246607 | D23: 2.292246607 | E23: =H9 -> 2.598007153 | F23: =J9 -> 2.769954405 | H23: 0 | P23: 0
H24: 0 | P24: 0
A25: Winter | B25: Tier 1 | C25: =C22 -> 1.953339902 | D25: =D22 -> 1.953339902 | E25: =E22 -> 2.266248858 | F25: =F22 -> 2.416238923 | H25: 0 | P25: 0
B26: Tier 2 | C26: =C23 -> 2.292246607 | D26: =D23 -> 2.292246607 | E26: =E23 -> 2.598007153 | F26: 2.769954405
P27: Typical Bundled
E28: =Summary!D2 -> 2026 | F28: =Summary!D2 -> 2026 | P28: 2021-2025 Recorded Data - Average Monthly Usage - ALL-BASIC th
B29: SCHEDULE GR-LI [CARE] ($/therm) | E29: Proposed | F29: Proposed | P29: Climate Zone | Q29: Summer | R29: Winter | S29: Summer | T29: Winter
B30: Rates | C30: =BOYEffectiveRateDate -> 2026-01-01 | D30: =CurrentEffectiveRateDate -> 2026-01-01 | E30: Authorized | F30: w/Pending | Q30: Non-CARE | S30: CARE
A31: Summer | B31: Tier 1 | C31: 1.543140305 | D31: 1.543140305 | E31: =S7 -> 1.793879442 | F31: =U7 -> 1.912606074 | P31: =Zones -> SDG&E | Q31: 15.36775304 | R31: 32.0838726 | S31: 14.74835755 | T31: 26.37825982
B32: Tier 2 | C32: 1.814265669 | D32: 1.814265669 | E32: =S9 -> 2.059286078 | F32: =U9 -> 2.19557846 | P32: 0
P33: 0
A34: Winter | B34: Tier 1 | C34: =C31 -> 1.543140305 | D34: 1.778826652 | E34: =E31 -> 1.793879442 | F34: 1.912606074 | P34: 0
B35: Tier 2 | C35: =C32 -> 1.814265669 | D35: 2.026304426 | E35: =E32 -> 2.059286078 | F35: 2.19557846
C39: Note: Bill inserts include CPUC fee in the calculations
C40: 2023 Recorded Average Basic Bundled Non-CARE Customer Bill
C41: =C30 -> 2026-01-01 | E41: =D30 -> 2026-01-01 | G41: =E21 -> Authorized | I41: =F21 -> w/Pending
C42: Summer | D42: Winter | E42: Summer | F42: Winter | G42: Summer | H42: Winter | I42: Summer | J42: Winter
B43: =Zones -> SDG&E | C43: =IF($Q22>$I22,C$22*$I22+C$23*($Q22-$I22),$Q22*C$22)+('Incremental Rev Req'!$F$91*$Q22)+IF(Q22>0,$F$12,0) -> 30.70822535 | D43: =IF($R22>$J22,C$25*$J22+C$26*($R22-$J22),$R22*C$25)+('Incremental Rev Req'!$F$91*$R22)+IF(R22>0,$F$12,0) -> 56.74835716 | E43: =IF($Q22>$I22,D$22*$I22+D$23*($Q22-$I22),$Q22*D$22)+('Incremental Rev Req'!$F$91*$Q22)+IF(Q22>0,$F$12,0) -> 30.70822535 | F43: =IF($R22>$J22,D$25*$J22+D$26*($R22-$J22),$R22*D$25)+('Incremental Rev Req'!$F$91*$R22)+IF(R22>0,$F$12,0) -> 56.74835716 | G43: =IF($Q22>$I22,E$22*$I22+E$23*($Q22-$I22),$Q22*E$22)+('Incremental Rev Req'!$F$91*$Q22)+IF(Q22>0,$H$12,0) -> 35.37326605 | H43: =IF($R22>$J22,E$25*$J22+E$26*($R22-$J22),$R22*E$25)+('Incremental Rev Req'!$F$91*$R22)+IF(R22>0,$H$12,0) -> 65.82271687 | I43: =IF($Q22>$I22,F$22*$I22+F$23*($Q22-$I22),$Q22*F$22)+('Incremental Rev Req'!$F$91*$Q22)+IF(Q22>0,$J$12,0) -> 37.71094578 | J43: =IF($R22>$J22,F$25*$J22+F$26*($R22-$J22),$R22*F$25)+('Incremental Rev Req'!$F$91*$R22)+IF(R22>0,$J$12,0) -> 70.17242878
B44: 0 | C44: =IF($Q23>$I23,C$22*$I23+C$23*($Q23-$I23),$Q23*C$22)+('Incremental Rev Req'!$F$91*$Q23)+IF(Q23>0,$F$12,0) -> 0 | D44: =IF($R23>$J23,C$25*$J23+C$26*($R23-$J23),$R23*C$25)+('Incremental Rev Req'!$F$91*$R23)+IF(R23>0,$F$12,0) -> 0 | E44: =IF($Q23>$I23,D$22*$I23+D$23*($Q23-$I23),$Q23*D$22)+('Incremental Rev Req'!$F$91*$Q23)+IF(Q23>0,$F$12,0) -> 0 | F44: =IF($R23>$J23,D$25*$J23+D$26*($R23-$J23),$R23*D$25)+('Incremental Rev Req'!$F$91*$R23)+IF(R23>0,$F$12,0) -> 0 | G44: =IF($Q23>$I23,E$22*$I23+E$23*($Q23-$I23),$Q23*E$22)+('Incremental Rev Req'!$F$91*$Q23)+IF(Q23>0,$H$12,0) -> 0 | H44: =IF($R23>$J23,E$25*$J23+E$26*($R23-$J23),$R23*E$25)+('Incremental Rev Req'!$F$91*$R23)+IF(R23>0,$H$12,0) -> 0 | I44: =IF($Q23>$I23,F$22*$I23+F$23*($Q23-$I23),$Q23*F$22)+('Incremental Rev Req'!$F$91*$Q23)+IF(Q23>0,$J$12,0) -> 0 | J44: =IF($R23>$J23,F$25*$J23+F$26*($R23-$J23),$R23*F$25)+('Incremental Rev Req'!$F$91*$R23)+IF(R23>0,$J$12,0) -> 0
B45: 0 | C45: =IF($Q24>$I24,C$22*$I24+C$23*($Q24-$I24),$Q24*C$22)+('Incremental Rev Req'!$F$91*$Q24)+IF(Q24>0,$F$12,0) -> 0 | D45: =IF($R24>$J24,C$25*$J24+C$26*($R24-$J24),$R24*C$25)+('Incremental Rev Req'!$F$91*$R24)+IF(R24>0,$F$12,0) -> 0 | E45: =IF($Q24>$I24,D$22*$I24+D$23*($Q24-$I24),$Q24*D$22)+('Incremental Rev Req'!$F$91*$Q24)+IF(Q24>0,$F$12,0) -> 0 | F45: =IF($R24>$J24,D$25*$J24+D$26*($R24-$J24),$R24*D$25)+('Incremental Rev Req'!$F$91*$R24)+IF(R24>0,$F$12,0) -> 0 | G45: =IF($Q24>$I24,E$22*$I24+E$23*($Q24-$I24),$Q24*E$22)+('Incremental Rev Req'!$F$91*$Q24)+IF(Q24>0,$H$12,0) -> 0 | H45: =IF($R24>$J24,E$25*$J24+E$26*($R24-$J24),$R24*E$25)+('Incremental Rev Req'!$F$91*$R24)+IF(R24>0,$H$12,0) -> 0 | I45: =IF($Q24>$I24,F$22*$I24+F$23*($Q24-$I24),$Q24*F$22)+('Incremental Rev Req'!$F$91*$Q24)+IF(Q24>0,$J$12,0) -> 0 | J45: =IF($R24>$J24,F$25*$J24+F$26*($R24-$J24),$R24*F$25)+('Incremental Rev Req'!$F$91*$R24)+IF(R24>0,$J$12,0) -> 0
B46: 0 | C46: =IF($Q25>$I25,C$22*$I25+C$23*($Q25-$I25),$Q25*C$22)+('Incremental Rev Req'!$F$91*$Q25)+IF(Q25>0,$F$12,0) -> 0 | D46: =IF($R25>$J25,C$25*$J25+C$26*($R25-$J25),$R25*C$25)+('Incremental Rev Req'!$F$91*$R25)+IF(R25>0,$F$12,0) -> 0 | E46: =IF($Q25>$I25,D$22*$I25+D$23*($Q25-$I25),$Q25*D$22)+('Incremental Rev Req'!$F$91*$Q25)+IF(Q25>0,$F$12,0) -> 0 | F46: =IF($R25>$J25,D$25*$J25+D$26*($R25-$J25),$R25*D$25)+('Incremental Rev Req'!$F$91*$R25)+IF(R25>0,$F$12,0) -> 0 | G46: =IF($Q25>$I25,E$22*$I25+E$23*($Q25-$I25),$Q25*E$22)+('Incremental Rev Req'!$F$91*$Q25)+IF(Q25>0,$H$12,0) -> 0 | H46: =IF($R25>$J25,E$25*$J25+E$26*($R25-$J25),$R25*E$25)+('Incremental Rev Req'!$F$91*$R25)+IF(R25>0,$H$12,0) -> 0 | I46: =IF($Q25>$I25,F$22*$I25+F$23*($Q25-$I25),$Q25*F$22)+('Incremental Rev Req'!$F$91*$Q25)+IF(Q25>0,$J$12,0) -> 0 | J46: =IF($R25>$J25,F$25*$J25+F$26*($R25-$J25),$R25*F$25)+('Incremental Rev Req'!$F$91*$R25)+IF(R25>0,$J$12,0) -> 0
B47: Total | C47: =SUMPRODUCT(C43:C46,$U$22:$U$25) -> 0 | D47: =SUMPRODUCT(D43:D46,$U$22:$U$25) -> 0 | E47: 0 | F47: 0 | G47: 0 | H47: 0 | I47: 0 | J47: 0
C50: 2023 Recorded Average Basic Bundled CARE Customer Bill
C51: =C30 -> 2026-01-01 | E51: =D30 -> 2026-01-01 | G51: =E30 -> Authorized | I51: =F30 -> w/Pending
C52: Summer | D52: Winter | E52: Summer | F52: Winter | G52: Summer | H52: Winter | I52: Summer | J52: Winter
B53: =Zones -> SDG&E | C53: =IF($S22>$I22,C$31*$I22+C$32*($S22-$I22),$S22*C$31)+('Incremental Rev Req'!$F$91*$S22)+IF(S22>0,$Q$12,0) -> 23.98114509 | D53: =IF($T22>$J22,C$34*$J22+C$35*($T22-$J22),$T22*C$34)+('Incremental Rev Req'!$F$91*$T22)+IF(T22>0,$Q$12,0) -> 38.15046087 | E53: =IF($S22>$I22,D$31*$I22+D$32*($S22-$I22),$S22*D$31)+('Incremental Rev Req'!$F$91*$S22)+IF(S22>0,$Q$12,0) -> 23.98114509 | F53: =IF($T22>$J22,D$34*$J22+D$35*($T22-$J22),$T22*D$34)+('Incremental Rev Req'!$F$91*$T22)+IF(T22>0,$Q$12,0) -> 43.96405741 | G53: =IF($S22>$I22,E$31*$I22+E$32*($S22-$I22),$S22*E$31)+('Incremental Rev Req'!$F$91*$S22)+IF(S22>0,$S$12,0) -> 27.67852049 | H53: =IF($T22>$J22,E$34*$J22+E$35*($T22-$J22),$T22*E$34)+('Incremental Rev Req'!$F$91*$T22)+IF(T22>0,$S$12,0) -> 44.33535956 | I53: =IF($S22>$I22,F$31*$I22+F$32*($S22-$I22),$S22*F$31)+('Incremental Rev Req'!$F$91*$S22)+IF(S22>0,$U$12,0) -> 29.50696758 | J53: =IF($T22>$J22,F$34*$J22+F$35*($T22-$J22),$T22*F$34)+('Incremental Rev Req'!$F$91*$T22)+IF(T22>0,$U$12,0) -> 47.26394984
B54: 0 | C54: =IF($S23>$I23,C$31*$I23+C$32*($S23-$I23),$S23*C$31)+('Incremental Rev Req'!$F$91*$S23)+IF(S23>0,$Q$12,0) -> 0 | D54: =IF($T23>$J23,C$34*$J23+C$35*($T23-$J23),$T23*C$34)+('Incremental Rev Req'!$F$91*$T23)+IF(T23>0,$Q$12,0) -> 0 | E54: =IF($S23>$I23,D$31*$I23+D$32*($S23-$I23),$S23*D$31)+('Incremental Rev Req'!$F$91*$S23)+IF(S23>0,$Q$12,0) -> 0 | F54: =IF($T23>$J23,D$34*$J23+D$35*($T23-$J23),$T23*D$34)+('Incremental Rev Req'!$F$91*$T23)+IF(T23>0,$Q$12,0) -> 0 | G54: =IF($S23>$I23,E$31*$I23+E$32*($S23-$I23),$S23*E$31)+('Incremental Rev Req'!$F$91*$S23)+IF(S23>0,$S$12,0) -> 0 | H54: =IF($T23>$J23,E$34*$J23+E$35*($T23-$J23),$T23*E$34)+('Incremental Rev Req'!$F$91*$T23)+IF(T23>0,$S$12,0) -> 0 | I54: =IF($S23>$I23,F$31*$I23+F$32*($S23-$I23),$S23*F$31)+('Incremental Rev Req'!$F$91*$S23)+IF(S23>0,$U$12,0) -> 0 | J54: =IF($T23>$J23,F$34*$J23+F$35*($T23-$J23),$T23*F$34)+('Incremental Rev Req'!$F$91*$T23)+IF(T23>0,$U$12,0) -> 0
B55: 0 | C55: =IF($S24>$I24,C$31*$I24+C$32*($S24-$I24),$S24*C$31)+('Incremental Rev Req'!$F$91*$S24)+IF(S24>0,$Q$12,0) -> 0 | D55: =IF($T24>$J24,C$34*$J24+C$35*($T24-$J24),$T24*C$34)+('Incremental Rev Req'!$F$91*$T24)+IF(T24>0,$Q$12,0) -> 0 | E55: =IF($S24>$I24,D$31*$I24+D$32*($S24-$I24),$S24*D$31)+('Incremental Rev Req'!$F$91*$S24)+IF(S24>0,$Q$12,0) -> 0 | F55: =IF($T24>$J24,D$34*$J24+D$35*($T24-$J24),$T24*D$34)+('Incremental Rev Req'!$F$91*$T24)+IF(T24>0,$Q$12,0) -> 0 | G55: =IF($S24>$I24,E$31*$I24+E$32*($S24-$I24),$S24*E$31)+('Incremental Rev Req'!$F$91*$S24)+IF(S24>0,$S$12,0) -> 0 | H55: =IF($T24>$J24,E$34*$J24+E$35*($T24-$J24),$T24*E$34)+('Incremental Rev Req'!$F$91*$T24)+IF(T24>0,$S$12,0) -> 0 | I55: =IF($S24>$I24,F$31*$I24+F$32*($S24-$I24),$S24*F$31)+('Incremental Rev Req'!$F$91*$S24)+IF(S24>0,$U$12,0) -> 0 | J55: =IF($T24>$J24,F$34*$J24+F$35*($T24-$J24),$T24*F$34)+('Incremental Rev Req'!$F$91*$T24)+IF(T24>0,$U$12,0) -> 0
B56: 0 | C56: =IF($S25>$I25,C$31*$I25+C$32*($S25-$I25),$S25*C$31)+('Incremental Rev Req'!$F$91*$S25)+IF(S25>0,$Q$12,0) -> 0 | D56: =IF($T25>$J25,C$34*$J25+C$35*($T25-$J25),$T25*C$34)+('Incremental Rev Req'!$F$91*$T25)+IF(T25>0,$Q$12,0) -> 0 | E56: =IF($S25>$I25,D$31*$I25+D$32*($S25-$I25),$S25*D$31)+('Incremental Rev Req'!$F$91*$S25)+IF(S25>0,$Q$12,0) -> 0 | F56: =IF($T25>$J25,D$34*$J25+D$35*($T25-$J25),$T25*D$34)+('Incremental Rev Req'!$F$91*$T25)+IF(T25>0,$Q$12,0) -> 0 | G56: =IF($S25>$I25,E$31*$I25+E$32*($S25-$I25),$S25*E$31)+('Incremental Rev Req'!$F$91*$S25)+IF(S25>0,$S$12,0) -> 0 | H56: =IF($T25>$J25,E$34*$J25+E$35*($T25-$J25),$T25*E$34)+('Incremental Rev Req'!$F$91*$T25)+IF(T25>0,$S$12,0) -> 0 | I56: =IF($S25>$I25,F$31*$I25+F$32*($S25-$I25),$S25*F$31)+('Incremental Rev Req'!$F$91*$S25)+IF(S25>0,$U$12,0) -> 0 | J56: =IF($T25>$J25,F$34*$J25+F$35*($T25-$J25),$T25*F$34)+('Incremental Rev Req'!$F$91*$T25)+IF(T25>0,$U$12,0) -> 0
B57: Total | C57: =SUMPRODUCT(C53:C56,$V$22:$V$25) -> 0 | D57: =SUMPRODUCT(D53:D56,$V$22:$V$25) -> 0 | E57: 0 | F57: 0 | G57: 0 | H57: 0 | I57: 0 | J57: 0
C60: Essential Usage Basic Bundled Non-CARE Customer Bill
C61: =C51 -> 2026-01-01 | E61: =E51 -> 2026-01-01 | G61: =G51 -> Authorized | I61: =I51 -> w/Pending
C62: Summer | D62: Winter | E62: Summer | F62: Winter | G62: Summer | H62: Winter | I62: Summer | J62: Winter
B63: =Zones -> SDG&E | C63: =($C$22*$I22)+('Incremental Rev Req'!$F$91*$I22)+IF(I22>0,$F$12,0) -> 21.52523892 | D63: =($C$25*$J22)+('Incremental Rev Req'!$F$91*$J22)+IF(J22>0,$F$12,0) -> 56.74835716 | E63: =($D$22*$I22)+('Incremental Rev Req'!$F$91*$I22)+IF(I22>0,$F$12,0) -> 21.52523892 | F63: =($D$25*$J22)+('Incremental Rev Req'!$F$91*$J22)+IF(J22>0,$F$12,0) -> 56.74835716 | G63: =($E$22*$I22)+('Incremental Rev Req'!$F$91*$I22)+IF(I22>0,$H$12,0) -> 24.96723743 | H63: =($E$25*$J22)+('Incremental Rev Req'!$F$91*$J22)+IF(J22>0,$H$12,0) -> 65.82271687 | I63: =($F$22*$I22)+('Incremental Rev Req'!$F$91*$I22)+IF(I22>0,$J$12,0) -> 26.61712816 | J63: =($F$25*$J22)+('Incremental Rev Req'!$F$91*$J22)+IF(J22>0,$J$12,0) -> 70.17242878
B64: 0 | C64: =($C$22*$I23)+('Incremental Rev Req'!$F$91*$I23)+IF(I23>0,$F$12,0) -> 0 | D64: =($C$25*$J23)+('Incremental Rev Req'!$F$91*$J23)+IF(J23>0,$F$12,0) -> 0 | E64: =($D$22*$I23)+('Incremental Rev Req'!$F$91*$I23)+IF(I23>0,$F$12,0) -> 0 | F64: =($D$25*$J23)+('Incremental Rev Req'!$F$91*$J23)+IF(J23>0,$F$12,0) -> 0 | G64: =($E$22*$I23)+('Incremental Rev Req'!$F$91*$I23)+IF(I23>0,$H$12,0) -> 0 | H64: =($E$25*$J23)+('Incremental Rev Req'!$F$91*$J23)+IF(J23>0,$H$12,0) -> 0 | I64: =($F$22*$I23)+('Incremental Rev Req'!$F$91*$I23)+IF(I23>0,$J$12,0) -> 0 | J64: =($F$25*$J23)+('Incremental Rev Req'!$F$91*$J23)+IF(J23>0,$J$12,0) -> 0
B65: 0 | C65: =($C$22*$I24)+('Incremental Rev Req'!$F$91*$I24)+IF(I24>0,$F$12,0) -> 0 | D65: =($C$25*$J24)+('Incremental Rev Req'!$F$91*$J24)+IF(J24>0,$F$12,0) -> 0 | E65: =($D$22*$I24)+('Incremental Rev Req'!$F$91*$I24)+IF(I24>0,$F$12,0) -> 0 | F65: =($D$25*$J24)+('Incremental Rev Req'!$F$91*$J24)+IF(J24>0,$F$12,0) -> 0 | G65: =($E$22*$I24)+('Incremental Rev Req'!$F$91*$I24)+IF(I24>0,$H$12,0) -> 0 | H65: =($E$25*$J24)+('Incremental Rev Req'!$F$91*$J24)+IF(J24>0,$H$12,0) -> 0 | I65: =($F$22*$I24)+('Incremental Rev Req'!$F$91*$I24)+IF(I24>0,$J$12,0) -> 0 | J65: =($F$25*$J24)+('Incremental Rev Req'!$F$91*$J24)+IF(J24>0,$J$12,0) -> 0
B66: 0 | C66: =($C$22*$I25)+('Incremental Rev Req'!$F$91*$I25)+IF(I25>0,$F$12,0) -> 0 | D66: =($C$25*$J25)+('Incremental Rev Req'!$F$91*$J25)+IF(J25>0,$F$12,0) -> 0 | E66: =($D$22*$I25)+('Incremental Rev Req'!$F$91*$I25)+IF(I25>0,$F$12,0) -> 0 | F66: =($D$25*$J25)+('Incremental Rev Req'!$F$91*$J25)+IF(J25>0,$F$12,0) -> 0 | G66: =($E$22*$I25)+('Incremental Rev Req'!$F$91*$I25)+IF(I25>0,$H$12,0) -> 0 | H66: =($E$25*$J25)+('Incremental Rev Req'!$F$91*$J25)+IF(J25>0,$H$12,0) -> 0 | I66: =($F$22*$I25)+('Incremental Rev Req'!$F$91*$I25)+IF(I25>0,$J$12,0) -> 0 | J66: =($F$25*$J25)+('Incremental Rev Req'!$F$91*$J25)+IF(J25>0,$J$12,0) -> 0
B67: Total | C67: =SUMPRODUCT(C63:C66,$U$22:$U$25) -> 0 | D67: =SUMPRODUCT(D63:D66,$U$22:$U$25) -> 0 | E67: =SUMPRODUCT(E63:E66,$U$22:$U$25) -> 0 | F67: =SUMPRODUCT(F63:F66,$U$22:$U$25) -> 0 | G67: 0 | H67: 0 | I67: 0 | J67: 0
C70: Essential Usage Basic Bundled CARE Customer Bill
C71: =C61 -> 2026-01-01 | E71: =E61 -> 2026-01-01 | G71: =G61 -> Authorized | I71: =I61 -> w/Pending
C72: Summer | D72: Winter | E72: Summer | F72: Winter | G72: Summer | H72: Winter | I72: Summer | J72: Winter
B73: =Zones -> SDG&E | C73: =($C$31*$I22)+('Incremental Rev Req'!$F$91*$I22)+IF(I22>0,$Q$12,0) -> 17.01304336 | D73: =($C$34*$J22)+('Incremental Rev Req'!$F$91*$J22)+IF(J22>0,$Q$12,0) -> 44.85256886 | E73: =($D$31*$I22)+('Incremental Rev Req'!$F$91*$I22)+IF(I22>0,$Q$12,0) -> 17.01304336 | F73: =($D$34*$J22)+('Incremental Rev Req'!$F$91*$J22)+IF(J22>0,$Q$12,0) -> 51.6874729 | G73: =($E$31*$I22)+('Incremental Rev Req'!$F$91*$I22)+IF(I22>0,$S$12,0) -> 19.77117386 | H73: =($E$34*$J22)+('Incremental Rev Req'!$F$91*$J22)+IF(J22>0,$S$12,0) -> 52.12400381 | I73: =($F$31*$I22)+('Incremental Rev Req'!$F$91*$I22)+IF(I22>0,$U$12,0) -> 21.07716682 | J73: =($F$34*$J22)+('Incremental Rev Req'!$F$91*$J22)+IF(J22>0,$U$12,0) -> 55.56707616
B74: 0 | C74: =($C$31*$I23)+('Incremental Rev Req'!$F$91*$I23)+IF(I23>0,$Q$12,0) -> 0 | D74: =($C$34*$J23)+('Incremental Rev Req'!$F$91*$J23)+IF(J23>0,$Q$12,0) -> 0 | E74: =($D$31*$I23)+('Incremental Rev Req'!$F$91*$I23)+IF(I23>0,$Q$12,0) -> 0 | F74: =($D$34*$J23)+('Incremental Rev Req'!$F$91*$J23)+IF(J23>0,$Q$12,0) -> 0 | G74: =($E$31*$I23)+('Incremental Rev Req'!$F$91*$I23)+IF(I23>0,$S$12,0) -> 0 | H74: =($E$34*$J23)+('Incremental Rev Req'!$F$91*$J23)+IF(J23>0,$S$12,0) -> 0 | I74: =($F$31*$I23)+('Incremental Rev Req'!$F$91*$I23)+IF(I23>0,$U$12,0) -> 0 | J74: =($F$34*$J23)+('Incremental Rev Req'!$F$91*$J23)+IF(J23>0,$U$12,0) -> 0
B75: 0 | C75: =($C$31*$I24)+('Incremental Rev Req'!$F$91*$I24)+IF(I24>0,$Q$12,0) -> 0 | D75: =($C$34*$J24)+('Incremental Rev Req'!$F$91*$J24)+IF(J24>0,$Q$12,0) -> 0 | E75: =($D$31*$I24)+('Incremental Rev Req'!$F$91*$I24)+IF(I24>0,$Q$12,0) -> 0 | F75: =($D$34*$J24)+('Incremental Rev Req'!$F$91*$J24)+IF(J24>0,$Q$12,0) -> 0 | G75: =($E$31*$I24)+('Incremental Rev Req'!$F$91*$I24)+IF(I24>0,$S$12,0) -> 0 | H75: =($E$34*$J24)+('Incremental Rev Req'!$F$91*$J24)+IF(J24>0,$S$12,0) -> 0 | I75: =($F$31*$I24)+('Incremental Rev Req'!$F$91*$I24)+IF(I24>0,$U$12,0) -> 0 | J75: =($F$34*$J24)+('Incremental Rev Req'!$F$91*$J24)+IF(J24>0,$U$12,0) -> 0
B76: 0 | C76: =($C$31*$I25)+('Incremental Rev Req'!$F$91*$I25)+IF(I25>0,$Q$12,0) -> 0 | D76: =($C$34*$J25)+('Incremental Rev Req'!$F$91*$J25)+IF(J25>0,$Q$12,0) -> 0 | E76: =($D$31*$I25)+('Incremental Rev Req'!$F$91*$I25)+IF(I25>0,$Q$12,0) -> 0 | F76: =($D$34*$J25)+('Incremental Rev Req'!$F$91*$J25)+IF(J25>0,$Q$12,0) -> 0 | G76: =($E$31*$I25)+('Incremental Rev Req'!$F$91*$I25)+IF(I25>0,$S$12,0) -> 0 | H76: =($E$34*$J25)+('Incremental Rev Req'!$F$91*$J25)+IF(J25>0,$S$12,0) -> 0 | I76: =($F$31*$I25)+('Incremental Rev Req'!$F$91*$I25)+IF(I25>0,$U$12,0) -> 0 | J76: =($F$34*$J25)+('Incremental Rev Req'!$F$91*$J25)+IF(J25>0,$U$12,0) -> 0
B77: Total | C77: =SUMPRODUCT(C73:C76,$V$22:$V$25) -> 0 | D77: =SUMPRODUCT(D73:D76,$V$22:$V$25) -> 0 | E77: 0 | F77: 0 | G77: 0 | H77: 0 | I77: 0 | J77: 0
C80: Typical Monthly Basic Bundled Non-CARE Customer
C81: =C71 -> 2026-01-01 | E81: =E71 -> 2026-01-01 | G81: =G71 -> Authorized | I81: =I71 -> w/Pending
C82: Summer | D82: Winter | E82: Summer | F82: Winter | G82: Summer | H82: Winter | I82: Summer | J82: Winter
B83: =Zones -> SDG&E | C83: =IF($Q31>$I22,C$22*$I22+C$23*($Q31-$I22),$Q31*C$22)+('Incremental Rev Req'!$F$91*$Q31)+IF(Q31>0,$F$12,0) -> 31.55249314 | D83: =IF($R31>$J22,C$25*$J22+C$26*($R31-$J22),$R31*C$25)+('Incremental Rev Req'!$F$91*$R31)+IF(R31>0,$F$12,0) -> 63.82814722 | E83: =IF($Q31>$I22,D$22*$I22+D$23*($Q31-$I22),$Q31*D$22)+('Incremental Rev Req'!$F$91*$Q31)+IF(Q31>0,$F$12,0) -> 31.55249314 | F83: =IF($R31>$J22,D$25*$J22+D$26*($R31-$J22),$R31*D$25)+('Incremental Rev Req'!$F$91*$R31)+IF(R31>0,$F$12,0) -> 63.82814722 | G83: =IF($Q31>$I22,E$22*$I22+E$23*($Q31-$I22),$Q31*E$22)+('Incremental Rev Req'!$F$91*$Q31)+IF(Q31>0,$H$12,0) -> 36.32997821 | H83: =IF($R31>$J22,E$25*$J22+E$26*($R31-$J22),$R31*E$25)+('Incremental Rev Req'!$F$91*$R31)+IF(R31>0,$H$12,0) -> 73.84543351 | I83: =IF($Q31>$I22,F$22*$I22+F$23*($Q31-$I22),$Q31*F$22)+('Incremental Rev Req'!$F$91*$Q31)+IF(Q31>0,$J$12,0) -> 38.73089207 | J83: =IF($R31>$J22,F$25*$J22+F$26*($R31-$J22),$R31*F$25)+('Incremental Rev Req'!$F$91*$R31)+IF(R31>0,$J$12,0) -> 78.72540884
B84: 0 | C84: =IF($Q32>$I23,C$22*$I23+C$23*($Q32-$I23),$Q32*C$22)+('Incremental Rev Req'!$F$91*$Q32)+IF(Q32>0,$F$12,0) -> 0 | D84: =IF($R32>$J23,C$25*$J23+C$26*($R32-$J23),$R32*C$25)+('Incremental Rev Req'!$F$91*$R32)+IF(R32>0,$F$12,0) -> 0 | E84: =IF($Q32>$I23,D$22*$I23+D$23*($Q32-$I23),$Q32*D$22)+('Incremental Rev Req'!$F$91*$Q32)+IF(Q32>0,$F$12,0) -> 0 | F84: =IF($R32>$J23,D$25*$J23+D$26*($R32-$J23),$R32*D$25)+('Incremental Rev Req'!$F$91*$R32)+IF(R32>0,$F$12,0) -> 0 | G84: =IF($Q32>$I23,E$22*$I23+E$23*($Q32-$I23),$Q32*E$22)+('Incremental Rev Req'!$F$91*$Q32)+IF(Q32>0,$H$12,0) -> 0 | H84: =IF($R32>$J23,E$25*$J23+E$26*($R32-$J23),$R32*E$25)+('Incremental Rev Req'!$F$91*$R32)+IF(R32>0,$H$12,0) -> 0 | I84: =IF($Q32>$I23,F$22*$I23+F$23*($Q32-$I23),$Q32*F$22)+('Incremental Rev Req'!$F$91*$Q32)+IF(Q32>0,$J$12,0) -> 0 | J84: =IF($R32>$J23,F$25*$J23+F$26*($R32-$J23),$R32*F$25)+('Incremental Rev Req'!$F$91*$R32)+IF(R32>0,$J$12,0) -> 0
B85: 0 | C85: =IF($Q33>$I24,C$22*$I24+C$23*($Q33-$I24),$Q33*C$22)+('Incremental Rev Req'!$F$91*$Q33)+IF(Q33>0,$F$12,0) -> 0 | D85: =IF($R33>$J24,C$25*$J24+C$26*($R33-$J24),$R33*C$25)+('Incremental Rev Req'!$F$91*$R33)+IF(R33>0,$F$12,0) -> 0 | E85: =IF($Q33>$I24,D$22*$I24+D$23*($Q33-$I24),$Q33*D$22)+('Incremental Rev Req'!$F$91*$Q33)+IF(Q33>0,$F$12,0) -> 0 | F85: =IF($R33>$J24,D$25*$J24+D$26*($R33-$J24),$R33*D$25)+('Incremental Rev Req'!$F$91*$R33)+IF(R33>0,$F$12,0) -> 0 | G85: =IF($Q33>$I24,E$22*$I24+E$23*($Q33-$I24),$Q33*E$22)+('Incremental Rev Req'!$F$91*$Q33)+IF(Q33>0,$H$12,0) -> 0 | H85: =IF($R33>$J24,E$25*$J24+E$26*($R33-$J24),$R33*E$25)+('Incremental Rev Req'!$F$91*$R33)+IF(R33>0,$H$12,0) -> 0 | I85: =IF($Q33>$I24,F$22*$I24+F$23*($Q33-$I24),$Q33*F$22)+('Incremental Rev Req'!$F$91*$Q33)+IF(Q33>0,$J$12,0) -> 0 | J85: =IF($R33>$J24,F$25*$J24+F$26*($R33-$J24),$R33*F$25)+('Incremental Rev Req'!$F$91*$R33)+IF(R33>0,$J$12,0) -> 0
B86: 0 | C86: =IF($Q34>$I25,C$22*$I25+C$23*($Q34-$I25),$Q34*C$22)+('Incremental Rev Req'!$F$91*$Q34)+IF(Q34>0,$F$12,0) -> 0 | D86: =IF($R34>$J25,C$25*$J25+C$26*($R34-$J25),$R34*C$25)+('Incremental Rev Req'!$F$91*$R34)+IF(R34>0,$F$12,0) -> 0 | E86: =IF($Q34>$I25,D$22*$I25+D$23*($Q34-$I25),$Q34*D$22)+('Incremental Rev Req'!$F$91*$Q34)+IF(Q34>0,$F$12,0) -> 0 | F86: =IF($R34>$J25,D$25*$J25+D$26*($R34-$J25),$R34*D$25)+('Incremental Rev Req'!$F$91*$R34)+IF(R34>0,$F$12,0) -> 0 | G86: =IF($Q34>$I25,E$22*$I25+E$23*($Q34-$I25),$Q34*E$22)+('Incremental Rev Req'!$F$91*$Q34)+IF(Q34>0,$H$12,0) -> 0 | H86: =IF($R34>$J25,E$25*$J25+E$26*($R34-$J25),$R34*E$25)+('Incremental Rev Req'!$F$91*$R34)+IF(R34>0,$H$12,0) -> 0 | I86: =IF($Q34>$I25,F$22*$I25+F$23*($Q34-$I25),$Q34*F$22)+('Incremental Rev Req'!$F$91*$Q34)+IF(Q34>0,$J$12,0) -> 0 | J86: =IF($R34>$J25,F$25*$J25+F$26*($R34-$J25),$R34*F$25)+('Incremental Rev Req'!$F$91*$R34)+IF(R34>0,$J$12,0) -> 0
B87: Total | C87: =SUMPRODUCT(C83:C86,$U$22:$U$25) -> 0 | D87: =SUMPRODUCT(D83:D86,$U$22:$U$25) -> 0 | E87: =SUMPRODUCT(E83:E86,$U$22:$U$25) -> 0 | F87: 0 | G87: 0 | H87: 0 | I87: 0 | J87: 0
C90: Typical Average Monthly Basic Bundled CARE Customer
C91: =C81 -> 2026-01-01 | E91: =E81 -> 2026-01-01 | G91: =G81 -> Authorized | I91: =I81 -> w/Pending
C92: Summer | D92: Winter | E92: Summer | F92: Winter | G92: Summer | H92: Winter | I92: Summer | J92: Winter
B93: =Zones -> SDG&E | C93: =IF($S31>$I22,C$31*$I22+C$32*($S31-$I22),$S31*C$31)+('Incremental Rev Req'!$F$91*$S31)+IF(S31>0,$Q$12,0) -> 23.82667903 | D93: =IF($T31>$J22,C$34*$J22+C$35*($T31-$J22),$T31*C$34)+('Incremental Rev Req'!$F$91*$T31)+IF(T31>0,$Q$12,0) -> 40.79767982 | E93: =IF($S31>$I22,D$31*$I22+D$32*($S31-$I22),$S31*D$31)+('Incremental Rev Req'!$F$91*$S31)+IF(S31>0,$Q$12,0) -> 23.82667903 | F93: =IF($T31>$J22,D$34*$J22+D$35*($T31-$J22),$T31*D$34)+('Incremental Rev Req'!$F$91*$T31)+IF(T31>0,$Q$12,0) -> 47.01467549 | G93: =IF($S31>$I22,E$31*$I22+E$32*($S31-$I22),$S31*E$31)+('Incremental Rev Req'!$F$91*$S31)+IF(S31>0,$S$12,0) -> 27.50323363 | H93: =IF($T31>$J22,E$34*$J22+E$35*($T31-$J22),$T31*E$34)+('Incremental Rev Req'!$F$91*$T31)+IF(T31>0,$S$12,0) -> 47.4117419 | I93: =IF($S31>$I22,F$31*$I22+F$32*($S31-$I22),$S31*F$31)+('Incremental Rev Req'!$F$91*$S31)+IF(S31>0,$U$12,0) -> 29.32009916 | J93: =IF($T31>$J22,F$34*$J22+F$35*($T31-$J22),$T31*F$34)+('Incremental Rev Req'!$F$91*$T31)+IF(T31>0,$U$12,0) -> 50.54354387
B94: 0 | C94: =IF($S32>$I23,C$31*$I23+C$32*($S32-$I23),$S32*C$31)+('Incremental Rev Req'!$F$91*$S32)+IF(S32>0,$Q$12,0) -> 0 | D94: =IF($T32>$J23,C$34*$J23+C$35*($T32-$J23),$T32*C$34)+('Incremental Rev Req'!$F$91*$T32)+IF(T32>0,$Q$12,0) -> 0 | E94: =IF($S32>$I23,D$31*$I23+D$32*($S32-$I23),$S32*D$31)+('Incremental Rev Req'!$F$91*$S32)+IF(S32>0,$Q$12,0) -> 0 | F94: =IF($T32>$J23,D$34*$J23+D$35*($T32-$J23),$T32*D$34)+('Incremental Rev Req'!$F$91*$T32)+IF(T32>0,$Q$12,0) -> 0 | G94: =IF($S32>$I23,E$31*$I23+E$32*($S32-$I23),$S32*E$31)+('Incremental Rev Req'!$F$91*$S32)+IF(S32>0,$S$12,0) -> 0 | H94: =IF($T32>$J23,E$34*$J23+E$35*($T32-$J23),$T32*E$34)+('Incremental Rev Req'!$F$91*$T32)+IF(T32>0,$S$12,0) -> 0 | I94: =IF($S32>$I23,F$31*$I23+F$32*($S32-$I23),$S32*F$31)+('Incremental Rev Req'!$F$91*$S32)+IF(S32>0,$U$12,0) -> 0 | J94: =IF($T32>$J23,F$34*$J23+F$35*($T32-$J23),$T32*F$34)+('Incremental Rev Req'!$F$91*$T32)+IF(T32>0,$U$12,0) -> 0
B95: 0 | C95: =IF($S33>$I24,C$31*$I24+C$32*($S33-$I24),$S33*C$31)+('Incremental Rev Req'!$F$91*$S33)+IF(S33>0,$Q$12,0) -> 0 | D95: =IF($T33>$J24,C$34*$J24+C$35*($T33-$J24),$T33*C$34)+('Incremental Rev Req'!$F$91*$T33)+IF(T33>0,$Q$12,0) -> 0 | E95: =IF($S33>$I24,D$31*$I24+D$32*($S33-$I24),$S33*D$31)+('Incremental Rev Req'!$F$91*$S33)+IF(S33>0,$Q$12,0) -> 0 | F95: =IF($T33>$J24,D$34*$J24+D$35*($T33-$J24),$T33*D$34)+('Incremental Rev Req'!$F$91*$T33)+IF(T33>0,$Q$12,0) -> 0 | G95: =IF($S33>$I24,E$31*$I24+E$32*($S33-$I24),$S33*E$31)+('Incremental Rev Req'!$F$91*$S33)+IF(S33>0,$S$12,0) -> 0 | H95: =IF($T33>$J24,E$34*$J24+E$35*($T33-$J24),$T33*E$34)+('Incremental Rev Req'!$F$91*$T33)+IF(T33>0,$S$12,0) -> 0 | I95: =IF($S33>$I24,F$31*$I24+F$32*($S33-$I24),$S33*F$31)+('Incremental Rev Req'!$F$91*$S33)+IF(S33>0,$U$12,0) -> 0 | J95: =IF($T33>$J24,F$34*$J24+F$35*($T33-$J24),$T33*F$34)+('Incremental Rev Req'!$F$91*$T33)+IF(T33>0,$U$12,0) -> 0
B96: 0 | C96: =IF($S34>$I25,C$31*$I25+C$32*($S34-$I25),$S34*C$31)+('Incremental Rev Req'!$F$91*$S34)+IF(S34>0,$Q$12,0) -> 0 | D96: =IF($T34>$J25,C$34*$J25+C$35*($T34-$J25),$T34*C$34)+('Incremental Rev Req'!$F$91*$T34)+IF(T34>0,$Q$12,0) -> 0 | E96: =IF($S34>$I25,D$31*$I25+D$32*($S34-$I25),$S34*D$31)+('Incremental Rev Req'!$F$91*$S34)+IF(S34>0,$Q$12,0) -> 0 | F96: =IF($T34>$J25,D$34*$J25+D$35*($T34-$J25),$T34*D$34)+('Incremental Rev Req'!$F$91*$T34)+IF(T34>0,$Q$12,0) -> 0 | G96: =IF($S34>$I25,E$31*$I25+E$32*($S34-$I25),$S34*E$31)+('Incremental Rev Req'!$F$91*$S34)+IF(S34>0,$S$12,0) -> 0 | H96: =IF($T34>$J25,E$34*$J25+E$35*($T34-$J25),$T34*E$34)+('Incremental Rev Req'!$F$91*$T34)+IF(T34>0,$S$12,0) -> 0 | I96: =IF($S34>$I25,F$31*$I25+F$32*($S34-$I25),$S34*F$31)+('Incremental Rev Req'!$F$91*$S34)+IF(S34>0,$U$12,0) -> 0 | J96: =IF($T34>$J25,F$34*$J25+F$35*($T34-$J25),$T34*F$34)+('Incremental Rev Req'!$F$91*$T34)+IF(T34>0,$U$12,0) -> 0
B97: Total | C97: =SUMPRODUCT(C93:C96,$V$22:$V$25) -> 0 | D97: =SUMPRODUCT(D93:D96,$V$22:$V$25) -> 0 | E97: 0 | F97: 0 | G97: 0 | H97: 0 | I97: 0 | J97: 0

Sheet Hypothetical Summary
B1: Inputs: | F1: Assumptions:
F2: Current Effective Rates | H2: =SetUp!D4 -> 2026-01-01
C3: Baseline Region - (Residential bill) | D3: SDG&E | F3: Sales Forecast | H3: =Summary!I3 -> 2024
F4: Residential bill calculated using | H4: =Summary!I4 -> Schedule GR, Basic, Bundled, Single Family
D5: Revenue Change ($000) | F5: Non-CARE bill impact calculated with average summer usage of | J5: =IF($D$3="ALL",SUMPRODUCT('Hypothetical Res Bill Impact'!Q22:Q25,'Hypothetical Res Bill Impact'!U22:U25),VLOOKUP($D$3,'Hypothetical Res Bill Impact'!$P$22:$T$25,2,FALSE)) -> 15 | K5: therms per month
C6: Procurement | F6: Non-CARE bill impact calculated with average winter usage of | J6: =IF($D$3="ALL",SUMPRODUCT('Hypothetical Res Bill Impact'!R22:R25,'Hypothetical Res Bill Impact'!U22:U25),VLOOKUP(D$3,'Hypothetical Res Bill Impact'!$P$22:$T$25,3,FALSE)) -> 29 | K6: therms per month
C7: Customer Costs | F7: CARE bill impact calculated with average summer usage of | J7: =IF($D$3="ALL",SUMPRODUCT('Hypothetical Res Bill Impact'!S22:S25,'Hypothetical Res Bill Impact'!V22:V25),VLOOKUP($D$3,'Hypothetical Res Bill Impact'!$P$22:$T$25,4,FALSE)) -> 14.83333333 | K7: therms per month
C8: Medium Pressure Distribution | F8: CARE bill impact calculated with average winter usage of | J8: =IF($D$3="ALL",SUMPRODUCT('Hypothetical Res Bill Impact'!T22:T25,'Hypothetical Res Bill Impact'!V22:V25),VLOOKUP($D$3,'Hypothetical Res Bill Impact'!$P$22:$T$25,5,FALSE)) -> 24.66666667 | K8: therms per month
C9: High Pressure Distribution | F9: Average monthly usage is for all customers (Non-CARE and CARE) based on seasonal usage in | K9: =Summary!L9 -> 2024
C10: Local Transmission | F10: Summer season | H10: =Summary!I10 -> 6 | I10: months
C11: Storage | F11: Winter Season | H11: =Summary!I11 -> 6 | I11: months
C12: GHG Revenue
C13: Other Balancing Acounts
C14: NGV Costs
C15: Backbone Transmisson
C16: Public Purpose Programs
C20: Total | D20: =SUM(D6:D18) -> 0
B25: Outputs:
D26: (A) | E26: (B) | F26: (C) | G26: (C)/(A) | H26: (C)/(B) | L26: (A) | M26: (B) | N26: (C) | O26: (C)/(A) | P26: (C)/(B)
B27: Bundled Average Rates - ¢/therm | J27: Total System (Bundled and Unbundled) Average Rates - ¢/therm
B28: Customer Group | D28: =Summary!D26 -> 2026-01-01 | E28: =Summary!E26 -> 2026-01-01 | F28: Proposed | G28: =Summary!H26 -> % Change over 1/1/2026 | H28: =Summary!I26 -> % Change over 1/1/2026 | J28: Customer Group | L28: =D28 -> 2026-01-01 | M28: =E28 -> 2026-01-01 | N28: Proposed | O28: =Summary!P26 -> 2026 Authorized | P28: =Summary!Q26 -> 2026 w/Pending
B29: Residential | D29: 259.51483 | E29: ='Hypothetical SAR and RAR'!G28 -> 259.51483 | F29: ='Hypothetical SAR and RAR'!H28 -> 259.51483 | G29: =$F29/D29-1 -> 0 | H29: =$F29/E29-1 -> 0 | J29: Residential | L29: 259.2220402 | M29: ='Hypothetical SAR and RAR'!R28 -> 259.2220402 | N29: ='Hypothetical SAR and RAR'!S28 -> 259.2220402 | O29: =$N29/L29-1 -> 0 | P29: =$N29/M29-1 -> 0
B30: System | D30: 144.8031203 | E30: ='Hypothetical SAR and RAR'!G29 -> 144.8031203 | F30: ='Hypothetical SAR and RAR'!H29 -> 144.8031203 | G30: =$F30/D30-1 -> 0 | H30: =$F30/E30-1 -> 0 | J30: System | L30: 125.0777646 | M30: ='Hypothetical SAR and RAR'!R29 -> 125.0777646 | N30: ='Hypothetical SAR and RAR'!S29 -> 125.0777646 | O30: =$N30/L30-1 -> 0 | P30: =$N30/M30-1 -> 0
B33: Basic Bundled Residential Monthly Average Bills
D34: =$D$28 -> 2026-01-01 | E34: =$E$28 -> 2026-01-01 | F34: =$F$28 -> Proposed | G34: =$G$28 -> % Change over 1/1/2026 | H34: =$H$28 -> % Change over 1/1/2026
B35: Non-CARE | D35: =((D41*$H$10)+(D47*$H$11))/12 -> 56.91188456 | E35: =((E41*$H$10)+(E47*$H$11))/12 -> 56.91188456 | F35: 56.91188456 | G35: =$F35/D35-1 -> 0 | H35: 0
B36: CARE | D36: =((D42*$H$10)+(D48*$H$11))/12 -> 40.49829136 | E36: 40.49829136 | F36: 40.49829136 | G36: 0 | H36: 0
B37: Total | D37: =((D43*$H$10)+(D49*$H$11))/12 -> 53.9356414 | E37: 53.9356414 | F37: 53.9356414 | G37: 0 | H37: 0 | J37: ='Res Bill Impact'!P18 -> Basic Bundled
J38: ='Res Bill Impact'!P19 -> 2025 Recorded Data - Average Monthly Usage - ALL-BASIC th
B39: Basic Bundled Residential Monthly Average Bills - Summer | J39: Climate Zone | K39: Summer | L39: Winter | M39: Summer | N39: Winter
D40: =D34 -> 2026-01-01 | E40: =E28 -> 2026-01-01 | F40: =F28 -> Proposed | G40: =G28 -> % Change over 1/1/2026 | H40: =$H$28 -> % Change over 1/1/2026 | K40: Non-CARE | M40: CARE
B41: Non-CARE | D41: =IF($D$3="All",'Hypothetical Res Bill Impact'!$C$47,(VLOOKUP($D$3,'Hypothetical Res Bill Impact'!$B$43:$J$46,2,FALSE))) -> 39.78750129 | E41: =IF($D$3="All",'Hypothetical Res Bill Impact'!$E$47,(VLOOKUP($D$3,'Hypothetical Res Bill Impact'!$B$43:$J$46,4,FALSE))) -> 39.78750129 | F41: =IF($D$3="All",'Hypothetical Res Bill Impact'!$G$47,(VLOOKUP($D$3,'Hypothetical Res Bill Impact'!$B$43:$J$46,6,FALSE))) -> 39.78750129 | G41: =$F41/D41-1 -> 0 | H41: 0 | J41: =Zones -> SDG&E | K41: ='Hypothetical Res Bill Impact'!Q22 -> 15 | L41: ='Hypothetical Res Bill Impact'!R22 -> 29 | M41: ='Hypothetical Res Bill Impact'!S22 -> 14.83333333 | N41: ='Hypothetical Res Bill Impact'!T22 -> 24.66666667
B42: CARE | D42: =IF($D$3="All",'Hypothetical Res Bill Impact'!$C$57,(VLOOKUP($D$3,'Hypothetical Res Bill Impact'!$B$53:$J$56,2,FALSE))) -> 31.13117291 | E42: =IF($D$3="All",'Hypothetical Res Bill Impact'!$E$57,(VLOOKUP($D$3,'Hypothetical Res Bill Impact'!$B$53:$J$56,4,FALSE))) -> 31.13117291 | F42: =IF($D$3="All",'Hypothetical Res Bill Impact'!$G$57,(VLOOKUP($D$3,'Hypothetical Res Bill Impact'!$B$53:$J$56,6,FALSE))) -> 31.13117291 | G42: 0 | H42: 0 | J42: 0 | K42: ='Hypothetical Res Bill Impact'!Q23 -> 0 | L42: ='Hypothetical Res Bill Impact'!R23 -> 0 | M42: ='Hypothetical Res Bill Impact'!S23 -> 0 | N42: ='Hypothetical Res Bill Impact'!T23 -> 0
B43: Total | D43: =D41*(1-'Hypothetical SAR and RAR'!$AA$16)+D42*'Hypothetical SAR and RAR'!$AA$16 -> 38.21786704 | E43: =E41*(1-'Hypothetical SAR and RAR'!$AA$16)+E42*'Hypothetical SAR and RAR'!$AA$16 -> 38.21786704 | F43: =F41*(1-'Hypothetical SAR and RAR'!$AA$16)+F42*'Hypothetical SAR and RAR'!$AA$16 -> 38.21786704 | G43: 0 | H43: 0 | J43: 0 | K43: ='Hypothetical Res Bill Impact'!Q24 -> 0 | L43: ='Hypothetical Res Bill Impact'!R24 -> 0 | M43: ='Hypothetical Res Bill Impact'!S24 -> 0 | N43: ='Hypothetical Res Bill Impact'!T24 -> 0
J44: 0 | K44: ='Hypothetical Res Bill Impact'!Q25 -> 0 | L44: ='Hypothetical Res Bill Impact'!R25 -> 0 | M44: ='Hypothetical Res Bill Impact'!S25 -> 0 | N44: ='Hypothetical Res Bill Impact'!T25 -> 0
B45: Basic Bundled Residential Monthly Average Bills - Winter
D46: =$D$28 -> 2026-01-01 | E46: =$E$28 -> 2026-01-01 | F46: =F40 -> Proposed | G46: =G28 -> % Change over 1/1/2026 | H46: =$H$28 -> % Change over 1/1/2026
B47: Non-CARE | D47: =IF($D$3="All",'Hypothetical Res Bill Impact'!$D$47,(VLOOKUP($D$3,'Hypothetical Res Bill Impact'!$B$43:$J$46,3,FALSE))) -> 74.03626783 | E47: =IF($D$3="All",'Hypothetical Res Bill Impact'!$F$47,(VLOOKUP($D$3,'Hypothetical Res Bill Impact'!$B$43:$J$46,5,FALSE))) -> 74.03626783 | F47: =IF($D$3="All",'Hypothetical Res Bill Impact'!$H$47,(VLOOKUP($D$3,'Hypothetical Res Bill Impact'!$B$43:$J$46,7,FALSE))) -> 74.03626783 | G47: =$F47/D47-1 -> 0 | H47: 0
B48: CARE | D48: =IF($D$3="All",'Hypothetical Res Bill Impact'!$D$57,(VLOOKUP($D$3,'Hypothetical Res Bill Impact'!$B$53:$J$56,3,FALSE))) -> 49.86540982 | E48: =IF($D$3="All",'Hypothetical Res Bill Impact'!$F$57,(VLOOKUP($D$3,'Hypothetical Res Bill Impact'!$B$53:$J$56,5,FALSE))) -> 49.86540982 | F48: =IF($D$3="All",'Hypothetical Res Bill Impact'!$H$57,(VLOOKUP($D$3,'Hypothetical Res Bill Impact'!$B$53:$J$56,7,FALSE))) -> 49.86540982 | G48: 0 | H48: 0
B49: Total | D49: =D47*(1-'Hypothetical SAR and RAR'!$AA$16)+D48*'Hypothetical SAR and RAR'!$AA$16 -> 69.65341577 | E49: =E47*(1-'Hypothetical SAR and RAR'!$AA$16)+E48*'Hypothetical SAR and RAR'!$AA$16 -> 69.65341577 | F49: =F47*(1-'Hypothetical SAR and RAR'!$AA$16)+F48*'Hypothetical SAR and RAR'!$AA$16 -> 69.65341577 | G49: 0 | H49: 0
B52: Basic Bundled Essential Use Residential Monthly Average Bills
D53: =D46 -> 2026-01-01 | E53: =E46 -> 2026-01-01 | F53: =F46 -> Proposed | G53: =$G$28 -> % Change over 1/1/2026 | H53: % Change over Authorized
B54: Essential Use - Non-CARE | D54: =((D60*$H$10)+(D66*$H$11))/12 -> 51.05949506 | E54: =((E60*$H$10)+(E66*$H$11))/12 -> 51.05949506 | F54: 51.05949506 | G54: =$F54/D54-1 -> 0 | H54: 0
B55: Essential Use - CARE | D55: =((D61*$H$10)+(D67*$H$11))/12 -> 40.43141336 | E55: 40.43141336 | F55: 40.43141336 | G55: 0 | H55: 0
B56: Total | D56: =((D62*$H$10)+(D68*$H$11))/12 -> 49.13232682 | E56: 49.13232682 | F56: 49.13232682 | G56: 0 | H56: 0
J57: ='Res Bill Impact'!H19 -> Essential Usage
B58: Basic Bundled Essential Use Residential Monthly Average Bills - Summer | J58: Monthly Tier 1 Baseline Allowance -BASIC (th)
D59: =D53 -> 2026-01-01 | E59: =E53 -> 2026-01-01 | F59: =F53 -> Proposed | G59: =$G$28 -> % Change over 1/1/2026 | H59: % Change over Authorized | J59: Climate Zone | K59: Summer | L59: Winter
B60: Essential Use - Non-CARE | D60: =IF($D$3="All",'Hypothetical Res Bill Impact'!C67,(VLOOKUP($D$3,'Hypothetical Res Bill Impact'!$B$63:$J$66,2,FALSE))) -> 28.08272228 | E60: =IF($D$3="All",'Hypothetical Res Bill Impact'!E67,(VLOOKUP($D$3,'Hypothetical Res Bill Impact'!$B$63:$J$66,4,FALSE))) -> 28.08272228 | F60: =IF($D$3="All",'Hypothetical Res Bill Impact'!G67,(VLOOKUP($D$3,'Hypothetical Res Bill Impact'!$B$63:$J$66,6,FALSE))) -> 28.08272228 | G60: =$F60/D60-1 -> 0 | H60: 0 | J60: =Zones -> SDG&E | K60: ='Hypothetical Res Bill Impact'!I22 -> 11 | L60: ='Hypothetical Res Bill Impact'!J22 -> 29
B61: Essential Use - CARE | D61: =IF($D$3="All",'Hypothetical Res Bill Impact'!C77,(VLOOKUP($D$3,'Hypothetical Res Bill Impact'!$B$73:$J$76,2,FALSE))) -> 22.23727735 | E61: =IF($D$3="All",'Hypothetical Res Bill Impact'!E77,(VLOOKUP($D$3,'Hypothetical Res Bill Impact'!$B$73:$J$76,4,FALSE))) -> 22.23727735 | F61: =IF($D$3="All",'Hypothetical Res Bill Impact'!G77,(VLOOKUP($D$3,'Hypothetical Res Bill Impact'!$B$73:$J$76,6,FALSE))) -> 22.23727735 | G61: 0 | H61: 0 | J61: 0 | K61: ='Hypothetical Res Bill Impact'!I23 -> 0 | L61: ='Hypothetical Res Bill Impact'!J23 -> 0
B62: Total | D62: =D60*(1-'Hypothetical SAR and RAR'!$AA$16)+D61*'Hypothetical SAR and RAR'!$AA$16 -> 27.02277975 | E62: =E60*(1-'Hypothetical SAR and RAR'!$AA$16)+E61*'Hypothetical SAR and RAR'!$AA$16 -> 27.02277975 | F62: =F60*(1-'Hypothetical SAR and RAR'!$AA$16)+F61*'Hypothetical SAR and RAR'!$AA$16 -> 27.02277975 | G62: 0 | H62: 0 | J62: 0 | K62: ='Hypothetical Res Bill Impact'!I24 -> 0 | L62: ='Hypothetical Res Bill Impact'!J24 -> 0
J63: 0 | K63: ='Hypothetical Res Bill Impact'!I25 -> 0 | L63: ='Hypothetical Res Bill Impact'!J25 -> 0
B64: Basic Bundled Essential Use Residential Monthly Average Bills - Winter
D65: =D59 -> 2026-01-01 | E65: =E59 -> 2026-01-01 | F65: =F59 -> Proposed | G65: =$G$28 -> % Change over 1/1/2026 | H65: % Change over Authorized
B66: Essential Use - Non-CARE | D66: =IF($D$3="All",'Hypothetical Res Bill Impact'!D67,(VLOOKUP($D$3,'Hypothetical Res Bill Impact'!$B$63:$J$66,3,FALSE))) -> 74.03626783 | E66: =IF($D$3="All",'Hypothetical Res Bill Impact'!F67,(VLOOKUP($D$3,'Hypothetical Res Bill Impact'!$B$63:$J$66,5,FALSE))) -> 74.03626783 | F66: =IF($D$3="All",'Hypothetical Res Bill Impact'!H67,(VLOOKUP($D$3,'Hypothetical Res Bill Impact'!$B$63:$J$66,7,FALSE))) -> 74.03626783 | G66: =$F66/D66-1 -> 0 | H66: 0
B67: Essential Use - CARE | D67: =IF($D$3="All",'Hypothetical Res Bill Impact'!D77,(VLOOKUP($D$3,'Hypothetical Res Bill Impact'!$B$73:$J$76,3,FALSE))) -> 58.62554938 | E67: =IF($D$3="All",'Hypothetical Res Bill Impact'!F77,(VLOOKUP($D$3,'Hypothetical Res Bill Impact'!$B$73:$J$76,5,FALSE))) -> 58.62554938 | F67: =IF($D$3="All",'Hypothetical Res Bill Impact'!H77,(VLOOKUP($D$3,'Hypothetical Res Bill Impact'!$B$73:$J$76,7,FALSE))) -> 58.62554938 | G67: 0 | H67: 0
B68: Total | D68: =D66*(1-'Hypothetical SAR and RAR'!$AA$16)+D67*'Hypothetical SAR and RAR'!$AA$16 -> 71.24187389 | E68: =E66*(1-'Hypothetical SAR and RAR'!$AA$16)+E67*'Hypothetical SAR and RAR'!$AA$16 -> 71.24187389 | F68: =F66*(1-'Hypothetical SAR and RAR'!$AA$16)+F67*'Hypothetical SAR and RAR'!$AA$16 -> 71.24187389 | G68: 0 | H68: 0
B71: Basic Bundled Typical Residential Monthly Average Bills
D72: =D65 -> 2026-01-01 | E72: =E65 -> 2026-01-01 | F72: =F65 -> Proposed | G72: =$G$28 -> % Change over 1/1/2026 | H72: % Change over Authorized
B73: 5-Year Average Usage - Non-CARE | D73: =((D79*$H$10)+(D85*$H$11))/12 -> 61.96194899 | E73: =((E79*$H$10)+(E85*$H$11))/12 -> 61.96194899 | F73: 61.96194899 | G73: =$F73/D73-1 -> 0 | H73: 0
C74: 5-Year Average Usage - CARE | D74: =((D80*$H$10)+(D86*$H$11))/12 -> 42.12976648 | E74: 42.12976648 | F74: 42.12976648 | G74: 0 | H74: 0
B75: Total | D75: =((D81*$H$10)+(D87*$H$11))/12 -> 58.36582005 | E75: 58.36582005 | F75: 58.36582005 | G75: 0 | H75: 0 | J75: ='Res Bill Impact'!P27 -> Typical Bundled
J76: ='Res Bill Impact'!P28 -> 2021-2025 Recorded Data - Average Monthly Usage - ALL-BASIC th
B77: Basic Bundled Typical Residential Monthly Average Bills - Summer | J77: Climate Zone | K77: Summer | L77: Winter | M77: Summer | N77: Winter
D78: =D72 -> 2026-01-01 | E78: =E72 -> 2026-01-01 | F78: =F72 -> Proposed | G78: =$G$28 -> % Change over 1/1/2026 | H78: % Change over Authorized | K78: Non-CARE | M78: CARE
B79: 5-Year Average Usage - Non-CARE | D79: =IF($D$3="All",'Hypothetical Res Bill Impact'!C87,(VLOOKUP($D$3,'Hypothetical Res Bill Impact'!$B$83:$J$86,2,FALSE))) -> 40.86361831 | E79: =IF($D$3="All",'Hypothetical Res Bill Impact'!E87,(VLOOKUP($D$3,'Hypothetical Res Bill Impact'!$B$83:$J$86,4,FALSE))) -> 40.86361831 | F79: =IF($D$3="All",'Hypothetical Res Bill Impact'!G87,(VLOOKUP($D$3,'Hypothetical Res Bill Impact'!$B$83:$J$86,6,FALSE))) -> 40.86361831 | G79: =$F79/D79-1 -> 0 | H79: 0 | J79: =Zones -> SDG&E | K79: ='Hypothetical Res Bill Impact'!Q31 -> 15.36775304 | L79: ='Hypothetical Res Bill Impact'!R31 -> 32.0838726 | M79: ='Hypothetical Res Bill Impact'!S31 -> 14.74835755 | N79: ='Hypothetical Res Bill Impact'!T31 -> 26.37825982
C80: 5-Year Average Usage - CARE | D80: =IF($D$3="All",'Hypothetical Res Bill Impact'!C97,(VLOOKUP($D$3,'Hypothetical Res Bill Impact'!$B$93:$J$96,2,FALSE))) -> 30.93401663 | E80: =IF($D$3="All",'Hypothetical Res Bill Impact'!E97,(VLOOKUP($D$3,'Hypothetical Res Bill Impact'!$B$93:$J$96,4,FALSE))) -> 30.93401663 | F80: =IF($D$3="All",'Hypothetical Res Bill Impact'!G97,(VLOOKUP($D$3,'Hypothetical Res Bill Impact'!$B$93:$J$96,6,FALSE))) -> 30.93401663 | G80: 0 | H80: 0 | J80: 0 | K80: ='Hypothetical Res Bill Impact'!Q32 -> 0 | L80: ='Hypothetical Res Bill Impact'!R32 -> 0 | M80: ='Hypothetical Res Bill Impact'!S32 -> 0 | N80: ='Hypothetical Res Bill Impact'!T32 -> 0
B81: Total | D81: =D79*(1-'Hypothetical SAR and RAR'!$AA$16)+D80*'Hypothetical SAR and RAR'!$AA$16 -> 39.06310402 | E81: =E79*(1-'Hypothetical SAR and RAR'!$AA$16)+E80*'Hypothetical SAR and RAR'!$AA$16 -> 39.06310402 | F81: =F79*(1-'Hypothetical SAR and RAR'!$AA$16)+F80*'Hypothetical SAR and RAR'!$AA$16 -> 39.06310402 | G81: 0 | H81: 0 | J81: 0 | K81: ='Hypothetical Res Bill Impact'!Q33 -> 0 | L81: ='Hypothetical Res Bill Impact'!R33 -> 0 | M81: ='Hypothetical Res Bill Impact'!S33 -> 0 | N81: ='Hypothetical Res Bill Impact'!T33 -> 0
J82: 0 | K82: ='Hypothetical Res Bill Impact'!Q34 -> 0 | L82: ='Hypothetical Res Bill Impact'!R34 -> 0 | M82: ='Hypothetical Res Bill Impact'!S34 -> 0 | N82: ='Hypothetical Res Bill Impact'!T34 -> 0
B83: Basic Bundled Typical Residential Monthly Average Bills - Winter
D84: =D78 -> 2026-01-01 | E84: =E78 -> 2026-01-01 | F84: =F78 -> Proposed | G84: =$G$28 -> % Change over 1/1/2026 | H84: % Change over Authorized
B85: 5-Year Average Usage - Non-CARE | D85: =IF($D$3="All",'Hypothetical Res Bill Impact'!D87,(VLOOKUP($D$3,'Hypothetical Res Bill Impact'!$B$83:$J$86,3,FALSE))) -> 83.06027967 | E85: =IF($D$3="All",'Hypothetical Res Bill Impact'!F87,(VLOOKUP($D$3,'Hypothetical Res Bill Impact'!$B$83:$J$86,5,FALSE))) -> 83.06027967 | F85: =IF($D$3="All",'Hypothetical Res Bill Impact'!H87,(VLOOKUP($D$3,'Hypothetical Res Bill Impact'!$B$83:$J$86,7,FALSE))) -> 83.06027967 | G85: =$F85/D85-1 -> 0 | H85: 0
C86: 5-Year Average Usage - CARE | D86: =IF($D$3="All",'Hypothetical Res Bill Impact'!D97,(VLOOKUP($D$3,'Hypothetical Res Bill Impact'!$B$93:$J$96,3,FALSE))) -> 53.32551632 | E86: =IF($D$3="All",'Hypothetical Res Bill Impact'!F97,(VLOOKUP($D$3,'Hypothetical Res Bill Impact'!$B$93:$J$96,5,FALSE))) -> 53.32551632 | F86: =IF($D$3="All",'Hypothetical Res Bill Impact'!H97,(VLOOKUP($D$3,'Hypothetical Res Bill Impact'!$B$93:$J$96,7,FALSE))) -> 53.32551632 | G86: 0 | H86: 0
B87: Total | D87: =D85*(1-'Hypothetical SAR and RAR'!$AA$16)+D86*'Hypothetical SAR and RAR'!$AA$16 -> 77.66853607 | E87: =E85*(1-'Hypothetical SAR and RAR'!$AA$16)+E86*'Hypothetical SAR and RAR'!$AA$16 -> 77.66853607 | F87: =F85*(1-'Hypothetical SAR and RAR'!$AA$16)+F86*'Hypothetical SAR and RAR'!$AA$16 -> 77.66853607 | G87: 0 | H87: 0

Sheet Hypothetical SAR and RAR
C2: Revenue Change ($000)
B3: =RevRecoveryMechanisms -> Core Procurement | C3: ='Hypothetical Summary'!D6 -> 0 | G3: Allocation
B4: Allocated Base Margin | C4: ='Hypothetical Summary'!D7 -> 0 | G4: =TRANSPOSE(RevRecoveryMechanisms) -> Core Procurement | H4: Allocated Base Margin | I4: Distribution | J4: All Residential | K4: Local Transmission | L4: Seasonal Storage | M4: GHG End User | N4: Public Purpose Programs | O4: - | P4: 46% Res (LUAF, Other) | Q4: ECPT | R4: EPAM | S4: CFCA | T4: Non-Residential
B5: Distribution | C5: ='Hypothetical Summary'!D8 -> 0 | F5: Residential | G5: ='SAR and RAR'!G5 -> 0.5724692956 | H5: ='SAR and RAR'!H5 -> 0.8165237363 | I5: ='SAR and RAR'!I5 -> 0.7135109512 | J5: ='SAR and RAR'!J5 -> 1 | K5: ='SAR and RAR'!K5 -> 0.5154334371 | L5: ='SAR and RAR'!L5 -> 0.7405203174 | M5: ='SAR and RAR'!M5 -> 0.4973508799 | N5: ='SAR and RAR'!N5 -> 0.4546557409 | O5: ='SAR and RAR'!O5 -> 0 | P5: ='SAR and RAR'!P5 -> 0.4391411967 | Q5: ='SAR and RAR'!Q5 -> 0.3301664811 | R5: ='SAR and RAR'!R5 -> 0.8165237363 | S5: ='SAR and RAR'!S5 -> 0.6019875916 | T5: ='SAR and RAR'!T5 -> 0
B6: All Residential | C6: ='Hypothetical Summary'!D9 -> 0
B7: Local Transmission | C7: ='Hypothetical Summary'!D10 -> 0 | G7: Revenue Change ($000) - System
B8: Seasonal Storage | C8: ='Hypothetical Summary'!D11 -> 0 | F8: w/Proposed | G8: =TRANSPOSE(RevRecoveryMechanisms) -> Core Procurement | H8: Allocated Base Margin | I8: Distribution | J8: All Residential | K8: Local Transmission | L8: Seasonal Storage | M8: GHG End User | N8: Public Purpose Programs | O8: - | P8: 46% Res (LUAF, Other) | Q8: ECPT | R8: EPAM | S8: CFCA | T8: Non-Residential
B9: GHG End User | C9: ='Hypothetical Summary'!D12 -> 0 | F9: Residential | G9: =G5*G10 -> 0 | H9: =H5*H10 -> 0 | I9: =I5*I10 -> 0 | J9: 0 | K9: 0 | L9: 0 | M9: 0 | N9: 0 | P9: 0 | Q9: =Q5*Q10 -> 0 | R9: =R5*R10 -> 0 | S9: =S5*S10 -> 0 | T9: 0 | U9: =SUM(G9:T9) -> 0 | V9: Check
B10: Public Purpose Programs | C10: ='Hypothetical Summary'!D13 -> 0 | F10: Total System | G10: =C3 -> 0 | H10: =C4 -> 0 | I10: =C5 -> 0 | J10: =C6 -> 0 | K10: =C7 -> 0 | L10: =C8 -> 0 | M10: =C9 -> 0 | N10: =C10 -> 0 | P10: =C12 -> 0 | Q10: =C13 -> 0 | R10: =C14 -> 0 | S10: =C15 -> 0 | T10: =C16 -> 0 | U10: =SUM(G10:T10) -> 0 | V10: =U10-C17 -> 0
B11: -
B12: 46% Res (LUAF, Other) | C12: ='Hypothetical Summary'!D15 -> 0
B13: ECPT | C13: ='Hypothetical Summary'!D16 -> 0
B14: EPAM | C14: ='Hypothetical Summary'!D17 -> 0
B15: CFCA | C15: ='Hypothetical Summary'!D18 -> 0 | AA15: w/Proposed
B16: Non-Residential | C16: ='Hypothetical Summary'!D14 -> 0 | U16: Total UDC w/Proposed | W16: Commodity w/Proposed | Z16: % of CARE Sales (Bundled) | AA16: ='SAR and RAR'!AC15 -> 0.1813279471
B17: Total | C17: =SUM(C3:C16) -> 0 | G17: Revenue Split - Bundled | U17: Bundled Revenue Change | W17: Bundled Revenue Change
B18: CPUC Fee | C18: ='SAR and RAR'!D18 -> 0.0035 | G18: =TRANSPOSE(RevRecoveryMechanisms) -> Core Procurement | H18: Allocated Base Margin | I18: Distribution | J18: All Residential | K18: Local Transmission | L18: Seasonal Storage | M18: GHG End User | N18: Public Purpose Programs | O18: - | P18: 46% Res (LUAF, Other) | Q18: ECPT | R18: EPAM | S18: CFCA | T18: Non-Residential | U18: Total | W18: Total
F19: Residential | G19: 1 | H19: 1 | I19: 1 | J19: 1 | K19: 1 | L19: 1 | M19: 1 | N19: 1 | O19: 1 | P19: 1 | Q19: 1 | R19: 1 | S19: 1 | T19: 0 | U19: =SUMPRODUCT(H9:S9,H19:S19) -> 0 | W19: =SUMPRODUCT(G9,G19) -> 0
F20: Total System | G20: 1 | H20: 1 | I20: 1 | J20: 1 | K20: 1 | L20: 1 | M20: 1 | N20: 1 | O20: 1 | P20: 1 | Q20: 1 | R20: 1 | S20: 1 | T20: 0 | U20: =SUMPRODUCT(H10:S10,H20:S20) -> 0 | W20: =SUMPRODUCT(G10,G20) -> 0
C22: ='SAR and RAR'!C22 -> CAP D.24-07-009 SALES DETERMINANTS SYSTEM NET | D22: ='SAR and RAR'!D22 -> CAP D.24-07-009 SALES DETERMINANTS BUNDLED
B23: Residential | C23: ='SAR and RAR'!C23 -> 270603.8421 | D23: ='SAR and RAR'!D23 -> 268350.6274
B24: Total System | C24: ='SAR and RAR'!C24 -> 819598.1651 | D24: ='SAR and RAR'!D24 -> 413767.7004
F26: Bundled | P26: System (Bundled and Unbundled)
F27: =Summary!I3&" Authorized Sales Forecast" -> 2024 Authorized Sales Forecast | G27: ='SAR and RAR'!G27 -> 01/01/2026 Avg Rates(sales adj.) | H27: Proposed Avg Rates | I27: % Change | Q27: =F27 -> 2024 Authorized Sales Forecast | R27: =G27 -> 01/01/2026 Avg Rates(sales adj.) | S27: Proposed Avg Rates | T27: % Change
E28: Residential | F28: ='SAR and RAR'!F28 -> 268350.6274 | G28: 259.51483 | H28: =(U19/C23*100)+(W19/D23*100)+G28 -> 259.51483 | I28: =H28/G28-1 -> 0 | P28: Residential | Q28: ='SAR and RAR'!Q28 -> 270603.8421 | R28: 259.2220402 | S28: =U9/Q28*100+R28 -> 259.2220402 | T28: =S28/R28-1 -> 0
E29: Total System | F29: ='SAR and RAR'!F29 -> 413767.7004 | G29: 144.8031203 | H29: =(U20/C24*100)+(W20/D24*100)+G29 -> 144.8031203 | I29: =H29/G29-1 -> 0 | P29: Total System | Q29: ='SAR and RAR'!Q29 -> 819598.1651 | R29: 125.0777646 | S29: =U10/Q29*100+R29 -> 125.0777646 | T29: =S29/R29-1 -> 0

Sheet Hypothetical Res Bill Impact
E3: Schedule GR | P3: Schedule GR [CARE]
E4: =SalesForecastYear -> 2024 | F4: ='Res Bill Impact'!F4 -> 2026-01-01 | G4: ='Res Bill Impact'!G4 -> 2026-01-01 | H4: Proposed | I4: Proposed | P4: =SalesForecastYear -> 2024 | Q4: ='Res Bill Impact'!Q4 -> 2026-01-01 | R4: ='Res Bill Impact'!R4 -> 2026-01-01 | S4: Proposed | T4: Proposed
E5: Sales Forecast | F5: Rates | G5: Revenue | H5: Rates | I5: Revenue | P5: Sales Forecast | Q5: Rates | R5: Revenue | S5: Rates | T5: Revenue
D7: Baseline | E7: ='Res Bill Impact'!E7 -> 187959.3296 | F7: ='Res Bill Impact'!F7 -> 2.549474753 | G7: =F7*E7 -> 479197.5653 | H7: =(Y10/SUM(SUM(E7),F9/F7*SUM(E9),SUM(P7)*(Q7/F7),SUM(P9)*(Q9/F7))) -> 2.549474753 | I7: =E7*H7 -> 479197.5653 | O7: Baseline | P7: ='Res Bill Impact'!P7 -> 34568.65952 | Q7: ='Res Bill Impact'!Q7 -> 2.018070668 | R7: ='Res Bill Impact'!R7 -> 69761.99782 | S7: =H7*(1+(Q7/F7-1)) -> 2.018070668 | T7: =P7*S7 -> 69761.99782 | X7: Bundled Residential Rev Req
X8: Current | Y8: =(SUM(G7:G12)+SUM(R7:R12)) -> 805527.0339
D9: Non-Baseline | E9: ='Res Bill Impact'!E9 -> 76615.61141 | F9: ='Res Bill Impact'!F9 -> 2.922694753 | G9: =F9*E9 -> 223924.0454 | H9: =F9/F$7*H$7 -> 2.922694753 | I9: =E9*H9 -> 223924.0454 | O9: Non-Baseline | P9: ='Res Bill Impact'!P9 -> 14090.80885 | Q9: ='Res Bill Impact'!Q9 -> 2.316646668 | R9: ='Res Bill Impact'!R9 -> 32643.42538 | S9: =H9*(1+(Q9/F9-1)) -> 2.316646668 | T9: =P9*S9 -> 32643.42538 | X9: Change (Proposed) | Y9: ='Hypothetical SAR and RAR'!U9 -> 0
X10: Proposed (w/ Current Revenues) | Y10: =Y8+Y9 -> 805527.0339
E11: Non-CARE customers | P11: CARE Customers
D12: Fixed Charge | E12: =E13-P12 -> 664014.4092 | F12: 0 | G12: =F12*12*E12/1000 -> 0 | H12: 0 | I12: =(H12*12*E12)/1000 -> 0 | O12: Fixed Charge | P12: 210053 | Q12: =F12*(1-CAREDiscountPercent) -> 0 | R12: =Q12*12*P12/1000 -> 0 | S12: =H12*(1-CAREDiscountPercent) -> 0 | T12: =(S12*12*P12)/1000 -> 0
D13: Total Customers | E13: 874067.4092
P18: ='Res Bill Impact'!P18 -> Basic Bundled
H19: ='Res Bill Impact'!H19 -> Essential Usage | P19: ='Res Bill Impact'!P19 -> 2025 Recorded Data - Average Monthly Usage - ALL-BASIC th
B20: SCHEDULE DR RATES ($/th) | H20: Monthly Tier 1 Baseline Allowance -BASIC (th) | P20: Climate Zone | Q20: Summer | R20: Winter | S20: Summer | T20: Winter | U20: Population Weight
B21: Rates | C21: ='Res Bill Impact'!C21 -> 2026-01-01 | D21: ='Res Bill Impact'!D21 -> 2026-01-01 | E21: Proposed | H21: Climate Zone | I21: Summer | J21: Winter | Q21: Non-CARE | S21: CARE | U21: Non-CARE | V21: CARE
A22: Summer | B22: Tier 1 | C22: 2.549474753 | D22: 2.549474753 | E22: =H7 -> 2.549474753 | H22: =Zones -> SDG&E | I22: ='Res Bill Impact'!I22 -> 11 | J22: ='Res Bill Impact'!J22 -> 29 | P22: =Zones -> SDG&E | Q22: ='Res Bill Impact'!Q22 -> 15 | R22: ='Res Bill Impact'!R22 -> 29 | S22: ='Res Bill Impact'!S22 -> 14.83333333 | T22: ='Res Bill Impact'!T22 -> 24.66666667 | U22: =SUM(Q22:R22)/SUM($Q$22:$R$25) -> 1 | V22: =SUM(S22:T22)/SUM($S$22:$T$25) -> 1
B23: Tier 2 | C23: 2.922694753 | D23: 2.922694753 | E23: =H9 -> 2.922694753 | H23: 0 | I23: ='Res Bill Impact'!I23 -> 0 | J23: ='Res Bill Impact'!J23 -> 0 | P23: 0 | Q23: ='Res Bill Impact'!Q23 -> 0 | R23: ='Res Bill Impact'!R23 -> 0 | S23: ='Res Bill Impact'!S23 -> 0 | T23: ='Res Bill Impact'!T23 -> 0 | U23: =SUM(Q23:R23)/SUM($Q$22:$R$25) -> 0 | V23: =SUM(S23:T23)/SUM($S$22:$T$25) -> 0
H24: 0 | I24: ='Res Bill Impact'!I24 -> 0 | J24: ='Res Bill Impact'!J24 -> 0 | P24: 0 | Q24: ='Res Bill Impact'!Q24 -> 0 | R24: ='Res Bill Impact'!R24 -> 0 | S24: ='Res Bill Impact'!S24 -> 0 | T24: ='Res Bill Impact'!T24 -> 0 | U24: =SUM(Q24:R24)/SUM($Q$22:$R$25) -> 0 | V24: =SUM(S24:T24)/SUM($S$22:$T$25) -> 0
A25: Winter | B25: Tier 1 | C25: =C22 -> 2.549474753 | D25: 2.549474753 | E25: 2.549474753 | H25: 0 | I25: ='Res Bill Impact'!I25 -> 0 | J25: ='Res Bill Impact'!J25 -> 0 | P25: 0 | Q25: ='Res Bill Impact'!Q25 -> 0 | R25: ='Res Bill Impact'!R25 -> 0 | S25: ='Res Bill Impact'!S25 -> 0 | T25: ='Res Bill Impact'!T25 -> 0 | U25: =SUM(Q25:R25)/SUM($Q$22:$R$25) -> 0 | V25: =SUM(S25:T25)/SUM($S$22:$T$25) -> 0
B26: Tier 2 | C26: 2.922694753 | D26: 2.922694753 | E26: 2.922694753
P27: ='Res Bill Impact'!P27 -> Typical Bundled
P28: ='Res Bill Impact'!P28 -> 2021-2025 Recorded Data - Average Monthly Usage - ALL-BASIC th
B29: SCHEDULE DR [CARE] ($/th) | P29: Climate Zone | Q29: Summer | R29: Winter | S29: Summer | T29: Winter | U29: Population Weight
B30: Rates | C30: =C21 -> 2026-01-01 | D30: =D21 -> 2026-01-01 | E30: Proposed | Q30: Non-CARE | S30: CARE | U30: Non-CARE | V30: CARE
A31: Summer | B31: Tier 1 | C31: 2.018070668 | D31: 2.018070668 | E31: =S7 -> 2.018070668 | P31: =Zones -> SDG&E | Q31: ='Res Bill Impact'!Q31 -> 15.36775304 | R31: ='Res Bill Impact'!R31 -> 32.0838726 | S31: ='Res Bill Impact'!S31 -> 14.74835755 | T31: ='Res Bill Impact'!T31 -> 26.37825982 | U31: =SUM(Q31:R31)/SUM($Q$31:$R$34) -> 1 | V31: =SUM(S31:T31)/SUM($S$31:$T$34) -> 1
B32: Tier 2 | C32: 2.316646668 | D32: 2.316646668 | E32: =S9 -> 2.316646668 | P32: 0 | U32: =SUM(Q32:R32)/SUM($Q$31:$R$34) -> 0 | V32: =SUM(S32:T32)/SUM($S$31:$T$34) -> 0
P33: 0 | U33: 0 | V33: 0
A34: Winter | B34: Tier 1 | C34: =C31 -> 2.018070668 | D34: 2.018070668 | E34: 2.018070668 | P34: 0 | U34: 0 | V34: 0
B35: Tier 2 | C35: 2.316646668 | D35: 2.316646668 | E35: 2.316646668
B39: Note: Bill inserts include CPUC fee in the calculations
B40: ='Res Bill Impact'!C40 -> 2023 Recorded Average Basic Bundled Non-CARE Customer Bill
C41: =C30 -> 2026-01-01 | E41: =D30 -> 2026-01-01 | G41: =E30 -> Proposed
C42: Summer | D42: Winter | E42: Summer | F42: Winter | G42: Summer | H42: Winter
B43: =Zones -> SDG&E | C43: =IF($Q22>$I22,C$22*$I22+C$23*($Q22-$I22),$Q22*C$22)+('Hypothetical SAR and RAR'!$C$18*$Q22)+IF(Q22>0,$F$12,0) -> 39.78750129 | D43: =IF($R22>$J22,C$25*$J22+C$26*($R22-$J22),$R22*C$25)+('Hypothetical SAR and RAR'!$C$18*$R22)+IF(R22>0,$F$12,0) -> 74.03626783 | E43: =IF($Q22>$I22,D$22*$I22+D$23*($Q22-$I22),$Q22*D$22)+('Hypothetical SAR and RAR'!$C$18*$Q22)+IF(Q22>0,$F$12,0) -> 39.78750129 | F43: =IF($R22>$J22,D$25*$J22+D$26*($R22-$J22),$R22*D$25)+('Hypothetical SAR and RAR'!$C$18*$R22)+IF(R22>0,$F$12,0) -> 74.03626783 | G43: =IF($Q22>$I22,E$22*$I22+E$23*($Q22-$I22),$Q22*E$22)+('Hypothetical SAR and RAR'!$C$18*$Q22)+IF(Q22>0,$H$12,0) -> 39.78750129 | H43: =IF($R22>$J22,E$25*$J22+E$26*($R22-$J22),$R22*E$25)+('Hypothetical SAR and RAR'!$C$18*$R22)+IF(R22>0,$H$12,0) -> 74.03626783
B44: 0 | C44: =IF($Q23>$I23,C$22*$I23+C$23*($Q23-$I23),$Q23*C$22)+('Hypothetical SAR and RAR'!$C$18*$Q23)+IF(Q23>0,$F$12,0) -> 0 | D44: =IF($R23>$J23,C$25*$J23+C$26*($R23-$J23),$R23*C$25)+('Hypothetical SAR and RAR'!$C$18*$R23)+IF(R23>0,$F$12,0) -> 0 | E44: =IF($Q23>$I23,D$22*$I23+D$23*($Q23-$I23),$Q23*D$22)+('Hypothetical SAR and RAR'!$C$18*$Q23)+IF(Q23>0,$F$12,0) -> 0 | F44: =IF($R23>$J23,D$25*$J23+D$26*($R23-$J23),$R23*D$25)+('Hypothetical SAR and RAR'!$C$18*$R23)+IF(R23>0,$F$12,0) -> 0 | G44: =IF($Q23>$I23,E$22*$I23+E$23*($Q23-$I23),$Q23*E$22)+('Hypothetical SAR and RAR'!$C$18*$Q23)+IF(Q23>0,$H$12,0) -> 0 | H44: =IF($R23>$J23,E$25*$J23+E$26*($R23-$J23),$R23*E$25)+('Hypothetical SAR and RAR'!$C$18*$R23)+IF(R23>0,$H$12,0) -> 0
B45: 0 | C45: =IF($Q24>$I24,C$22*$I24+C$23*($Q24-$I24),$Q24*C$22)+('Hypothetical SAR and RAR'!$C$18*$Q24)+IF(Q24>0,$F$12,0) -> 0 | D45: =IF($R24>$J24,C$25*$J24+C$26*($R24-$J24),$R24*C$25)+('Hypothetical SAR and RAR'!$C$18*$R24)+IF(R24>0,$F$12,0) -> 0 | E45: =IF($Q24>$I24,D$22*$I24+D$23*($Q24-$I24),$Q24*D$22)+('Hypothetical SAR and RAR'!$C$18*$Q24)+IF(Q24>0,$F$12,0) -> 0 | F45: =IF($R24>$J24,D$25*$J24+D$26*($R24-$J24),$R24*D$25)+('Hypothetical SAR and RAR'!$C$18*$R24)+IF(R24>0,$F$12,0) -> 0 | G45: =IF($Q24>$I24,E$22*$I24+E$23*($Q24-$I24),$Q24*E$22)+('Hypothetical SAR and RAR'!$C$18*$Q24)+IF(Q24>0,$H$12,0) -> 0 | H45: =IF($R24>$J24,E$25*$J24+E$26*($R24-$J24),$R24*E$25)+('Hypothetical SAR and RAR'!$C$18*$R24)+IF(R24>0,$H$12,0) -> 0
B46: 0 | C46: =IF($Q25>$I25,C$22*$I25+C$23*($Q25-$I25),$Q25*C$22)+('Hypothetical SAR and RAR'!$C$18*$Q25)+IF(Q25>0,$F$12,0) -> 0 | D46: =IF($R25>$J25,C$25*$J25+C$26*($R25-$J25),$R25*C$25)+('Hypothetical SAR and RAR'!$C$18*$R25)+IF(R25>0,$F$12,0) -> 0 | E46: =IF($Q25>$I25,D$22*$I25+D$23*($Q25-$I25),$Q25*D$22)+('Hypothetical SAR and RAR'!$C$18*$Q25)+IF(Q25>0,$F$12,0) -> 0 | F46: =IF($R25>$J25,D$25*$J25+D$26*($R25-$J25),$R25*D$25)+('Hypothetical SAR and RAR'!$C$18*$R25)+IF(R25>0,$F$12,0) -> 0 | G46: =IF($Q25>$I25,E$22*$I25+E$23*($Q25-$I25),$Q25*E$22)+('Hypothetical SAR and RAR'!$C$18*$Q25)+IF(Q25>0,$H$12,0) -> 0 | H46: =IF($R25>$J25,E$25*$J25+E$26*($R25-$J25),$R25*E$25)+('Hypothetical SAR and RAR'!$C$18*$R25)+IF(R25>0,$H$12,0) -> 0
B47: Total | C47: =SUMPRODUCT(C43:C46,$U$22:$U$25) -> 39.78750129 | D47: =SUMPRODUCT(D43:D46,$U$22:$U$25) -> 74.03626783 | E47: 39.78750129 | F47: 74.03626783 | G47: 39.78750129 | H47: 74.03626783
C50: ='Res Bill Impact'!C50 -> 2023 Recorded Average Basic Bundled CARE Customer Bill
C51: =C30 -> 2026-01-01 | E51: =D30 -> 2026-01-01 | G51: =E30 -> Proposed
C52: Summer | D52: Winter | E52: Summer | F52: Winter | G52: Summer | H52: Winter
B53: =Zones -> SDG&E | C53: =IF($S22>$I22,C$31*$I22+C$32*($S22-$I22),$S22*C$31)+('Hypothetical SAR and RAR'!$C$18*$S22)+IF(S22>0,$Q$12,0) -> 31.13117291 | D53: =IF($T22>$J22,C$34*$J22+C$35*($T22-$J22),$T22*C$34)+('Hypothetical SAR and RAR'!$C$18*$T22)+IF(T22>0,$Q$12,0) -> 49.86540982 | E53: =IF($S22>$I22,D$31*$I22+D$32*($S22-$I22),$S22*D$31)+('Hypothetical SAR and RAR'!$C$18*$S22)+IF(S22>0,$Q$12,0) -> 31.13117291 | F53: =IF($T22>$J22,D$34*$J22+D$35*($T22-$J22),$T22*D$34)+('Hypothetical SAR and RAR'!$C$18*$T22)+IF(T22>0,$Q$12,0) -> 49.86540982 | G53: =IF($S22>$I22,E$31*$I22+E$32*($S22-$I22),$S22*E$31)+('Hypothetical SAR and RAR'!$C$18*$S22)+IF(S22>0,$S$12,0) -> 31.13117291 | H53: =IF($T22>$J22,E$34*$J22+E$35*($T22-$J22),$T22*E$34)+('Hypothetical SAR and RAR'!$C$18*$T22)+IF(T22>0,$S$12,0) -> 49.86540982
B54: 0 | C54: =IF($S23>$I23,C$31*$I23+C$32*($S23-$I23),$S23*C$31)+('Hypothetical SAR and RAR'!$C$18*$S23)+IF(S23>0,$Q$12,0) -> 0 | D54: =IF($T23>$J23,C$34*$J23+C$35*($T23-$J23),$T23*C$34)+('Hypothetical SAR and RAR'!$C$18*$T23)+IF(T23>0,$Q$12,0) -> 0 | E54: =IF($S23>$I23,D$31*$I23+D$32*($S23-$I23),$S23*D$31)+('Hypothetical SAR and RAR'!$C$18*$S23)+IF(S23>0,$Q$12,0) -> 0 | F54: =IF($T23>$J23,D$34*$J23+D$35*($T23-$J23),$T23*D$34)+('Hypothetical SAR and RAR'!$C$18*$T23)+IF(T23>0,$Q$12,0) -> 0 | G54: =IF($S23>$I23,E$31*$I23+E$32*($S23-$I23),$S23*E$31)+('Hypothetical SAR and RAR'!$C$18*$S23)+IF(S23>0,$S$12,0) -> 0 | H54: =IF($T23>$J23,E$34*$J23+E$35*($T23-$J23),$T23*E$34)+('Hypothetical SAR and RAR'!$C$18*$T23)+IF(T23>0,$S$12,0) -> 0
B55: 0 | C55: =IF($S24>$I24,C$31*$I24+C$32*($S24-$I24),$S24*C$31)+('Hypothetical SAR and RAR'!$C$18*$S24)+IF(S24>0,$Q$12,0) -> 0 | D55: =IF($T24>$J24,C$34*$J24+C$35*($T24-$J24),$T24*C$34)+('Hypothetical SAR and RAR'!$C$18*$T24)+IF(T24>0,$Q$12,0) -> 0 | E55: =IF($S24>$I24,D$31*$I24+D$32*($S24-$I24),$S24*D$31)+('Hypothetical SAR and RAR'!$C$18*$S24)+IF(S24>0,$Q$12,0) -> 0 | F55: =IF($T24>$J24,D$34*$J24+D$35*($T24-$J24),$T24*D$34)+('Hypothetical SAR and RAR'!$C$18*$T24)+IF(T24>0,$Q$12,0) -> 0 | G55: =IF($S24>$I24,E$31*$I24+E$32*($S24-$I24),$S24*E$31)+('Hypothetical SAR and RAR'!$C$18*$S24)+IF(S24>0,$S$12,0) -> 0 | H55: =IF($T24>$J24,E$34*$J24+E$35*($T24-$J24),$T24*E$34)+('Hypothetical SAR and RAR'!$C$18*$T24)+IF(T24>0,$S$12,0) -> 0
B56: 0 | C56: =IF($S25>$I25,C$31*$I25+C$32*($S25-$I25),$S25*C$31)+('Hypothetical SAR and RAR'!$C$18*$S25)+IF(S25>0,$Q$12,0) -> 0 | D56: =IF($T25>$J25,C$34*$J25+C$35*($T25-$J25),$T25*C$34)+('Hypothetical SAR and RAR'!$C$18*$T25)+IF(T25>0,$Q$12,0) -> 0 | E56: =IF($S25>$I25,D$31*$I25+D$32*($S25-$I25),$S25*D$31)+('Hypothetical SAR and RAR'!$C$18*$S25)+IF(S25>0,$Q$12,0) -> 0 | F56: =IF($T25>$J25,D$34*$J25+D$35*($T25-$J25),$T25*D$34)+('Hypothetical SAR and RAR'!$C$18*$T25)+IF(T25>0,$Q$12,0) -> 0 | G56: =IF($S25>$I25,E$31*$I25+E$32*($S25-$I25),$S25*E$31)+('Hypothetical SAR and RAR'!$C$18*$S25)+IF(S25>0,$S$12,0) -> 0 | H56: =IF($T25>$J25,E$34*$J25+E$35*($T25-$J25),$T25*E$34)+('Hypothetical SAR and RAR'!$C$18*$T25)+IF(T25>0,$S$12,0) -> 0
B57: Total | C57: =SUMPRODUCT(C53:C56,$V$22:$V$25) -> 31.13117291 | D57: =SUMPRODUCT(D53:D56,$V$22:$V$25) -> 49.86540982 | E57: 31.13117291 | F57: 49.86540982 | G57: 31.13117291 | H57: 49.86540982
C60: Essential Usage Basic Bundled Non-CARE Customer
C61: =C51 -> 2026-01-01 | E61: =D30 -> 2026-01-01 | G61: =G51 -> Proposed
C62: Summer | D62: Winter | E62: Summer | F62: Winter | G62: Summer | H62: Winter
B63: =Zones -> SDG&E | C63: =($C$22*$I22)+('Hypothetical SAR and RAR'!$C$18*$I22)+IF(I22>0,$F$12,0) -> 28.08272228 | D63: =($C$25*$J22)+('Hypothetical SAR and RAR'!$C$18*$J22)+IF(J22>0,$F$12,0) -> 74.03626783 | E63: =($D$22*$I22)+('Hypothetical SAR and RAR'!$C$18*$I22)+IF(I22>0,$F$12,0) -> 28.08272228 | F63: =($D$25*$J22)+('Hypothetical SAR and RAR'!$C$18*$J22)+IF(J22>0,$F$12,0) -> 74.03626783 | G63: =($E$22*$I22)+('Hypothetical SAR and RAR'!$C$18*$I22)+IF(I22>0,$H$12,0) -> 28.08272228 | H63: =($E$25*$J22)+('Hypothetical SAR and RAR'!$C$18*$J22)+IF(J22>0,$H$12,0) -> 74.03626783
B64: 0 | C64: =($C$22*$I23)+('Hypothetical SAR and RAR'!$C$18*$I23)+IF(I23>0,$F$12,0) -> 0 | D64: =($C$25*$J23)+('Hypothetical SAR and RAR'!$C$18*$J23)+IF(J23>0,$F$12,0) -> 0 | E64: =($D$22*$I23)+('Hypothetical SAR and RAR'!$C$18*$I23)+IF(I23>0,$F$12,0) -> 0 | F64: =($D$25*$J23)+('Hypothetical SAR and RAR'!$C$18*$J23)+IF(J23>0,$F$12,0) -> 0 | G64: =($E$22*$I23)+('Hypothetical SAR and RAR'!$C$18*$I23)+IF(I23>0,$H$12,0) -> 0 | H64: =($E$25*$J23)+('Hypothetical SAR and RAR'!$C$18*$J23)+IF(J23>0,$H$12,0) -> 0
B65: 0 | C65: =($C$22*$I24)+('Hypothetical SAR and RAR'!$C$18*$I24)+IF(I24>0,$F$12,0) -> 0 | D65: =($C$25*$J24)+('Hypothetical SAR and RAR'!$C$18*$J24)+IF(J24>0,$F$12,0) -> 0 | E65: =($D$22*$I24)+('Hypothetical SAR and RAR'!$C$18*$I24)+IF(I24>0,$F$12,0) -> 0 | F65: =($D$25*$J24)+('Hypothetical SAR and RAR'!$C$18*$J24)+IF(J24>0,$F$12,0) -> 0 | G65: =($E$22*$I24)+('Hypothetical SAR and RAR'!$C$18*$I24)+IF(I24>0,$H$12,0) -> 0 | H65: =($E$25*$J24)+('Hypothetical SAR and RAR'!$C$18*$J24)+IF(J24>0,$H$12,0) -> 0
B66: 0 | C66: =($C$22*$I25)+('Hypothetical SAR and RAR'!$C$18*$I25)+IF(I25>0,$F$12,0) -> 0 | D66: =($C$25*$J25)+('Hypothetical SAR and RAR'!$C$18*$J25)+IF(J25>0,$F$12,0) -> 0 | E66: =($D$22*$I25)+('Hypothetical SAR and RAR'!$C$18*$I25)+IF(I25>0,$F$12,0) -> 0 | F66: =($D$25*$J25)+('Hypothetical SAR and RAR'!$C$18*$J25)+IF(J25>0,$F$12,0) -> 0 | G66: =($E$22*$I25)+('Hypothetical SAR and RAR'!$C$18*$I25)+IF(I25>0,$H$12,0) -> 0 | H66: =($E$25*$J25)+('Hypothetical SAR and RAR'!$C$18*$J25)+IF(J25>0,$H$12,0) -> 0
B67: Total | C67: =SUMPRODUCT(C63:C66,$U$22:$U$25) -> 28.08272228 | D67: =SUMPRODUCT(D63:D66,$U$22:$U$25) -> 74.03626783 | E67: =SUMPRODUCT(E63:E66,$U$22:$U$25) -> 28.08272228 | F67: 74.03626783 | G67: 28.08272228 | H67: 74.03626783
C70: Essential Usage Basic Bundled CARE Customer
C71: =C51 -> 2026-01-01 | E71: =E61 -> 2026-01-01 | G71: =G61 -> Proposed
C72: Summer | D72: Winter | E72: Summer | F72: Winter | G72: Summer | H72: Winter
B73: =Zones -> SDG&E | C73: =($C$31*$I22)+('Hypothetical SAR and RAR'!$C$18*$I22)+IF(I22>0,$Q$12,0) -> 22.23727735 | D73: =($C$34*$J22)+('Hypothetical SAR and RAR'!$C$18*$J22)+IF(J22>0,$Q$12,0) -> 58.62554938 | E73: =($D$31*$I22)+('Hypothetical SAR and RAR'!$C$18*$I22)+IF(I22>0,$Q$12,0) -> 22.23727735 | F73: =($D$34*$J22)+('Hypothetical SAR and RAR'!$C$18*$J22)+IF(J22>0,$Q$12,0) -> 58.62554938 | G73: =($E$31*$I22)+('Hypothetical SAR and RAR'!$C$18*$I22)+IF(I22>0,$S$12,0) -> 22.23727735 | H73: =($E$34*$J22)+('Hypothetical SAR and RAR'!$C$18*$J22)+IF(J22>0,$S$12,0) -> 58.62554938
B74: 0 | C74: =($C$31*$I23)+('Hypothetical SAR and RAR'!$C$18*$I23)+IF(I23>0,$Q$12,0) -> 0 | D74: =($C$34*$J23)+('Hypothetical SAR and RAR'!$C$18*$J23)+IF(J23>0,$Q$12,0) -> 0 | E74: =($D$31*$I23)+('Hypothetical SAR and RAR'!$C$18*$I23)+IF(I23>0,$Q$12,0) -> 0 | F74: =($D$34*$J23)+('Hypothetical SAR and RAR'!$C$18*$J23)+IF(J23>0,$Q$12,0) -> 0 | G74: =($E$31*$I23)+('Hypothetical SAR and RAR'!$C$18*$I23)+IF(I23>0,$S$12,0) -> 0 | H74: =($E$34*$J23)+('Hypothetical SAR and RAR'!$C$18*$J23)+IF(J23>0,$S$12,0) -> 0
B75: 0 | C75: =($C$31*$I24)+('Hypothetical SAR and RAR'!$C$18*$I24)+IF(I24>0,$Q$12,0) -> 0 | D75: =($C$34*$J24)+('Hypothetical SAR and RAR'!$C$18*$J24)+IF(J24>0,$Q$12,0) -> 0 | E75: =($D$31*$I24)+('Hypothetical SAR and RAR'!$C$18*$I24)+IF(I24>0,$Q$12,0) -> 0 | F75: =($D$34*$J24)+('Hypothetical SAR and RAR'!$C$18*$J24)+IF(J24>0,$Q$12,0) -> 0 | G75: =($E$31*$I24)+('Hypothetical SAR and RAR'!$C$18*$I24)+IF(I24>0,$S$12,0) -> 0 | H75: =($E$34*$J24)+('Hypothetical SAR and RAR'!$C$18*$J24)+IF(J24>0,$S$12,0) -> 0
B76: 0 | C76: =($C$31*$I25)+('Hypothetical SAR and RAR'!$C$18*$I25)+IF(I25>0,$Q$12,0) -> 0 | D76: =($C$34*$J25)+('Hypothetical SAR and RAR'!$C$18*$J25)+IF(J25>0,$Q$12,0) -> 0 | E76: =($D$31*$I25)+('Hypothetical SAR and RAR'!$C$18*$I25)+IF(I25>0,$Q$12,0) -> 0 | F76: =($D$34*$J25)+('Hypothetical SAR and RAR'!$C$18*$J25)+IF(J25>0,$Q$12,0) -> 0 | G76: =($E$31*$I25)+('Hypothetical SAR and RAR'!$C$18*$I25)+IF(I25>0,$S$12,0) -> 0 | H76: =($E$34*$J25)+('Hypothetical SAR and RAR'!$C$18*$J25)+IF(J25>0,$S$12,0) -> 0
B77: Total | C77: =SUMPRODUCT(C73:C76,$V$22:$V$25) -> 22.23727735 | D77: =SUMPRODUCT(D73:D76,$V$22:$V$25) -> 58.62554938 | E77: 22.23727735 | F77: 58.62554938 | G77: 22.23727735 | H77: 58.62554938
C80: Typical Monthly Usage Basic Bundled Non-CARE Customer
C81: =C71 -> 2026-01-01 | E81: =E71 -> 2026-01-01 | G81: =G71 -> Proposed
C82: Summer | D82: Winter | E82: Summer | F82: Winter | G82: Summer | H82: Winter
B83: =Zones -> SDG&E | C83: =IF($Q31>$I22,C$22*$I22+C$23*($Q31-$I22),$Q31*C$22)+('Hypothetical SAR and RAR'!$C$18*$Q31)+IF(Q31>0,$F$12,0) -> 40.86361831 | D83: =IF($R31>$J22,C$25*$J22+C$26*($R31-$J22),$R31*C$25)+('Hypothetical SAR and RAR'!$C$18*$R31)+IF(R31>0,$F$12,0) -> 83.06027967 | E83: =IF($Q31>$I22,D$22*$I22+D$23*($Q31-$I22),$Q31*D$22)+('Hypothetical SAR and RAR'!$C$18*$Q31)+IF(Q31>0,$F$12,0) -> 40.86361831 | F83: =IF($R31>$J22,D$25*$J22+D$26*($R31-$J22),$R31*D$25)+('Hypothetical SAR and RAR'!$C$18*$R31)+IF(R31>0,$F$12,0) -> 83.06027967 | G83: =IF($Q31>$I22,E$22*$I22+E$23*($Q31-$I22),$Q31*E$22)+('Hypothetical SAR and RAR'!$C$18*$Q31)+IF(Q31>0,$H$12,0) -> 40.86361831 | H83: =IF($R31>$J22,E$25*$J22+E$26*($R31-$J22),$R31*E$25)+('Hypothetical SAR and RAR'!$C$18*$R31)+IF(R31>0,$H$12,0) -> 83.06027967
B84: 0 | C84: =IF($Q32>$I23,C$22*$I23+C$23*($Q32-$I23),$Q32*C$22)+('Hypothetical SAR and RAR'!$C$18*$Q32)+IF(Q32>0,$F$12,0) -> 0 | D84: =IF($R32>$J23,C$25*$J23+C$26*($R32-$J23),$R32*C$25)+('Hypothetical SAR and RAR'!$C$18*$R32)+IF(R32>0,$F$12,0) -> 0 | E84: =IF($Q32>$I23,D$22*$I23+D$23*($Q32-$I23),$Q32*D$22)+('Hypothetical SAR and RAR'!$C$18*$Q32)+IF(Q32>0,$F$12,0) -> 0 | F84: =IF($R32>$J23,D$25*$J23+D$26*($R32-$J23),$R32*D$25)+('Hypothetical SAR and RAR'!$C$18*$R32)+IF(R32>0,$F$12,0) -> 0 | G84: =IF($Q32>$I23,E$22*$I23+E$23*($Q32-$I23),$Q32*E$22)+('Hypothetical SAR and RAR'!$C$18*$Q32)+IF(Q32>0,$H$12,0) -> 0 | H84: =IF($R32>$J23,E$25*$J23+E$26*($R32-$J23),$R32*E$25)+('Hypothetical SAR and RAR'!$C$18*$R32)+IF(R32>0,$H$12,0) -> 0
B85: 0 | C85: =IF($Q33>$I24,C$22*$I24+C$23*($Q33-$I24),$Q33*C$22)+('Hypothetical SAR and RAR'!$C$18*$Q33)+IF(Q33>0,$F$12,0) -> 0 | D85: =IF($R33>$J24,C$25*$J24+C$26*($R33-$J24),$R33*C$25)+('Hypothetical SAR and RAR'!$C$18*$R33)+IF(R33>0,$F$12,0) -> 0 | E85: =IF($Q33>$I24,D$22*$I24+D$23*($Q33-$I24),$Q33*D$22)+('Hypothetical SAR and RAR'!$C$18*$Q33)+IF(Q33>0,$F$12,0) -> 0 | F85: =IF($R33>$J24,D$25*$J24+D$26*($R33-$J24),$R33*D$25)+('Hypothetical SAR and RAR'!$C$18*$R33)+IF(R33>0,$F$12,0) -> 0 | G85: =IF($Q33>$I24,E$22*$I24+E$23*($Q33-$I24),$Q33*E$22)+('Hypothetical SAR and RAR'!$C$18*$Q33)+IF(Q33>0,$H$12,0) -> 0 | H85: =IF($R33>$J24,E$25*$J24+E$26*($R33-$J24),$R33*E$25)+('Hypothetical SAR and RAR'!$C$18*$R33)+IF(R33>0,$H$12,0) -> 0
B86: 0 | C86: =IF($Q34>$I25,C$22*$I25+C$23*($Q34-$I25),$Q34*C$22)+('Hypothetical SAR and RAR'!$C$18*$Q34)+IF(Q34>0,$F$12,0) -> 0 | D86: =IF($R34>$J25,C$25*$J25+C$26*($R34-$J25),$R34*C$25)+('Hypothetical SAR and RAR'!$C$18*$R34)+IF(R34>0,$F$12,0) -> 0 | E86: =IF($Q34>$I25,D$22*$I25+D$23*($Q34-$I25),$Q34*D$22)+('Hypothetical SAR and RAR'!$C$18*$Q34)+IF(Q34>0,$F$12,0) -> 0 | F86: =IF($R34>$J25,D$25*$J25+D$26*($R34-$J25),$R34*D$25)+('Hypothetical SAR and RAR'!$C$18*$R34)+IF(R34>0,$F$12,0) -> 0 | G86: =IF($Q34>$I25,E$22*$I25+E$23*($Q34-$I25),$Q34*E$22)+('Hypothetical SAR and RAR'!$C$18*$Q34)+IF(Q34>0,$H$12,0) -> 0 | H86: =IF($R34>$J25,E$25*$J25+E$26*($R34-$J25),$R34*E$25)+('Hypothetical SAR and RAR'!$C$18*$R34)+IF(R34>0,$H$12,0) -> 0
B87: Total | C87: =SUMPRODUCT(C83:C86,$U$22:$U$25) -> 40.86361831 | D87: =SUMPRODUCT(D83:D86,$U$22:$U$25) -> 83.06027967 | E87: 40.86361831 | F87: 83.06027967 | G87: 40.86361831 | H87: 83.06027967
C90: Typical Monthly Usage Basic Bundled CARE Customer
C91: =C81 -> 2026-01-01 | E91: =E81 -> 2026-01-01 | G91: =G81 -> Proposed
C92: Summer | D92: Winter | E92: Summer | F92: Winter | G92: Summer | H92: Winter
B93: =Zones -> SDG&E | C93: =IF($S31>$I22,C$31*$I22+C$32*($S31-$I22),$S31*C$31)+('Hypothetical SAR and RAR'!$C$18*$S31)+IF(S31>0,$Q$12,0) -> 30.93401663 | D93: =IF($T31>$J22,C$34*$J22+C$35*($T31-$J22),$T31*C$34)+('Hypothetical SAR and RAR'!$C$18*$T31)+IF(T31>0,$Q$12,0) -> 53.32551632 | E93: =IF($S31>$I22,D$31*$I22+D$32*($S31-$I22),$S31*D$31)+('Hypothetical SAR and RAR'!$C$18*$S31)+IF(S31>0,$Q$12,0) -> 30.93401663 | F93: =IF($T31>$J22,D$34*$J22+D$35*($T31-$J22),$T31*D$34)+('Hypothetical SAR and RAR'!$C$18*$T31)+IF(T31>0,$Q$12,0) -> 53.32551632 | G93: =IF($S31>$I22,E$31*$I22+E$32*($S31-$I22),$S31*E$31)+('Hypothetical SAR and RAR'!$C$18*$S31)+IF(S31>0,$S$12,0) -> 30.93401663 | H93: =IF($T31>$J22,E$34*$J22+E$35*($T31-$J22),$T31*E$34)+('Hypothetical SAR and RAR'!$C$18*$T31)+IF(T31>0,$S$12,0) -> 53.32551632
B94: 0 | C94: =IF($S32>$I23,C$31*$I23+C$32*($S32-$I23),$S32*C$31)+('Hypothetical SAR and RAR'!$C$18*$S32)+IF(S32>0,$Q$12,0) -> 0 | D94: =IF($T32>$J23,C$34*$J23+C$35*($T32-$J23),$T32*C$34)+('Hypothetical SAR and RAR'!$C$18*$T32)+IF(T32>0,$Q$12,0) -> 0 | E94: =IF($S32>$I23,D$31*$I23+D$32*($S32-$I23),$S32*D$31)+('Hypothetical SAR and RAR'!$C$18*$S32)+IF(S32>0,$Q$12,0) -> 0 | F94: =IF($T32>$J23,D$34*$J23+D$35*($T32-$J23),$T32*D$34)+('Hypothetical SAR and RAR'!$C$18*$T32)+IF(T32>0,$Q$12,0) -> 0 | G94: =IF($S32>$I23,E$31*$I23+E$32*($S32-$I23),$S32*E$31)+('Hypothetical SAR and RAR'!$C$18*$S32)+IF(S32>0,$S$12,0) -> 0 | H94: =IF($T32>$J23,E$34*$J23+E$35*($T32-$J23),$T32*E$34)+('Hypothetical SAR and RAR'!$C$18*$T32)+IF(T32>0,$S$12,0) -> 0
B95: 0 | C95: =IF($S33>$I24,C$31*$I24+C$32*($S33-$I24),$S33*C$31)+('Hypothetical SAR and RAR'!$C$18*$S33)+IF(S33>0,$Q$12,0) -> 0 | D95: =IF($T33>$J24,C$34*$J24+C$35*($T33-$J24),$T33*C$34)+('Hypothetical SAR and RAR'!$C$18*$T33)+IF(T33>0,$Q$12,0) -> 0 | E95: =IF($S33>$I24,D$31*$I24+D$32*($S33-$I24),$S33*D$31)+('Hypothetical SAR and RAR'!$C$18*$S33)+IF(S33>0,$Q$12,0) -> 0 | F95: =IF($T33>$J24,D$34*$J24+D$35*($T33-$J24),$T33*D$34)+('Hypothetical SAR and RAR'!$C$18*$T33)+IF(T33>0,$Q$12,0) -> 0 | G95: =IF($S33>$I24,E$31*$I24+E$32*($S33-$I24),$S33*E$31)+('Hypothetical SAR and RAR'!$C$18*$S33)+IF(S33>0,$S$12,0) -> 0 | H95: =IF($T33>$J24,E$34*$J24+E$35*($T33-$J24),$T33*E$34)+('Hypothetical SAR and RAR'!$C$18*$T33)+IF(T33>0,$S$12,0) -> 0
B96: 0 | C96: =IF($S34>$I25,C$31*$I25+C$32*($S34-$I25),$S34*C$31)+('Hypothetical SAR and RAR'!$C$18*$S34)+IF(S34>0,$Q$12,0) -> 0 | D96: =IF($T34>$J25,C$34*$J25+C$35*($T34-$J25),$T34*C$34)+('Hypothetical SAR and RAR'!$C$18*$T34)+IF(T34>0,$Q$12,0) -> 0 | E96: =IF($S34>$I25,D$31*$I25+D$32*($S34-$I25),$S34*D$31)+('Hypothetical SAR and RAR'!$C$18*$S34)+IF(S34>0,$Q$12,0) -> 0 | F96: =IF($T34>$J25,D$34*$J25+D$35*($T34-$J25),$T34*D$34)+('Hypothetical SAR and RAR'!$C$18*$T34)+IF(T34>0,$Q$12,0) -> 0 | G96: =IF($S34>$I25,E$31*$I25+E$32*($S34-$I25),$S34*E$31)+('Hypothetical SAR and RAR'!$C$18*$S34)+IF(S34>0,$S$12,0) -> 0 | H96: =IF($T34>$J25,E$34*$J25+E$35*($T34-$J25),$T34*E$34)+('Hypothetical SAR and RAR'!$C$18*$T34)+IF(T34>0,$S$12,0) -> 0
B97: Total | C97: =SUMPRODUCT(C93:C96,$V$22:$V$25) -> 30.93401663 | D97: =SUMPRODUCT(D93:D96,$V$22:$V$25) -> 53.32551632 | E97: 30.93401663 | F97: 53.32551632 | G97: 30.93401663 | H97: 53.32551632

Sheet SetUp
C4: Current Quarter Effective Rate Date | D4: 2026-01-01 | F4: Zones | H4: Revenue Recovery Mechanisms | J4: Years Available for Rate Impact | K4: Procurement Rate Assumption
C5: Beginning of Year Effecive Rate Date | D5: 2026-01-01 | F5: SDG&E | H5: Core Procurement | J5: 2026 | K5: 0.398365
C6: Care Discount % | D6: 0.2 | H6: Allocated Base Margin | J6: =J5+1 -> 2027 | K6: =K5*(1+L6) -> 0.4382015 | L6: 0.1
C7: Proposed Residential Fixed Charge | D7: 0 | H7: Distribution | J7: =J6+1 -> 2028 | K7: 0.48202165 | L7: 0.1
H8: All Residential | J8: 2029 | K8: 0.530223815 | L8: 0.1
F9: All | H9: Local Transmission | J9: 2030 | K9: 0.5832461965 | L9: 0.1
H10: Seasonal Storage
H11: GHG End User | J11: =J5-1 -> 2025 | K11: 0.39411
C12: Regulatory Fee | D12: 0.0035 | H12: Public Purpose Programs
H13: -
F14: Other Revenues | H14: 46% Res (LUAF, Other)
F15: and Balancing | H15: ECPT
F16: Accouns | H16: EPAM
H17: CFCA
H18: Non-Residential
H21: Procurement
H22: Customer Costs
H23: Medium Pressure Distribution
H24: High Pressure Distribution
H25: Local Transmission
H26: Storage
H27: GHG Revenue
H28: Other Balancing Acounts
H29: NGV Costs
H30: Backbone Transmisson
H31: Public Purpose Programs

Sheet Selected Data
A1: SDGE Revenue Requirement List
A2: ='Authorized Rev Req'!A2 -> Annual Period 2025
A3: ='Authorized Rev Req'!A3 -> Reporting Date: Quarter Ended March 31
A4: Summary of Selected Data | Q4: Revenue
Q5: Requirement
Q6: $000
A7: 1 | B7: Current total system-level revenue requirement that is used for defining the reporting threshold: | Q7: ='Authorized Rev Req'!O97 -> 1012062.053
B8: A | C8: One-percent reporting threshold | Q8: =Q7*0.01 -> 10120.62053
A10: 2* | B10: List of currently open proceedings for which affordability metrics have been filed:
B11: A | C11: ='Incremental Rev Req'!B97 -> A.25-05-015/016 | D11: ='Incremental Rev Req'!A97 -> 2024 GRC Track 3 (PSEP and WMPMA) | Q11: ='Incremental Rev Req'!D97 -> 50051
A14: 3 | B14: Total system-level revenue requirement if all pending revenue were granted in full: requests were granted in full | Q14: Total
B15: A | C15: YE 2026 | Q15: ='Incremental Rev Req'!O114 -> 1082317.263
B16: B | C16: YE 2027 | Q16: ='Incremental Rev Req'!P114 -> 787176.4897
B17: C | C17: YE 2028 | Q17: ='Incremental Rev Req'!Q114 -> 789759.5064
B18: D | C18: YE 2029 | Q18: ='Incremental Rev Req'!R114 -> 793445.7132
B19: E | C19: YE 2030 | Q19: ='Incremental Rev Req'!S114 -> 796834.9756
A21: 4 | B21: Bundled residential average rate (RAR) if all pending revenue were granted in full (from Cost and Rate Tracker (CRT) as submitted by utility): | R21: cents/Therm
B22: A | C22: YE 2026 | R22: 247.2506146
B23: B | C23: YE 2027 | R23: 176.299478
B24: C | C24: YE 2028 | R24: 177.078881
B25: D | C25: YE 2029 | R25: 178.1911621
B26: E | C26: YE 2030 | R26: 179.2138427
A28: 5 | B28: Bundled residential average monthly bill corresponding to RAR above for typical customer using a Typical 5-year average usage (from CRT as submitted by utility): | S28: Non-CARE | T28: CARE
B29: A | C29: YE 2026 | S29: 51.31942075 | T29: 34.76984886
B30: B | C30: YE 2027 | S30: 36.61660825 | T30: 24.81293193
B31: C | C31: YE 2028 | S31: 36.77811963 | T31: 24.92230933
B32: D | C32: YE 2029 | S32: 37.00861151 | T32: 25.07840112
B33: E | C33: YE 2030 | S33: 37.22053598 | T33: 25.22191886
B36: *Per D.25-12-044 affordability metrics are only required for >1% increase requests in a GRC filing
